Workbook

Sheet User & Location Information
C4: User Name and Location Information
B8: User Name: | E8: Mayor | G8: optional input
C10: Community Name | E10: Any Town | G10: optional input
C12: Community Zip code: | E12: 0 | F12: required input
C14: Local Sales Tax: | E14: 0 | F14: Enter as %, enter "0" for exempt
C16: Expected Electric Rate: | E16: 0.13 | F16: per kW-hr (do not include demand charge)
C18: Reference City | E18: =VLOOKUP((TRUNC(E12/100,0)),LocationFactors!B4:G911,3,FALSE) -> 
C21: Customary Contractor Charges for Overhead and Profit
E24: Default Value (%) | F24: User Input Value
C25: For Materials: | E25: 20 | G25: Enter as Percent
C26: For Equipment and Labor: | E26: 20 | G26: Enter as Percent

Sheet Wastewater Volume Calculator
A1: Inventory of Wastewater Sources | L1: Default Unit Values | M1: User-Provided Unit Values
A2: Residential Units | B2: Number of Residential Units | J2: Estimated Daily Wastewater Volume (gpd) | P2: Name: | Q2: ='User & Location Information'!E8 -> Mayor
A3: Number of 2 to 3 bedroom homes | J3: =IF(M3="",L3,M3)*C3 -> 0 | L3: 250 | M3: 863 | P3: Location: | Q3: ='User & Location Information'!E10 -> Any Town
A4: Number of homes > 3 bedroom | J4: =IF(M4="",L4,M4)*C4 -> 0 | L4: 300
A5: Number 1 bedroom apartments | J5: 0 | L5: 150
A6: Number of 2 to 3 bedroom apartments | J6: 0 | L6: 250
A7: Number of apartments > 3 bedroom | J7: 0 | L7: 300
A9: FACILITIES | B9: Number of Facilities | E9: Units | F9: Number of Units | J9: Estimated Daily Wastewater Volume (gpd)
A10: INSTITUTIONAL FACILITIES
A11: Medical and Correctional
A12: Hospital, medical | E12: beds | J12: =IF(M12="",L12,M12)*G12 -> 0 | L12: 172
E13: employees | J13: =IF(M13="",L13,M13)*G13 -> 0 | L13: 10.6
A14: Hospital, mental | E14: Beds | J14: 0 | L14: 106
E15: employees | J15: 0 | L15: 10.6
A16: Prison | E16: Inmates | J16: 0 | L16: 119
E17: employees | J17: 0 | L17: 10.6
A18: Rest home | E18: Residents | J18: 0 | L18: 92.5
E19: employees | J19: 0 | L19: 10.6
A20: Group Home | E20: Residents | J20: 0 | L20: 60
E21: employees | J21: 0 | L21: 10.6
A22: Religious Institutions (Churches, synagogues, etc.)
A23: Church, or similar with NO kitchen | E23: seats | J23: =IF(M23="",L23,M23)*G23 -> 0 | L23: 3
A24: Church or similar with kitchen | E24: seats | J24: 0 | L24: 5
A25: Educational Institutions (K-12, colleges, universities,etc.)
A26: NO cafeteria,gym,or showers | E26: students | J26: =IF(M26="",L26,M26)*G26 -> 0 | L26: 10.6
A27: With cafeteria only | E27: students | J27: 0 | L27: 15.9
A28: Schools w/cafeteria, gym and showers | E28: students | J28: 0 | L28: 21.1
A29: Day care facilities | E29: students | J29: 0 | L29: 15
A30: Schools, boarding | E30: students | J30: 0 | L30: 74
A31: Public Assembly Facilities
A32: Assembly Hall or Community Center | E32: seats | J32: 0 | L32: 5
A33: Auditoriums (not attached to school or chuch) | E33: seats | J33: 0 | L33: 5
A34: Stadium (sports, arenas, livestock sale barns) | E34: seats | J34: 0 | L34: 5
A35: COMMERCIAL FACILITIES
A36: General
A37: Grocery stores | E37: per 100 ft2 | J37: =IF(M37="",L37,M37)*G37 -> 0 | L37: 50
E38: employees | J38: 0 | L38: 25
A39: Barber shops | E39: chairs | J39: 0 | L39: 50
A40: Beauty parlor | E40: chairs | J40: 0 | L40: 125
A41: Laundry (self-service) | E41: machines | J41: 0 | L41: 580
A42: Convenience stores (fuel and sundries only) | E42: employees | J42: 0 | L42: 25
E43: customers | J43: 0 | L43: 3
A44: Food Service
A45: Convenience stores w/self serve hot dogs and similar | E45: employees | J45: =IF(M45="",L45,M45)*G45 -> 0 | L45: 25
E46: customers | J46: 0 | L46: 5
A47: Convenience store with short order | E47: employees | J47: 0 | L47: 50
E48: customers | J48: 0 | L48: 25
A49: Full service restaurant | E49: seats | J49: 0 | L49: 40
A50: Cafeteria | E50: customers | J50: 0 | L50: 1.6
E51: employees | J51: 0 | L51: 10.6
A52: Coffee Shop | E52: customers | J52: 0 | L52: 5.3
E53: employees | J53: 0 | L53: 10.6
A54: Short order | E54: customers | J54: 0 | L54: 5
A55: Bar (bottles and cans) | E55: customers | J55: 0 | L55: 2.1
E56: employees | J56: 0 | L56: 13.2
A57: Cocktail lounge (glassware) | E57: seats | J57: 0 | L57: 19.8
A58: Hotel | E58: guests | J58: 0 | L58: 52.8
E59: employees | J59: 0 | L59: 10.6
A60: Boarding house | E60: persons | J60: 0 | L60: 39.6
A61: Dormitory/bunkhouse | E61: persons | J61: 0 | L61: 39.6
A62: Retail/Professional/Entertainment
A63: Department store | E63: no. of restrooms | J63: =IF(M63="",L63,M63)*G63 -> 0 | L63: 528
E64: employees | J64: 0 | L64: 10.6
A65: Shopping center | E65: employees | J65: 0 | L65: 10.6
E66: Parking spaces | J66: 0 | L66: 1.1
A67: Theater | E67: seats | J67: 0 | L67: 2.6
A68: Bowling alley | E68: alleys | J68: 0 | L68: 200
A69: Office Building | E69: employees | J69: 0 | L69: 14.5
A70: Country club | E70: member | J70: 0 | L70: 20
E71: employees | J71: 0 | L71: 13.2
A72: Store, resort | E72: customers | J72: 0 | L72: 2.6
E73: employees | J73: 0 | L73: 10.6
A74: Swimming pool | E74: customers | J74: 0 | L74: 10.6
E75: employees | J75: 0 | L75: 10.6
A76: Camping/Resort/Tourist Facilities
A77: Day camp, without meals | E77: persons | J77: =IF(M77="",L77,M77)*G77 -> 0 | L77: 13.2
A78: Day camp with meals | E78: persons | J78: 0 | L78: 20
A79: Children's camp w/central toilet/bath | E79: persons | J79: 0 | L79: 10
A80: Trailer camp | E80: trailers | J80: 0 | L80: 40
A81: Campground-RV/tents | E81: per campsite | J81: 0 | L81: 75
A82: Luxury camp, private bath | E82: per campsite | J82: 0 | L82: 100
A83: Cabin, resort | E83: persons | J83: 0 | L83: 42.3
A84: Apartment, resort | E84: persons | J84: 0 | L84: 58.1
A85: Picnic park, flush toilets | E85: visitors | J85: 0 | L85: 5
A86: Public lavatory | E86: users | J86: 0 | L86: 2.6
A87: visitor center | E87: visitors | J87: 0 | L87: 2.6
A88: Fairground | E88: visitors | J88: 0 | L88: 2.6
A90: INDUSTRIAL FACILITIES
A91: Automobile service station | E91: vehicles served | J91: =IF(M91="",L91,M91)*G91 -> 0 | L91: 10.6
E92: employees | J92: 0 | L92: 13.2
A93: Industrial building(sanitary only) | E93: employees | J93: 0 | L93: 14.5
A94: Total Industrial process water discharged per day | D94: Type in gallons per day in box J94
A96: Number of Connections | C96: =SUM(C3:C7,C12,C14,C16,C18,C20,C23:C24,C26:C30,C32:C34,C37,C39:C42,C45,C47,C49:C50,C52,C54:C55,C57:C58,C60:C61,C63,C65,C67:C70,C72,C74,C77:C88,C91,C93) -> 0 | E96: Estimated Total Wastewater Volume per Day (gpd) | J96: =ROUNDUP(SUM(J3:J7,J12:J21,J23:J24,J26:J30,J32:J34,J37:J43,J45:J61,J63:J75,J77:J88,J91:J94),0) -> 0
Q100: Source: USEPA, 1992.

Sheet Soil Types & Application Rates
G2: Soil Texture | H2: Soil Structure | J2: Row Number | K2: Hydraulic Loading Rate (gallon per day per square foot)
K3: Effluent Strength cBOD5
H4: Shape | I4: Grade | K4: >25 mg/L | L4: <=25 mg/L
G5: Coarse Sand (COS) Sand (S) Loamy Coarse Sand (LCOS) Loamy Sand (LS) | H5: - | I5: 0 (Single Grain) | J5: 1 | K5: 0.8 | L5: 1.6
G6: Fine Sand (FS) Very Fine Sand (VFS) Loamy Fine Sand (LSF) Loamy Very Fine Sand (LVFS) | H6: - | I6: 0 (Single Grain) | J6: 2 | K6: 0.4 | L6: 1
G7: Coarse Sandy Loam (CSL) Sandy Loam (SL) | H7: - | I7: 0 (Massive) | J7: 3 | K7: 0.2 | L7: 0.6
H8: Platy (PL) | I8: 1 (Weak) | J8: 4 | K8: 0.2 | L8: 0.5
I9: 2 (Moderate) 3 (Strong) | J9: 5 | K9: 0 | L9: 0
H10: Prismatic (PR), Blocky (BK), Granular (GR) | I10: 1 (Weak) | J10: 6 | K10: 0.4 | L10: 0.7
I11: 2 (Moderate) 3 (Strong) | J11: 7 | K11: 0.6 | L11: 1
G12: Fine Sandy Loam (FSL) Very Fine Sandy Loam (VFSL) | H12: - | I12: 0 (Massive) | J12: 8 | K12: 0.2 | L12: 0.3
H13: Platy (PL) | I13: 1 (Weak) 2 (Moderate) 3 (Strong) | J13: 9 | K13: 0 | L13: 0
H14: Prismatic (PR), Blocky (BK), Granular (GR) | I14: 1 (Weak) | J14: 10 | K14: 0.2 | L14: 0.6
I15: 2 (Moderate) 3 (Strong) | J15: 11 | K15: 0.4 | L15: 0.8
G16: Loam (L) | H16: - | I16: 0 (Massive) | J16: 12 | K16: 0.2 | L16: 0.5
H17: Platy (PL) | I17: 1 (Weak) | J17: 13 | K17: 0 | L17: 0
H18: Prismatic (PR), Blocky (BK), Granular (GR) | I18: 1 (Weak) | J18: 14 | K18: 0.4 | L18: 0.6
I19: 2 (Moderate) 3 (Strong) | J19: 15 | K19: 0.6 | L19: 0.8
G20: Silt Loam (SIL) | H20: - | I20: 0 (Massive) | J20: 16 | K20: 0 | L20: 0.2
H21: Platy (PL) | I21: 1 (Weak) | J21: 17 | K21: 0 | L21: 0
H22: Prismatic (PR), Blocky (BK), Granular (GR) | I22: 1 (Weak) | J22: 18 | K22: 0.4 | L22: 0.6
I23: 2 (Moderate) 3 (Strong) | J23: 19 | K23: 0.6 | L23: 0.8
G24: Sandy Clay Loam (SCL) Clay Loam (CL) Silty Clay Loam (SICL) | H24: - | I24: 0 (Massive) | J24: 20 | K24: 0 | L24: 0
H25: Platy (PL) | I25: 1 (Weak) | J25: 21 | K25: 0 | L25: 0
H26: Prismatic (PR), Blocky (BK), Granular (GR) | I26: 1 (Weak) | J26: 22 | K26: 0.2 | L26: 0.3
I27: 2 (Moderate) 3 (Strong) | J27: 23 | K27: 0.4 | L27: 0.6
G28: Sandy Clay (SC) Clay (C) Silty Clay (SIC) | H28: - | I28: 0 (Massive) | J28: 24 | K28: 0 | L28: 0
H29: Platy (PL) | I29: 1 (Weak) | J29: 25 | K29: 0 | L29: 0
H30: Prismatic (PR), Blocky (BK), Granular (GR) | I30: 1 (Weak) | J30: 26 | K30: 0 | L30: 0
I31: 2 (Moderate) 3 (Strong) | J31: 27 | K31: 0.2 | L31: 0.3
H32: 1Infiltrative surface loading rate
F35: Enter the Row Number of the Selected Texture/Structure
G37: Silt Loam
H38: Selected Hydraulic Loading Rate (gpd/ft2) | K38: =VLOOKUP(K35,J5:L31,2,FALSE) ->  | L38: For Effluent with cBOD5 > 25 mg/L
K39: =VLOOKUP(K35,J5:L31,3,FALSE) ->  | L39: For Effluent with cBOD5 <= 25 mg/L
F41: Enter "1" if the cBOD5 is >25 mg/L or "2" if the cBOD5 is <= 25 mg/L | K41: 2
A44: Name: | B44: ='User & Location Information'!E8 -> Mayor | G44: Estimated Land Area Needed for Effluent Dispersal (acres)
A45: Location: | B45: ='User & Location Information'!E10 -> Any Town | G45: Wastewater Volume (gpd) | H45: Dispersal Technology
A46: Daily Wastewater Volume (gpd): | B46: ='Wastewater Volume Calculator'!J96 -> 0 | H46: Drip Irrigation | I46: Low Pressure Distribution | J46: Gravity Trenches and Beds | K46: Spray Irrigation
A47: Number of Connections: | B47: ='Wastewater Volume Calculator'!C96 -> 0 | G47: =B46 -> 0 | H47: =IF(K41=1, B46/K38/43560, IF(K41=2, B46/K39/43560)) ->  | I47: =IF(K41=1,(B46/K38/43560),IF(K41=2,(B46/K39/43560))) ->  | J47: =IF(K41=1, (B46/K38/43560/0.312), IF(K41=2, (B46/K39/43560/0.312))) ->  | K47: =IF(K41=1, (B46/K38/43560), IF(K41=2, B46/K39/43560)) -> 

Sheet Summary
A1: Process | B1: Stage | C1: Technology | D1: Capital (Does not include Engineering and other professional fees) | E1: Electric | F1: Maintenance | G1: Life Cycle Cost
A2: Collection | B2: Total Cost of Collection | C2: Effluent Sewer | D2: =('STEP-STEG Builder'!$L$30+'STEP-STEG Builder'!$L$58)+(('STEP-STEG Builder'!$L$30+'STEP-STEG Builder'!$L$58)*0.2) ->  | E2: ='STEP-STEG Builder'!G65 -> 0 | F2: =(('STEP-STEG Builder'!$G$74*'STEP-STEG Builder'!$J$4)+('STEP-STEG Builder'!$G$72))+((('STEP-STEG Builder'!$G$74*'STEP-STEG Builder'!$J$4)+('STEP-STEG Builder'!$G$72))*0.2) ->  | G2: ='STEP-STEG Builder'!G79:H79 -> 
A3: Collection | B3: Total Cost of Collection | C3: Gravity Sewer | D3: =('Gravity Sewer Builder'!$L$12+'Gravity Sewer Builder'!$L$40)+'Gravity Sewer Builder'!$L$12+'Gravity Sewer Builder'!$L$40*0.2 ->  | E3: 0 | F3: =(('Gravity Sewer Builder'!$G$57*'Gravity Sewer Builder'!$G$7)+('Gravity Sewer Builder'!$G$53))+(('Gravity Sewer Builder'!$G$57*'Gravity Sewer Builder'!$G$7)+('Gravity Sewer Builder'!$G$53))*0.2 ->  | G3: ='Gravity Sewer Builder'!G61:H61 -> 
A4: Collection | B4: Total Cost of Collection | C4: Low Pressure Sewer | D4: =('Low Pressure Sewer Builder'!$L$17+'Low Pressure Sewer Builder'!$L$45)+(('Low Pressure Sewer Builder'!$L$17+'Low Pressure Sewer Builder'!$L$45)*0.2) ->  | E4: 0 | F4: =((('Low Pressure Sewer Builder'!$G$62*'Low Pressure Sewer Builder'!$J$4)+'Low Pressure Sewer Builder'!$G$60))+(('Low Pressure Sewer Builder'!$G$62*'Low Pressure Sewer Builder'!$J$4)+'Low Pressure Sewer Builder'!$G$60)*0.2 ->  | G4: ='Low Pressure Sewer Builder'!G67:H67 -> 
A5: Collection | B5: Total Cost of Collection | C5: Vacuum Collection | D5: =('Vacuum Sewer Builder'!$L$12+'Vacuum Sewer Builder'!$L$50)+(('Vacuum Sewer Builder'!$L$12+'Vacuum Sewer Builder'!$L$50)*0.2) ->  | E5: 0 | F5: ='Vacuum Sewer Builder'!$G$70+'Vacuum Sewer Builder'!$G$70*0.2 ->  | G5: ='Vacuum Sewer Builder'!G78:H78 -> 
A6: Treatment | B6: Liquid/Solid Separation | C6: Primary Tank | D6: ='Primary Tank Builder'!$L$36+'Primary Tank Builder'!$L$36*0.2 ->  | F6: ='Primary Tank Builder'!$G$49+'Primary Tank Builder'!$G$49*0.2 ->  | G6: ='Primary Tank Builder'!G54:H54 -> 
A7: Treatment | B7: Liquid/Solid Separation | C7: Settling Pond (10-day detention) | D7: ='Settling Pond Builder'!$L$39+'Settling Pond Builder'!$L$39*0.2 ->  | F7: ='Settling Pond Builder'!$G$52+'Settling Pond Builder'!$G$52*0.2 ->  | G7: ='Settling Pond Builder'!G57:H57 -> 
A8: Treatment | B8: Liquid/Solid Separation | C8: STEP/STEG | D8: See STEP/STEG Under Collection Systems
A9: Treatment | B9: Oxygen Demand Removal | C9: Proprietary Media/Trickling Filters | D9: ='Proprietary Attached Growth'!L36+(0.2*'Proprietary Attached Growth'!L36) -> 0 | E9: ='Proprietary Attached Growth'!R4*'Wastewater Volume Calculator'!C3 -> 0 | F9: ='Proprietary Attached Growth'!R5 -> 71.42857143 | G9: ='Proprietary Attached Growth'!G54:H54 -> 5800.572873
A10: Treatment | B10: Oxygen Demand Removal | C10: Site-Built Recirculating Media Filter | D10: ='RSF Builder'!$L$37+'RSF Builder'!$L$37*0.2 ->  | E10: ='RSF Builder'!$G$44+'RSF Builder'!$G$44*0.2 -> 1.36656 | F10: ='RSF Builder'!$G$50+'RSF Builder'!$G$50*0.2 ->  | G10: ='RSF Builder'!G55:H55 -> 
A11: Treatment | B11: Oxygen Demand Removal | C11: Packaged Suspended-Growth | D11: ='Suspended Growth Builder'!$L$36+'Suspended Growth Builder'!$L$36*0.2 ->  | E11: ='Suspended Growth Builder'!$G$43+'Suspended Growth Builder'!$G$43*0.2 -> 1.36656 | F11: ='Suspended Growth Builder'!$G$49+'Suspended Growth Builder'!$G$49*0.2 ->  | G11: ='Suspended Growth Builder'!G54:H54 -> 
A12: Treatment | B12: Oxygen Demand Removal | C12: Lagoon (non-aerated) | D12: ='Lagoon Builder'!$L$36+'Lagoon Builder'!$L$36*0.2 ->  | E12: 0 | F12: ='Lagoon Builder'!$G$49+'Lagoon Builder'!$G$49*0.2 ->  | G12: ='Lagoon Builder'!G54:H54 -> 
A13: Treatment | B13: Pathogen Removal | C13: Ultraviolet Light Radiation | D13: ='UV Disinfection Builder'!$L$49+'UV Disinfection Builder'!$L$49*0.2 ->  | E13: ='UV Disinfection Builder'!$G$56+'UV Disinfection Builder'!$G$56*0.2 ->  | F13: ='UV Disinfection Builder'!$G$63+'UV Disinfection Builder'!$G$63*0.2 ->  | G13: ='UV Disinfection Builder'!G67:H67 -> 
A14: Treatment | B14: Pathogen Removal | C14: Chlorine Disinfection | D14: ='Chlorine Disinfection Builder'!$L$53+'Chlorine Disinfection Builder'!$L$53*0.2 ->  | E14: ='Chlorine Disinfection Builder'!$G$60+'Chlorine Disinfection Builder'!$G$60*0.2 ->  | F14: ='Chlorine Disinfection Builder'!$G$67+'Chlorine Disinfection Builder'!$G$67*0.2 ->  | G14: ='Chlorine Disinfection Builder'!G71:H71 -> 
A15: Treatment | B15: Nutrient Removal | C15: Nitrogen Reduction | D15: See Nutrient Removal Factsheet T6
A16: Treatment | B16: Nutrient Removal | C16: Phosphorus Reduction | D16: See Nutrient Removal Factsheet T6
A17: Dispersal | B17: Total Cost of Dispersal | C17: Drip Irrigation | D17: ='Drip Dispersal Builder'!$L$67+'Drip Dispersal Builder'!$L$67*0.2 ->  | E17: ='Drip Dispersal Builder'!$G$74+'Drip Dispersal Builder'!$G$74*0.2 ->  | F17: ='Drip Dispersal Builder'!$G$81+'Drip Dispersal Builder'!$G$81*0.2 ->  | G17: ='Drip Dispersal Builder'!G85:H85 -> 
A18: Dispersal | B18: Total Cost of Dispersal | C18: Gravity Trenches/Beds | D18: ='Gravity Trench Builder'!$L$62+'Gravity Trench Builder'!$L$62*0.2 ->  | E18: ='Gravity Trench Builder'!$G$69+'Gravity Trench Builder'!$G$69*0.2 -> 0 | F18: ='Gravity Trench Builder'!$G$76+'Gravity Trench Builder'!$G$76*0.2 ->  | G18: ='Gravity Trench Builder'!G80:H80 -> 
A19: Dispersal | B19: Total Cost of Dispersal | C19: Spray Irrigation | D19: ='Spray Irrigation Builder'!$L$62+'Spray Irrigation Builder'!$L$62*0.2 ->  | E19: ='Spray Irrigation Builder'!$G$69+'Spray Irrigation Builder'!$G$69*0.2 ->  | F19: ='Spray Irrigation Builder'!$G$77+'Spray Irrigation Builder'!$G$77*0.2 ->  | G19: ='Spray Irrigation Builder'!G81:H81 -> 
A20: Dispersal | B20: Total Cost of Dispersal | C20: Low Pressure Distribution | D20: ='Low Pressure Distribution'!$L$62+'Low Pressure Distribution'!$L$62*0.2 ->  | E20: ='Low Pressure Distribution'!$G$69+'Low Pressure Distribution'!$G$69*0.2 ->  | F20: ='Low Pressure Distribution'!$G$76+'Low Pressure Distribution'!$G$76*0.2 ->  | G20: ='Low Pressure Distribution'!G80:H80 -> 
A21: Dispersal | B21: Total Cost of Dispersal | C21: Surface Water Discharge | D21: ? | E21: ? | F21: ?
A22: Inflationary Change from June 2009 USD
A23: 1.21 | B23: as of November 2020
B24: https://www.bls.gov/data/inflation_calculator.htm
A26: This suggests that the most economical solution is: | D26: Capital Cost (Note: Any manually input costs, e.g. proprietary growth treatment units, should not be multiplied by the inflaionary factor) | E26: Annual Electric | F26: Annual Maintenance (Default is +20% Margin of Error) | G26: Annual O&M
A27: Collection | B27: =IF(MIN(G2:G5)=G2,C2,IF(MIN(G2:G5)=G3,C3,IF(MIN(G2:G5)=G4,C4,IF(MIN(G2:G5)=GG5,C5)))) ->  | D27: =(D2+D9+D13+D17)*A23 ->  | E27: =E9+E13+E17 ->  | F27: =F2+F9+F13+F17 ->  | G27: =F27+E27 -> 
A28: Treatment (Liquid / Solid Separation) NOTE: Liquid/Solid separation already achieved in effluent sewer | B28: =IF(B27="Effluent Sewer",0,IF(MIN(G6:G8)=G6,C6,IF(MIN(G6:G8)=G7,C7,IF(MIN(G6:G8)=G8,C8)))) -> 
A29: Treatment (BOD Removal) NOTE: Lagoon is assumed fully passive. Need engineer to look at aerated lagoon. | B29: =IF(MIN(G9:G12)=G9,C9,IF(MIN(G9:G12)=G10,C10,IF(MIN(G9:G12)=G11,C11,IF(MIN(G9:G12)=G12,C12)))) -> 
A30: Treatment (Disinfection) | B30: =IF(MIN(G13:G13)=G13,C13,IF(MIN(G13:G14)=G14,C14)) ->  | E30: What is included in Annual Maintenance
A31: Dispersal (NOTE: NPEDES still needs evaluated) | B31: =IF(MIN(G17:G21)=G17,C17,IF(MIN(G17:G21)=G18,C18,IF(MIN(G17:G21)=G19,C19,IF(MIN(G17:G21)=G20,C20,IF(MIN(G17:G21)=G21,C21))))) ->  | E31: Collection | F31: Annual Maintenance Salary | G31: ='STEP-STEG Builder'!G69 -> 
F32: Pump 20% of tanks each yr | G32: ='STEP-STEG Builder'!G70 -> 
A33: However, if subsurface discharge is accomplished, disinfection can be avoided. | F33: Replace STEP pumps & controls / 10 yr | G33: ='STEP-STEG Builder'!G71 -> 
D34: =1.2*E34 ->  | E34: =G31+G32+G33+G34 ->  | F34: On site pump out and replacement of pump & controls / 10 years | G34: ='STEP-STEG Builder'!G74*'Wastewater Volume Calculator'!C3 -> 
A35: Once you have multiple homes, then it's NPDES, unless we can take multiple homes and discharge subsoil | E35: Treatment: Proprietary Attached Growth | F35: ='Proprietary Attached Growth'!F47 -> Annual Maintenance Contract: | G35: ='Proprietary Attached Growth'!G47 -> 0 | H35: ='Proprietary Attached Growth'!H47 -> $0.50/gpd
D36: =E36 -> 71.42857143 | E36: =G35+G36 -> 71.42857143 | F36: ='Proprietary Attached Growth'!F48 -> Annualized Pump Replacement: | G36: ='Proprietary Attached Growth'!G48 -> 71.42857143 | H36: ='Proprietary Attached Growth'!H48 -> assume 7 yr pump life
A37: Key questions would be, where is there an adequately sized lot to discharge subsoil? | E37: Treatment: Disinfection | F37: Annual Lamp Replacement | G37: ='UV Disinfection Builder'!G60 -> 100
A38: Where is that in relation to the failing systems? | F38: Annual Maintenance Contract (Based on Flow $0.50 per GPD) | G38: ='UV Disinfection Builder'!G61 -> 0
D39: =1.2*E39 ->  | E39: =G37+G38+G39 ->  | F39: Replace Whole Unit every 10 yrs | G39: ='UV Disinfection Builder'!G62 -> 
E40: Dispersal | F40: Based on Flow | G40: ='Drip Dispersal Builder'!G78 -> 0 | H40: ='Drip Dispersal Builder'!H78 -> 50% of gpd
F41: Annualized Pump Replacement | G41: ='Drip Dispersal Builder'!G79 ->  | H41: assume 7 yr pump life
D42: =1.2*E42 ->  | E42: =G40+G41+G42 ->  | F42: Annualized Drip System Replacement | G42: ='Drip Dispersal Builder'!G80 ->  | H42: ='Drip Dispersal Builder'!H80 -> 30 yr replacement
D43: =SUM(D42,D39,D36,D34) ->  | G43: =SUM(G31:G42) -> 
D44: +20% Margin of Error | G44: Basic Estimate

Sheet Dispersal_Disposal Technologies
A1: Name: | B1: ='User & Location Information'!E8 -> Mayor
A2: Location: | B2: ='User & Location Information'!E10 -> Any Town
A3: Daily Wastewater Volume (gpd): | B3: ='Wastewater Volume Calculator'!J96 -> 0
A4: Number of Connections: | B4: ='Wastewater Volume Calculator'!C96 -> 0
A5: Selected Soil Texture: | B5: ='Soil Types & Application Rates'!G37 -> Silt Loam
A8: Cost Description | B8: Gravity Trenches/Beds | E8: Low Pressure Distribution | H8: Drip Irrigation | K8: Spray Irrigation | N8: Surface Water Discharge
A9: Installation Cost of Dispersal/Disposal System | B9: ='Gravity Trench Builder'!$L$62-'Gravity Trench Builder'!$L$62*0.2 ->  | C9: to | D9: ='Gravity Trench Builder'!$L$62+'Gravity Trench Builder'!$L$62*0.2 ->  | E9: ='Low Pressure Distribution'!$L$62-'Low Pressure Distribution'!$L$62*0.2 ->  | F9: to | G9: ='Low Pressure Distribution'!$L$62+'Low Pressure Distribution'!$L$62*0.2 ->  | H9: ='Drip Dispersal Builder'!$L$67-'Drip Dispersal Builder'!$L$67*0.2 ->  | I9: to | J9: ='Drip Dispersal Builder'!$L$67+'Drip Dispersal Builder'!$L$67*0.2 ->  | K9: ='Spray Irrigation Builder'!$L$62-'Spray Irrigation Builder'!$L$62*0.2 ->  | L9: to | M9: ='Spray Irrigation Builder'!$L$62+'Spray Irrigation Builder'!$L$62*0.2 ->  | N9: Cost of Developing a Point Source Discharge is too Dependent on Local Conditions
A10: Installation Cost of Dispersal/Disposal System on a per Connection Basis | B10: =B9/B4 ->  | C10: to | D10: =D9/B4 ->  | E10: =E9/B4 ->  | F10: to | G10: =G9/B4 ->  | H10: =H9/B4 ->  | I10: to | J10: =J9/B4 ->  | K10: =K9/B4 ->  | L10: to | M10: =M9/B4 -> 
A11: System Energy Cost per Year | B11: ='Gravity Trench Builder'!$G$69-'Gravity Trench Builder'!$G$69*0.2 -> 0 | C11: to | D11: ='Gravity Trench Builder'!$G$69+'Gravity Trench Builder'!$G$69*0.2 -> 0 | E11: ='Low Pressure Distribution'!$G$69-'Low Pressure Distribution'!$G$69*0.2 ->  | F11: to | G11: ='Low Pressure Distribution'!$G$69+'Low Pressure Distribution'!$G$69*0.2 ->  | H11: ='Drip Dispersal Builder'!$G$74-'Drip Dispersal Builder'!$G$74*0.2 ->  | I11: to | J11: ='Drip Dispersal Builder'!$G$74+'Drip Dispersal Builder'!$G$74*0.2 ->  | K11: ='Spray Irrigation Builder'!$G$69-'Spray Irrigation Builder'!$G$69*0.2 ->  | L11: to | M11: ='Spray Irrigation Builder'!$G$69+'Spray Irrigation Builder'!$G$69*0.2 -> 
A12: Maintenance Cost per Year | B12: ='Gravity Trench Builder'!$G$76-'Gravity Trench Builder'!$G$76*0.2 ->  | C12: to | D12: ='Gravity Trench Builder'!$G$76+'Gravity Trench Builder'!$G$76*0.2 ->  | E12: ='Low Pressure Distribution'!$G$76-'Low Pressure Distribution'!$G$76*0.2 ->  | F12: to | G12: ='Low Pressure Distribution'!$G$76+'Low Pressure Distribution'!$G$76*0.2 ->  | H12: ='Drip Dispersal Builder'!$G$81-'Drip Dispersal Builder'!$G$81*0.2 ->  | I12: to | J12: ='Drip Dispersal Builder'!$G$81+'Drip Dispersal Builder'!$G$81*0.2 ->  | K12: ='Spray Irrigation Builder'!$G$77-'Spray Irrigation Builder'!$G$77*0.2 ->  | L12: to | M12: ='Spray Irrigation Builder'!$G$77+'Spray Irrigation Builder'!$G$77*0.2 -> 
A13: Approximate Area Needed | B13: ='Gravity Trench Builder'!G14 ->  | C13: ft2 | E13: ='Low Pressure Distribution'!G7 ->  | F13: ft2 | H13: ='Drip Dispersal Builder'!G4 ->  | I13: ft2 | K13: ='Spray Irrigation Builder'!G6 ->  | L13: ft2
A14: Potential Treatment needed before Dispersal | C14: 1 | F14: 1 | I14: 1, 2 | L14: 1, 2, 3 | N14: 1, 2, 3, 4
A15: 1The area requirements for the various application methods do not include reserve area, which may be required by local regulations
A17: Treatment - Wastewater Constituents that may be Limited by Permit or by Technology
A18: 1 | B18: Solids separation - primary treatment
A19: 2 | B19: Oxygen Demand - reduction of dissolved biodegradable organic compounds
A20: 3 | B20: Disinfection - reduction of indicator organisms
A21: 4 | B21: Ammonia Limit - Surface water discharges are usually ammonia limited
A22: 5 | B22: Nitrate Limit - nitrate can be toxic in drinking water and cause eutrophication in surface waters
A23: 6 | B23: Phosphate Limit - phosphate can cause eutrophication in surface waters

Sheet Treatment Technologies
B2: Name: | C2: ='User & Location Information'!E8 -> Mayor
B3: Location: | C3: ='User & Location Information'!E10 -> Any Town
B4: Daily Wastewater Volume (gpd): | C4: ='Wastewater Volume Calculator'!J96 -> 0
B5: Number of Connections: | C5: ='Wastewater Volume Calculator'!C96 -> 0
B6: Selected Soil Texture: | C6: ='Soil Types & Application Rates'!G37 -> Silt Loam
B11: Liquid/Solid Separation | C11: Estimated Capital Cost1 | F11: Estimated Annual Electrical Cost | I11: Estimated Annual Maintenance Cost
B12: Primary Tank | C12: ='Primary Tank Builder'!$L$36-'Primary Tank Builder'!$L$36*0.2 ->  | D12: to | E12: ='Primary Tank Builder'!$L$36+'Primary Tank Builder'!$L$36*0.2 ->  | F12: ='Primary Tank Builder'!G43 -> 0 | I12: ='Primary Tank Builder'!$G$49-'Primary Tank Builder'!$G$49*0.2 ->  | J12: to | K12: ='Primary Tank Builder'!$G$49+'Primary Tank Builder'!$G$49*0.2 -> 
B14: Settling Pond (10-day detention) | C14: ='Settling Pond Builder'!$L$39-'Settling Pond Builder'!$L$39*0.2 ->  | D14: to | E14: ='Settling Pond Builder'!$L$39+'Settling Pond Builder'!$L$39*0.2 ->  | F14: ='Settling Pond Builder'!G46 -> 0 | I14: ='Settling Pond Builder'!$G$52-'Settling Pond Builder'!$G$52*0.2 ->  | J14: to | K14: ='Settling Pond Builder'!$G$52+'Settling Pond Builder'!$G$52*0.2 -> 
B16: STEP/STEG | C16: See STEP/STEG Under Collection Systems
B19: Oxygen Demand Removal
B20: Site-Built Recirculating Media Filter | C20: ='RSF Builder'!$L$37-'RSF Builder'!$L$37*0.2 ->  | D20: to | E20: ='RSF Builder'!$L$37+'RSF Builder'!$L$37*0.2 ->  | F20: ='RSF Builder'!$G$44-'RSF Builder'!$G$44*0.2 -> 0.91104 | G20: to | H20: ='RSF Builder'!$G$44+'RSF Builder'!$G$44*0.2 -> 1.36656 | I20: ='RSF Builder'!$G$50-'RSF Builder'!$G$50*0.2 ->  | J20: to | K20: ='RSF Builder'!$G$50+'RSF Builder'!$G$50*0.2 -> 
B22: Packaged Suspended-Growth | C22: ='Suspended Growth Builder'!$L$36-'Suspended Growth Builder'!$L$36*0.2 ->  | D22: to | E22: ='Suspended Growth Builder'!$L$36+'Suspended Growth Builder'!$L$36*0.2 ->  | F22: ='Suspended Growth Builder'!$G$43-'Suspended Growth Builder'!$G$43*0.2 -> 0.91104 | G22: to | H22: ='Suspended Growth Builder'!$G$43+'Suspended Growth Builder'!$G$43*0.2 -> 1.36656 | I22: ='Suspended Growth Builder'!$G$49-'Suspended Growth Builder'!$G$49*0.2 ->  | J22: to | K22: ='Suspended Growth Builder'!$G$49+'Suspended Growth Builder'!$G$49*0.2 -> 
B24: Proprietary Media/Trickling Filters | C24: ='Proprietary Attached Growth'!L36 - (0.2*'Proprietary Attached Growth'!L36) -> 0 | D24: to | E24: ='Proprietary Attached Growth'!L36+(0.2*'Proprietary Attached Growth'!L36) -> 0 | F24: ='Proprietary Attached Growth'!G43-(0.2*'Proprietary Attached Growth'!G43) -> 74.47752 | G24: to | H24: ='Proprietary Attached Growth'!G43+(0.2*'Proprietary Attached Growth'!G43) -> 111.71628 | I24: ='Proprietary Attached Growth'!G49-(0.2*'Proprietary Attached Growth'!G49) -> 57.14285714 | J24: to | K24: ='Proprietary Attached Growth'!G49+(0.2*'Proprietary Attached Growth'!G49) -> 85.71428571
B26: Lagoon (non-aerated) | C26: ='Lagoon Builder'!$L$36-'Lagoon Builder'!$L$36*0.2 ->  | D26: to | E26: ='Lagoon Builder'!$L$36+'Lagoon Builder'!$L$36*0.2 ->  | F26: Natural Aeration | I26: ='Lagoon Builder'!$G$49-'Lagoon Builder'!$G$49*0.2 ->  | J26: to | K26: ='Lagoon Builder'!$G$49+'Lagoon Builder'!$G$49*0.2 -> 
B29: Pathogen Removal
B30: Chlorine Disinfection | C30: ='Chlorine Disinfection Builder'!$L$53-'Chlorine Disinfection Builder'!$L$53*0.2 ->  | D30: to | E30: ='Chlorine Disinfection Builder'!$L$53+'Chlorine Disinfection Builder'!$L$53*0.2 ->  | F30: ='Chlorine Disinfection Builder'!$G$60-'Chlorine Disinfection Builder'!$G$60*0.2 ->  | G30: to | H30: ='Chlorine Disinfection Builder'!$G$60+'Chlorine Disinfection Builder'!$G$60*0.2 ->  | I30: ='Chlorine Disinfection Builder'!$G$67-'Chlorine Disinfection Builder'!$G$67*0.2 ->  | J30: to | K30: ='Chlorine Disinfection Builder'!$G$67+'Chlorine Disinfection Builder'!$G$67*0.2 -> 
B32: Ultraviolet Light Radiation | C32: ='UV Disinfection Builder'!$L$49-'UV Disinfection Builder'!$L$49*0.2 ->  | D32: to | E32: ='UV Disinfection Builder'!$L$49+'UV Disinfection Builder'!$L$49*0.2 ->  | F32: ='UV Disinfection Builder'!$G$56-'UV Disinfection Builder'!$G$56*0.2 ->  | G32: to | H32: ='UV Disinfection Builder'!$G$56+'UV Disinfection Builder'!$G$56*0.2 ->  | I32: ='UV Disinfection Builder'!$G$63-'UV Disinfection Builder'!$G$63*0.2 ->  | J32: to | K32: ='UV Disinfection Builder'!$G$63+'UV Disinfection Builder'!$G$63*0.2 -> 
B35: Nutrient Removal
B36: Nitrogen Reduction | C36: See Nutrient Removal Factsheet T6
B38: Phosphorus Reduction | C38: See Nutrient Removal Factsheet T6
C39: 1Does not include Engineering and other Professional Fees

Sheet Collection Technologies
B2: Name: | C2: ='User & Location Information'!E8 -> Mayor
B3: Location: | C3: ='User & Location Information'!E10 -> Any Town
B4: Daily Wastewater Volume (gpd): | C4: ='Wastewater Volume Calculator'!J96 -> 0
B5: Number of Connections: | C5: ='Wastewater Volume Calculator'!C96 -> 0
B6: Selected Soil Texture: | C6: ='Soil Types & Application Rates'!G37 -> Silt Loam
B7: Typical Distance Between Sources: | C7: 200
B9: Estimated Road Frontage (feet): | C9: =C5*C7/2 -> 0 | E9: Assumes that Half of Sources are on opposite Side of Street
A11: Enter the percentage of the effluent-sewer network that will be a gravity-based: | C11: 0 | E11: percentage (0 to 100%)
C13: Collection Technology
A14: Cost Description (Not Including Engineering and other Professional Fees) | C14: Low Pressure Sewer | F14: Effluent Sewer | I14: Vacuum Collection | L14: Gravity Sewer
A15: Installation Cost of Collection Network1 | C15: ='Low Pressure Sewer Builder'!$L$45-'Low Pressure Sewer Builder'!$L$45*0.2 ->  | D15: to | E15: ='Low Pressure Sewer Builder'!$L$45+'Low Pressure Sewer Builder'!$L$45*0.2 ->  | F15: ='STEP-STEG Builder'!$L$58-'STEP-STEG Builder'!$L$58*0.2 ->  | G15: to | H15: ='STEP-STEG Builder'!$L$58+'STEP-STEG Builder'!$L$58*0.2 ->  | I15: =IF($C$5<200, "Not Feasible ",'Vacuum Sewer Builder'!$L$50-'Vacuum Sewer Builder'!$L$50*0.2) -> Not Feasible | J15: =IF($C$5<200,"", "to") ->  | K15: =IF($C$5<200, " ",'Vacuum Sewer Builder'!$L$50+'Vacuum Sewer Builder'!$L$50*0.2) ->  | L15: =('Gravity Sewer Builder'!$L$40)-('Gravity Sewer Builder'!$L$40)*0.2 ->  | M15: to | N15: =('Gravity Sewer Builder'!$L$40)+('Gravity Sewer Builder'!$L$40)*0.2 -> 
A16: Installation Cost of On-Lot Components (one connection) | C16: ='Low Pressure Sewer Builder'!$L$16-0.2*'Low Pressure Sewer Builder'!$L$16 ->  | D16: to | E16: ='Low Pressure Sewer Builder'!$L$16+0.2*'Low Pressure Sewer Builder'!$L$16 ->  | F16: =('STEP-STEG Builder'!$L$28)-(('STEP-STEG Builder'!$L$28)*0.2) ->  | G16: to | H16: =('STEP-STEG Builder'!$L$28)+(('STEP-STEG Builder'!$L$28)*0.2) ->  | I16: =IF(C5<200,"",('Vacuum Sewer Builder'!$J$12-('Vacuum Sewer Builder'!$J$12)*0.2)) ->  | J16: =IF($C$5<200,"", "to") ->  | K16: =IF(C5<200, "",('Vacuum Sewer Builder'!$J$12)+('Vacuum Sewer Builder'!$J$12)*0.2) ->  | L16: ='Gravity Sewer Builder'!$L$10-'Gravity Sewer Builder'!$L$10*0.2 ->  | M16: to | N16: ='Gravity Sewer Builder'!$L$10+'Gravity Sewer Builder'!$L$10*0.2 -> 
A17: Total Installation Cost for Collection Network & On-Lot Components | C17: =('Low Pressure Sewer Builder'!$L$17+'Low Pressure Sewer Builder'!$L$45)-(('Low Pressure Sewer Builder'!$L$17+'Low Pressure Sewer Builder'!$L$45)*0.2) ->  | D17: to | E17: =('Low Pressure Sewer Builder'!$L$17+'Low Pressure Sewer Builder'!$L$45)+(('Low Pressure Sewer Builder'!$L$17+'Low Pressure Sewer Builder'!$L$45)*0.2) ->  | F17: =('STEP-STEG Builder'!$L$30+'STEP-STEG Builder'!$L$58)-(('STEP-STEG Builder'!$L$30+'STEP-STEG Builder'!$L$58)*0.2) ->  | G17: to | H17: =('STEP-STEG Builder'!$L$30+'STEP-STEG Builder'!$L$58)+(('STEP-STEG Builder'!$L$30+'STEP-STEG Builder'!$L$58)*0.2) ->  | I17: =('Vacuum Sewer Builder'!$L$12+'Vacuum Sewer Builder'!$L$50)-('Vacuum Sewer Builder'!$L$12+'Vacuum Sewer Builder'!$L$50)*0.2 ->  | J17: to | K17: =('Vacuum Sewer Builder'!$L$12+'Vacuum Sewer Builder'!$L$50)+(('Vacuum Sewer Builder'!$L$12+'Vacuum Sewer Builder'!$L$50)*0.2) ->  | L17: =('Gravity Sewer Builder'!$L$12+'Gravity Sewer Builder'!$L$40)-'Gravity Sewer Builder'!$L$12+'Gravity Sewer Builder'!$L$40*0.2 ->  | M17: to | N17: =('Gravity Sewer Builder'!$L$12+'Gravity Sewer Builder'!$L$40)+'Gravity Sewer Builder'!$L$12+'Gravity Sewer Builder'!$L$40*0.2 -> 
A18: Total Collection System Cost on a per Connection Basis | C18: =C17/C5 ->  | D18: to | E18: =E17/C5 ->  | F18: =F17/C5 ->  | G18: to | H18: =H17/C5 ->  | I18: =I17/C5 ->  | J18: to | K18: =K17/C5 ->  | L18: =L17/C5 ->  | M18: to | N18: =N17/C5 -> 
A19: Annual On-Lot Maintenance Costs (assuming lot owner is responsible for maintenance) | C19: ='Low Pressure Sewer Builder'!$G$62-'Low Pressure Sewer Builder'!$G$62*0.2 ->  | D19: to | E19: ='Low Pressure Sewer Builder'!$G$62+'Low Pressure Sewer Builder'!$G$62*0.2 ->  | F19: ='STEP-STEG Builder'!$G$74-'STEP-STEG Builder'!$G$74*0.2 ->  | G19: to | H19: ='STEP-STEG Builder'!$G$74 ->  | I19: Maintained by Utility | L19: =('Gravity Sewer Builder'!$G$57)-('Gravity Sewer Builder'!$G$57)*0.2 -> 16 | M19: to | N19: =('Gravity Sewer Builder'!$G$57)+('Gravity Sewer Builder'!$G$57)*0.2 -> 24
A20: Annual Maintenance Cost for both Collection Network & On-Lot Components (assuming the utility conducts the on-lot maintenance) | C20: =((('Low Pressure Sewer Builder'!$G$62*'Low Pressure Sewer Builder'!$J$4)+'Low Pressure Sewer Builder'!$G$60))-(('Low Pressure Sewer Builder'!$G$62*'Low Pressure Sewer Builder'!$J$4)+'Low Pressure Sewer Builder'!$G$60)*0.2 ->  | D20: to | E20: =((('Low Pressure Sewer Builder'!$G$62*'Low Pressure Sewer Builder'!$J$4)+'Low Pressure Sewer Builder'!$G$60))+(('Low Pressure Sewer Builder'!$G$62*'Low Pressure Sewer Builder'!$J$4)+'Low Pressure Sewer Builder'!$G$60)*0.2 ->  | F20: =(('STEP-STEG Builder'!$G$74*'STEP-STEG Builder'!$J$4)+('STEP-STEG Builder'!$G$72))-(('STEP-STEG Builder'!$G$74*'STEP-STEG Builder'!$J$4)+('STEP-STEG Builder'!$G$72))*0.2 ->  | G20: to | H20: =(('STEP-STEG Builder'!$G$74*'STEP-STEG Builder'!$J$4)+('STEP-STEG Builder'!$G$72))+(('STEP-STEG Builder'!$G$74*'STEP-STEG Builder'!$J$4)+('STEP-STEG Builder'!$G$72))*0.2 ->  | I20: ='Vacuum Sewer Builder'!$G$70-'Vacuum Sewer Builder'!$G$70*0.2 ->  | J20: to | K20: ='Vacuum Sewer Builder'!$G$70+'Vacuum Sewer Builder'!$G$70*0.2 ->  | L20: =(('Gravity Sewer Builder'!$G$57*'Gravity Sewer Builder'!$G$7)+('Gravity Sewer Builder'!$G$53))-(('Gravity Sewer Builder'!$G$57*'Gravity Sewer Builder'!$G$7)+('Gravity Sewer Builder'!$G$53))*0.2 ->  | M20: to | N20: =(('Gravity Sewer Builder'!$G$57*'Gravity Sewer Builder'!$G$7)+('Gravity Sewer Builder'!$G$53))+(('Gravity Sewer Builder'!$G$57*'Gravity Sewer Builder'!$G$7)+('Gravity Sewer Builder'!$G$53))*0.2 -> 
C21: 1These cost do not include the purchase and installation of the on-lot components
C22: 2These cost include one vacuum pod for every two connections

Sheet STEP-STEG Builder
A1: STEP/STEG Effluent Sewer Costing Information | F1: Technology: Collection | L1: Page 1
F2: Assumptions: STEP/STEG - 200 Homes | I2: Half the homes on opposite side of road from force main | Q2: System Life (years) | R2: =G77 -> 60
A3: Item | C3: Default Unit Cost | D3: Location Factor Unit Cost | E3: User Provided Unit Cost | I3: Distance between sources | J3: ='Collection Technologies'!C7 -> 200 | Q3: Construction and Installation Costs | R3: =L58 -> 
F4: Daily Wastewater Volume | G4: ='Wastewater Volume Calculator'!J96 -> 0 | H4: gpd | I4: Number of Connections: | J4: ='Wastewater Volume Calculator'!C96 -> 0 | Q4: Annual Energy Costs | R4: =G65 -> 0
A5: On-Lot Costs | I5: ratio of STEG to STEP | J5: 0 | Q5: Annual Maintenance Cost | R5: =G72 -> 
Q6: Discount Factor (as percent) | R6: =J70 -> 0.05
A7: STEP Tank: | C7: 1100 | D7: =(VLOOKUP(TRUNC('User & Location Information'!$E$12/100,0),LocationFactors!$B$4:$G$911,4,FALSE))/100*C7 ->  | F7: On-Lot Components STEP | G7: Units | I7: Notes | J7: Unit Cost | L7: Cost | Q7: Inflation Rate (as percent) | R7: =J69 -> 0.03
A8: Risers and Lids: | C8: 170 | D8: =(VLOOKUP(TRUNC('User & Location Information'!$E$12/100,0),LocationFactors!$B$4:$G$911,4,FALSE))/100*C8 ->  | F8: STEP Tank: | G8: =J$4*(1-$J$5) -> 0 | J8: =IF(E7="",D7,E7) ->  | L8: =G8*J8 -> 
A9: Pump: | C9: 345 | D9: =(VLOOKUP(TRUNC('User & Location Information'!$E$12/100,0),LocationFactors!$B$4:$G$911,4,FALSE))/100*C9 ->  | F9: Risers and Lids: | G9: =J$4*(1-$J$5) -> 0 | J9: =IF(E8="",D8,E8) ->  | L9: =G9*J9 ->  | Q9: Present Value of System Life Cycle Cost | R9: =SUM(T13:T73) -> 
A10: Pump Vault: | C10: 206 | D10: =(VLOOKUP(TRUNC('User & Location Information'!$E$12/100,0),LocationFactors!$B$4:$G$911,4,FALSE))/100*C10 ->  | F10: Pump: | G10: 0
A11: Pump Controls: | C11: 632 | D11: =(VLOOKUP(TRUNC('User & Location Information'!$E$12/100,0),LocationFactors!$B$4:$G$911,4,FALSE))/100*C11 ->  | F11: Pump Vault: | G11: 0 | M11: Year | N11: Annualized Costs | P11: Periodic Costs | Q11: Total Cost in Year Zero | R11: Sum Cost of Year | S11: Sum Cost of Year Adjusted for Inflation | T11: Present Value of Cost of Year | U11: Inflation Factor | V11: Discount Factor
A12: 2" Pipeline to Forcemain: | C12: 287 | D12: =(VLOOKUP(TRUNC('User & Location Information'!$E$12/100,0),LocationFactors!$B$4:$G$911,4,FALSE))/100*C12 ->  | F12: Pump Controls: | G12: 0 | N12: Energy | O12: Maintenance
A13: 2" Check Valve: | C13: 30 | D13: =(VLOOKUP(TRUNC('User & Location Information'!$E$12/100,0),LocationFactors!$B$4:$G$911,4,FALSE))/100*C13 ->  | F13: 2" Pipeline to Forcemain: | G13: 0 | M13: 0 | Q13: =R3 ->  | R13: =IF($R$2>=$M$13,(SUM(N13:P13)+Q13),"") ->  | S13: =R13*U13 ->  | T13: =S13*V13 ->  | U13: =IF(R$2>=M13,((1+R$7)^M13),"") -> 1 | V13: =IF(R$2>=M13,((1/(1+R$6)^M13)),"") -> 1
A14: 12" Valve Box: | C14: 23 | D14: =(VLOOKUP(TRUNC('User & Location Information'!$E$12/100,0),LocationFactors!$B$4:$G$911,4,FALSE))/100*C14 ->  | F14: 2" Check Valve: | G14: 0 | M14: =IF(ISERROR(IF($R$2>=M13+1,M13+1,"")),"",IF($R$2>=M13+1,M13+1,"")) -> 1 | N14: =IF(M14<=$R$2, $R$4, "") -> 0 | O14: =IF(M14<=$R$2,$R$5,"") ->  | R14: =IF(M14<=$R$2,SUM(N14:P14),"") ->  | S14: =IF(M14<=$R$2,R14*U14,"") ->  | T14: =IF(M14<=$R$2,S14*V14,"") ->  | U14: 1.03 | V14: 0.9523809524
A15: 2" Ball Valve: | C15: 83 | D15: =(VLOOKUP(TRUNC('User & Location Information'!$E$12/100,0),LocationFactors!$B$4:$G$911,4,FALSE))/100*C15 ->  | F15: 12" Valve Box: | G15: 0 | M15: =IF(ISERROR(IF($R$2>=M14+1,M14+1,"")),"",IF($R$2>=M14+1,M14+1,"")) -> 2 | N15: =IF(M15<=$R$2, $R$4, "") -> 0 | O15: =IF(M15<=$R$2,$R$5,"") ->  | R15: =IF(M15<=$R$2,SUM(N15:P15),"") ->  | S15: =IF(M15<=$R$2,R15*U15,"") ->  | T15: =IF(M15<=$R$2,S15*V15,"") ->  | U15: 1.0609 | V15: 0.9070294785
A16: Labor and Equipment to install On Lot STEP Components | F16: 2" Ball Valve: | G16: 0 | M16: 3 | N16: 0 | U16: 1.092727 | V16: 0.8638375985
C17: 1540 | D17: =(VLOOKUP(TRUNC('User & Location Information'!$E$12/100,0),LocationFactors!$B$4:$G$911,5,FALSE))/100*C17 ->  | F17: Equipment & Labor per lot: | G17: 0 | J17: =IF(E17="",D17,E17) ->  | L17: =G17*J17 ->  | M17: 4 | N17: 0 | U17: 1.12550881 | V17: 0.8227024748
I18: Cost to Pump 1000 gal Septage: | J18: =IF(E38="",D38,E38) ->  | M18: 5 | N18: 0 | U18: 1.159274074 | V18: 0.7835261665
A19: STEG Tank: | C19: 1100 | D19: =(VLOOKUP(TRUNC('User & Location Information'!$E$12/100,0),LocationFactors!$B$4:$G$911,4,FALSE))/100*C19 ->  | M19: 6 | N19: 0 | U19: 1.194052297 | V19: 0.7462153966
A20: Risers and Lids: | C20: 172 | D20: =(VLOOKUP(TRUNC('User & Location Information'!$E$12/100,0),LocationFactors!$B$4:$G$911,4,FALSE))/100*C20 ->  | F20: On-Lot Components STEG | J20: Unit Cost | L20: Cost | M20: 7 | N20: 0 | U20: 1.229873865 | V20: 0.7106813301
A21: Effluent Screen: | C21: 75 | D21: =(VLOOKUP(TRUNC('User & Location Information'!$E$12/100,0),LocationFactors!$B$4:$G$911,4,FALSE))/100*C21 ->  | F21: STEG Tank: | G21: =J$4*$J$5 -> 0 | J21: =IF(E19="",D19,E19) ->  | L21: =G21*J21 ->  | M21: 8 | N21: 0 | U21: 1.266770081 | V21: 0.676839362
A22: Pipe to Gravity Main: | C22: 286 | D22: =(VLOOKUP(TRUNC('User & Location Information'!$E$12/100,0),LocationFactors!$B$4:$G$911,4,FALSE))/100*C22 ->  | F22: Risers and Lids: | G22: =J$4*$J$5 -> 0 | J22: =IF(E20="",D20,E20) ->  | M22: 9 | N22: 0 | U22: 1.304773184 | V22: 0.6446089162
A23: Labor and Equipment to install On Lot STEG Components | F23: Effluent Screen: | G23: 0 | M23: 10 | N23: 0 | U23: 1.343916379 | V23: 0.6139132535
C24: 1540 | D24: =(VLOOKUP(TRUNC('User & Location Information'!$E$12/100,0),LocationFactors!$B$4:$G$911,5,FALSE))/100*C24 ->  | F24: Pipe to Gravity Main: | G24: 0 | M24: 11 | N24: 0 | U24: 1.384233871 | V24: 0.5846792891
A25: Collection Network Cost | F25: Equipment & labor: | G25: 0 | J25: =IF(E24="",D24,E24) ->  | M25: 12 | N25: 0 | U25: 1.425760887 | V25: 0.5568374182
M26: 13 | N26: 0 | U26: 1.468533713 | V26: 0.5303213506
A27: 6" Sch 40 PVC ($ per foot) | C27: 19 | D27: =(VLOOKUP(TRUNC('User & Location Information'!$E$12/100,0),LocationFactors!$B$4:$G$911,4,FALSE))/100*C27 ->  | M27: 14 | N27: 0 | U27: 1.512589725 | V27: 0.505067953
A28: 4" Sch 40 PVC ($ per foot) | C28: 10.05 | D28: =(VLOOKUP(TRUNC('User & Location Information'!$E$12/100,0),LocationFactors!$B$4:$G$911,4,FALSE))/100*C28 ->  | I28: Avg On-Lot Cost: | L28: =SUM(L8:L26)/J4 ->  | M28: 15 | N28: 0 | U28: 1.557967417 | V28: 0.4810170981
A29: 3" Sch 40 PVC: ($ per foot) | C29: 7.2 | D29: =(VLOOKUP(TRUNC('User & Location Information'!$E$12/100,0),LocationFactors!$B$4:$G$911,4,FALSE))/100*C29 ->  | M29: 16 | N29: 0 | U29: 1.604706439 | V29: 0.458111522
A30: 2" Sch 40 PVC: ($ per foot) | C30: 3.6 | D30: =(VLOOKUP(TRUNC('User & Location Information'!$E$12/100,0),LocationFactors!$B$4:$G$911,4,FALSE))/100*C30 ->  | I30: Total Cost of all Lots: | L30: =SUM(L8:L17)+SUM(L21:L25) ->  | M30: 17 | N30: 0 | U30: 1.652847632 | V30: 0.4362966876
A31: Toning Wire: | C31: 0.11 | D31: =(VLOOKUP(TRUNC('User & Location Information'!$E$12/100,0),LocationFactors!$B$4:$G$911,4,FALSE))/100*C31 ->  | M31: 18 | N31: 0 | U31: 1.702433061 | V31: 0.4155206549
A32: Air Release Valves: | C32: 229 | D32: =(VLOOKUP(TRUNC('User & Location Information'!$E$12/100,0),LocationFactors!$B$4:$G$911,4,FALSE))/100*C32 ->  | M32: 19 | N32: 0 | U32: 1.753506053 | V32: 0.395733957
A33: Directional Boring ($ per foot) | C33: 20 | D33: =(VLOOKUP(TRUNC('User & Location Information'!$E$12/100,0),LocationFactors!$B$4:$G$911,5,FALSE))/100*C33 ->  | F33: Collection Network Components | J33: Unit Cost | L33: Cost | M33: 20 | N33: 0 | U33: 1.806111235 | V33: 0.3768894829
A34: Labor and Equipment to install Collection Network ($ per foot) | F34: Feet of Directional Bore: | G34: =J4/2*30 -> 0 | H34: ft | I34: Cost Directional Bore: | J34: =IF(E33="",D33,E33) ->  | K34: per ft | L34: =G34*J34 ->  | M34: 21 | N34: 0 | U34: 1.860294572 | V34: 0.3589423646
C35: 11.5 | D35: =(VLOOKUP(TRUNC('User & Location Information'!$E$12/100,0),LocationFactors!$B$4:$G$911,5,FALSE))/100*C35 ->  | F35: Length of 2" Pipe: | G35: =IF($G$4<=18000,$G$42,IF($G$4<=36000,0.9*$G$42,IF($G$4<=64800,0.8*$G$42,IF($G$4<=144000,0.75*$G$42)))) -> 0 | H35: ft | I35: Cost of 2" dia. Pipe: | J35: =IF(E30="",D30,E30) ->  | K35: per ft | L35: =G35*J35 ->  | M35: 22 | N35: 0 | U35: 1.916103409 | V35: 0.3418498711
A36: Maintenance Costing | F36: Length of 3" Pipe: | G36: =IF($G$4<=18000,0,IF($G$4<=36000,0.1*$G$42,IF($G$4<=64800,0.15*$G$42,IF(G4<=144000,0.15*G42)))) -> 0 | H36: ft | I36: Cost of 3" dia. Pipe: | J36: =IF(E29="",D29,E29) ->  | K36: per ft | M36: 23 | N36: 0 | U36: 1.973586511 | V36: 0.3255713058
F37: Length of 4" Pipe: | G37: =IF($G$4<=36000,0,IF($G$4<=64800,0.05*$G$42,IF($G$4<=144000,0.05*$G$42))) -> 0 | H37: ft | I37: Cost of 4" dia Pipe: | J37: =IF(E28="",D28,E28) ->  | K37: per ft | M37: 24 | N37: 0 | U37: 2.032794106 | V37: 0.3100679103
A38: Cost to Pump 1000 gal Septage: | C38: 390 | D38: =(VLOOKUP(TRUNC('User & Location Information'!$E$12/100,0),LocationFactors!$B$4:$G$911,6,FALSE))/100*C38 ->  | F38: Length of 6" Pipe: | G38: =IF($G$4<=64800,0,IF($G$4<=144000,0.05*$G$42)) -> 0 | H38: ft | I38: Cost of 6" dia Pipe: | J38: =IF(E27="",D27,E27) ->  | K38: per ft | M38: 25 | N38: 0 | U38: 2.09377793 | V38: 0.2953027717
A39: Annual Maintenance Salary (per gpd) | C39: 1.1 | D39: =(VLOOKUP(TRUNC('User & Location Information'!$E$12/100,0),LocationFactors!$B$4:$G$911,5,FALSE))/100*C39 ->  | M39: 26 | N39: 0 | U39: 2.156591268 | V39: 0.281240735
F40: Toning Wire: | G40: =G42 -> 0 | H40: ft | I40: Toning Wire Cost: | J40: =IF(E31="",D31,E31) ->  | K40: per ft | L40: =G40*J40 ->  | M40: 27 | N40: 0 | U40: 2.221289006 | V40: 0.267848319
F41: No. Air Release Valves: | G41: =G42/1000 -> 0 | I41: Cost Air Release Valve: | J41: =IF(E32="",D32,E32) ->  | L41: =G41*J41 ->  | M41: 28 | N41: 0 | U41: 2.287927676 | V41: 0.2550936371
F42: Total Pipe Length: | G42: =J4*J3/2 -> 0 | H42: ft | I42: Equipment & labor: | J42: =IF(E35="",D35,E35) ->  | K42: per ft | L42: =G42*J42 ->  | M42: 29 | N42: 0 | U42: 2.356565506 | V42: 0.2429463211
M43: 30 | N43: 0 | U43: 2.427262471 | V43: 0.2313774487
M44: 31 | N44: 0 | U44: 2.500080345 | V44: 0.2203594749
F45: Materials: | M45: 32 | N45: 0 | U45: 2.575082756 | V45: 0.2098661666
F46: Cost of Materials: | L46: =SUM(L34,L35,L36,L37,L38,L40,L41) ->  | M46: 33 | N46: 0 | U46: 2.652335238 | V46: 0.1998725396
F47: 20% P&O for Materials: | G47: =IF('User & Location Information'!F25="",'User & Location Information'!E25/100,'User & Location Information'!F25/100) -> 0.2 | L47: =L46*G47 ->  | M47: 34 | N47: 0 | U47: 2.731905296 | V47: 0.1903547996
F48: Sales Tax on Materials: | G48: ='User & Location Information'!E14/100 -> 0 | L48: =L46*G48 ->  | M48: 35 | N48: 0 | U48: 2.813862454 | V48: 0.1812902854
F49: Total Materials: | L49: =SUM(L46:L48) ->  | M49: 36 | N49: 0 | U49: 2.898278328 | V49: 0.1726574146
M50: 37 | N50: 0 | U50: 2.985226678 | V50: 0.164435633
F51: Labor & Equipment: | M51: 38 | N51: 0 | U51: 3.074783478 | V51: 0.1566053647
F52: Cost of Labor & Equipment: | L52: =SUM(L42) ->  | M52: 39 | N52: 0 | U52: 3.167026983 | V52: 0.1491479664
F53: 20% P&O Labor & Equipment: | G53: =IF('User & Location Information'!F26="",'User & Location Information'!E26/100,'User & Location Information'!F26/100) -> 0.2 | L53: =G53*L52 ->  | M53: 40 | N53: 0 | U53: 3.262037792 | V53: 0.1420456823
F54: Total Labor & Equipment: | L54: =SUM(L52:L53) ->  | M54: 41 | N54: 0 | U54: 3.359898926 | V54: 0.1352816022
M55: 42 | N55: 0 | U55: 3.460695894 | V55: 0.1288396211
F56: Professional Services Fees: | M56: 43 | N56: 0 | U56: 3.56451677 | V56: 0.1227044011
M57: 44 | N57: 0 | U57: 3.671452273 | V57: 0.1168613344
F58: Capital Costs: | L58: =SUM(L49,L54,L56) ->  | M58: 45 | N58: 0 | U58: 3.781595842 | V58: 0.1112965089
M59: 46 | N59: 0 | U59: 3.895043717 | V59: 0.1059966752
F60: Energy Costs: | M60: 47 | N60: 0 | U60: 4.011895028 | V60: 0.1009492144
F61: Electrical Cost | G61: ='User & Location Information'!E16 -> 0.13 | H61: $/kW∙h | J61: Homeowner pays electrical | M61: 48 | N61: 0 | U61: 4.132251879 | V61: 0.09614210899
F62: Aeration Power | H62: kW | M62: 49 | N62: 0 | U62: 4.256219436 | V62: 0.09156391332
F63: Aeration Run Time | H63: hr/d | M63: 50 | N63: 0 | U63: 4.383906019 | V63: 0.08720372697
F64: Panel Power: | H64: kW | I64: (assumes continuous power draw) | M64: 51 | N64: 0 | U64: 4.515423199 | V64: 0.08305116855
F65: Annual Electric Cost: | M65: 52 | N65: 0 | U65: 4.650885895 | V65: 0.079096351
M66: 53 | N66: 0 | U66: 4.790412472 | V66: 0.07532985809
M67: 54 | N67: 0 | U67: 4.934124846 | V67: 0.07174272199
F68: Life Cycle Costs: | M68: 55 | N68: 0 | U68: 5.082148592 | V68: 0.0683264019
F69: Annual Maintenance Salary: | G69: =IF(E39="", D39,E39)*G4 ->  | I69: Inflation Rate (%): | J69: 0.03 | M69: 56 | N69: 0 | U69: 5.234613049 | V69: 0.06507276371
F70: Pump 20% of tanks each yr | G70: =J4*0.2*J18 ->  | I70: Discount Rate (%): | J70: 0.05 | M70: 57 | N70: 0 | U70: 5.391651441 | V70: 0.06197406068
F71: Replace STEP pumps & controls / 10 yr | G71: =(J4*J10/10)+(J4*J12/10) ->  | I71: Salvage Value: | J71: None | M71: 58 | N71: 0 | U71: 5.553400984 | V71: 0.05902291493
F72: Sum Annualized Maintenance: | G72: =SUM(G69:G71) ->  | I72: Depreciation: | J72: None | M72: 59 | N72: 0 | U72: 5.720003014 | V72: 0.05621229993
M73: 60 | N73: 0 | U73: 5.891603104 | V73: 0.05353552375
F74: Annual Individual On-Lot Maintenance: | G74: =(J18/10)+(J10/10)+(J12/10) ->  | H74: Includes 10-yr cycle of pump solids, replace pump and controls
F77: System Life (years) | G77: 60 | H77: yrs
F79: Life Cycle Present Value: | G79: =R9 -> 

Sheet Vacuum Sewer Builder
A1: Vacuum Sewer Costing Information | F1: Technology: Collection | I1: Assumed Utility has full ownership
F2: Assumptions: Vacuum Collection | I2: Half the homes on opposite side of road from force main | Q2: System Life (years) | R2: =G76 -> 60
A3: Item | C3: Default Unit Cost | D3: Location Factor Unit Cost | E3: User Provided Unit Cost | F3: Assumed 2 homes per Valve pit | I3: Distance between sources: | J3: ='Collection Technologies'!C7 -> 200 | K3: (ft) | Q3: Construction and Installation Costs | R3: =L50 -> 
F4: Daily Wastewater Volume | G4: ='Wastewater Volume Calculator'!J96 -> 0 | H4: gpd | I4: Number of Connections: | J4: ='Wastewater Volume Calculator'!C96 -> 0 | Q4: Annual Energy Costs | R4: =G58 -> 10335.20312
A5: On-Lot Costs | Q5: Annual Maintenance Cost | R5: =G70 -> 
Q6: Discount Factor (as percent) | R6: =K55 -> 0.05
A7: Assumption: Two (2) source connections per vacuum pit package. The default value is 2. To increase (or decrease) this number, use cell E10 | G7: Units | I7: Notes | J7: Unit Cost | L7: Cost | Q7: Inflation Rate (as percent) | R7: =K54 -> 0.03
F8: Valve Pit Package: | G8: =J4/IF(E10="",2,E10) -> 0 | I8: includes installation | J8: =IF(E12="",D12,E12) ->  | L8: =G8*J8 -> 
F9: Building Sewer: | G9: =J4 -> 0 | J9: =IF(E14="",D14,E14) ->  | L9: =G9*J9 ->  | Q9: Present Value of System Life Cycle Cost | R9: =SUM(T13:T73) -> 
A11: Building Sewer (between source and sewer) | C11: 122 | D11: =(VLOOKUP(TRUNC('User & Location Information'!$E$12/100,0),LocationFactors!$B$4:$G$911,4,FALSE))/100*C11 ->  | J11: Total On Lot Cost | M11: Year | N11: Annualized Costs | P11: Periodic Costs | Q11: Total Cost in Year Zero | R11: Sum Cost of Year | S11: Sum Cost of Year Adjusted for Inflation | T11: Present Value of Cost of Year | U11: Inflation Factor | V11: Discount Factor
A12: Valve Pit Package (including installation) | C12: 4500 | D12: =(VLOOKUP(TRUNC('User & Location Information'!$E$12/100,0),LocationFactors!$B$4:$G$911,4,FALSE))/100*C12 ->  | J12: =SUM(J8:J9) ->  | N12: Energy | O12: Maintenance
A13: Labor & Equipment to Install Building Sewer ($ per installation) | M13: 0 | Q13: =R3 ->  | R13: =IF($R$2>=$M$13,(SUM(N13:P13)+Q13),"") ->  | S13: =R13*U13 ->  | T13: =S13*V13 ->  | U13: =IF(R$2>=M13,((1+R$7)^M13),"") -> 1 | V13: =IF(R$2>=M13,((1/(1+R$6)^M13)),"") -> 1
C14: 1578 | D14: =(VLOOKUP(TRUNC('User & Location Information'!$E$12/100,0),LocationFactors!$B$4:$G$911,5,FALSE))/100*C14 ->  | F14: Maximum connections per vacuum station is 1200. | M14: =IF(ISERROR(IF($R$2>=M13+1,M13+1,"")),"",IF($R$2>=M13+1,M13+1,"")) -> 1 | N14: =IF(M14<=$R$2, $R$4, "") -> 10335.20312 | O14: =IF(M14<=$R$2,$R$5,"") ->  | R14: =IF(M14<=$R$2,SUM(N14:P14),"") ->  | S14: =IF(M14<=$R$2,R14*U14,"") ->  | T14: =IF(M14<=$R$2,S14*V14,"") ->  | U14: 1.03 | V14: 0.9523809524
A15: Collection Network Cost | M15: =IF(ISERROR(IF($R$2>=M14+1,M14+1,"")),"",IF($R$2>=M14+1,M14+1,"")) -> 2 | N15: =IF(M15<=$R$2, $R$4, "") -> 10335.20312 | O15: =IF(M15<=$R$2,$R$5,"") ->  | R15: =IF(M15<=$R$2,SUM(N15:P15),"") ->  | S15: =IF(M15<=$R$2,R15*U15,"") ->  | T15: =IF(M15<=$R$2,S15*V15,"") ->  | U15: 1.0609 | V15: 0.9070294785
M16: 3 | N16: 10335.20312 | U16: 1.092727 | V16: 0.8638375985
A17: Vacuum Station (including construction) | C17: 517000 | D17: =(VLOOKUP(TRUNC('User & Location Information'!$E$12/100,0),LocationFactors!$B$4:$G$911,4,FALSE))/100*C17 ->  | M17: 4 | N17: 10335.20312 | U17: 1.12550881 | V17: 0.8227024748
A18: Directional Bore ($ per foot) | C18: 20 | D18: =(VLOOKUP(TRUNC('User & Location Information'!$E$12/100,0),LocationFactors!$B$4:$G$911,6,FALSE))/100*C18 ->  | M18: 5 | N18: 10335.20312 | U18: 1.159274074 | V18: 0.7835261665
A19: Division valves | C19: 1034 | D19: =(VLOOKUP(TRUNC('User & Location Information'!$E$12/100,0),LocationFactors!$B$4:$G$911,4,FALSE))/100*C19 ->  | M19: 6 | N19: 10335.20312 | U19: 1.194052297 | V19: 0.7462153966
A20: 6" Sch 40 Pipe ($ per foot) | C20: 18.55 | D20: =(VLOOKUP(TRUNC('User & Location Information'!$E$12/100,0),LocationFactors!$B$4:$G$911,4,FALSE))/100*C20 ->  | F20: Collection Network Components | J20: Unit Cost | L20: Cost | M20: 7 | N20: 10335.20312 | U20: 1.229873865 | V20: 0.7106813301
A21: 4" Sch 40 Pipe ($ per foot) | C21: 10.05 | D21: =(VLOOKUP(TRUNC('User & Location Information'!$E$12/100,0),LocationFactors!$B$4:$G$911,4,FALSE))/100*C21 ->  | F21: Feet of Directional Bore: | G21: =J4/2*30 -> 0 | H21: ft | I21: Cost Directional Bore: | J21: =IF(E18="",D18,E18) ->  | K21: per ft | L21: =G21*J21 ->  | M21: 8 | N21: 10335.20312 | U21: 1.266770081 | V21: 0.676839362
A22: Toning Wire: | C22: 0.11 | D22: =(VLOOKUP(TRUNC('User & Location Information'!$E$12/100,0),LocationFactors!$B$4:$G$911,4,FALSE))/100*C22 ->  | F22: Vacuum Station: | G22: 1 | I22: Vacuum Station | J22: =IF(E17="",D17,E17) ->  | K22: ea | L22: =G22*J22 ->  | M22: 9 | N22: 10335.20312 | U22: 1.304773184 | V22: 0.6446089162
A23: Installation of Collection Network Components ($ per foot) | F23: Division valves: | G23: 15 | J23: =IF(E19="",D19,E19) ->  | K23: ea | M23: 10 | N23: 10335.20312 | U23: 1.343916379 | V23: 0.6139132535
C24: 50 | D24: =(VLOOKUP(TRUNC('User & Location Information'!$E$12/100,0),LocationFactors!$B$4:$G$911,5,FALSE))/100*C24 ->  | F24: Length of 4" Pipe: | G24: =IF(G4<=64800,G29,IF(G4<144000,0.8*G29)) -> 0 | H24: ft | I24: Cost of 4" dia Pipe: | J24: =IF(E21="",D21,E21) ->  | K24: per ft | M24: 11 | N24: 10335.20312 | U24: 1.384233871 | V24: 0.5846792891
A25: Annual Maintenance Cost | F25: Length of 6" Pipe: | G25: =IF(G4<=64800,0,IF(G4<=144000,0.2*G29)) -> 0 | H25: ft | I25: Cost of 6" dia Pipe: | J25: =IF(E20="",D20,E20) ->  | K25: per ft | M25: 12 | N25: 10335.20312 | U25: 1.425760887 | V25: 0.5568374182
F26: Toning Wire: | G26: =G29 -> 0 | H26: ft | I26: Toning Wire Cost: | J26: =IF(E22="",D22,E22) ->  | K26: per ft | L26: =G26*J26 ->  | M26: 13 | N26: 10335.20312 | U26: 1.468533713 | V26: 0.5303213506
M27: 14 | N27: 10335.20312 | U27: 1.512589725 | V27: 0.505067953
A28: Annual Maintenance Salary (per gpd) | C28: 2.2 | D28: =(VLOOKUP(TRUNC('User & Location Information'!$E$12/100,0),LocationFactors!$B$4:$G$911,5,FALSE))/100*C28 ->  | M28: 15 | N28: 10335.20312 | U28: 1.557967417 | V28: 0.4810170981
F29: Total Pipe Length: | G29: =J4*J3/2 -> 0 | H29: ft | I29: Equipment & labor: | J29: =IF(E24="",D24,E24) ->  | K29: per ft | L29: =G29*J29 ->  | M29: 16 | N29: 10335.20312 | U29: 1.604706439 | V29: 0.458111522
M30: 17 | N30: 10335.20312 | U30: 1.652847632 | V30: 0.4362966876
M31: 18 | N31: 10335.20312 | U31: 1.702433061 | V31: 0.4155206549
M32: 19 | N32: 10335.20312 | U32: 1.753506053 | V32: 0.395733957
M33: 20 | N33: 10335.20312 | U33: 1.806111235 | V33: 0.3768894829
M34: 21 | N34: 10335.20312 | U34: 1.860294572 | V34: 0.3589423646
M35: 22 | N35: 10335.20312 | U35: 1.916103409 | V35: 0.3418498711
M36: 23 | N36: 10335.20312 | U36: 1.973586511 | V36: 0.3255713058
F37: Materials: | M37: 24 | N37: 10335.20312 | U37: 2.032794106 | V37: 0.3100679103
F38: Cost of Materials: | L38: =SUM(L21:L26) ->  | M38: 25 | N38: 10335.20312 | U38: 2.09377793 | V38: 0.2953027717
F39: 20% P&O for Materials: | G39: =IF('User & Location Information'!F25="",'User & Location Information'!E25/100,'User & Location Information'!F25/100) -> 0.2 | L39: =L38*G39 ->  | M39: 26 | N39: 10335.20312 | U39: 2.156591268 | V39: 0.281240735
F40: Sales Tax on Materials: | G40: ='User & Location Information'!E14/100 -> 0 | L40: =L38*G40 ->  | M40: 27 | N40: 10335.20312 | U40: 2.221289006 | V40: 0.267848319
F41: Total Materials: | L41: =SUM(L38:L40) ->  | M41: 28 | N41: 10335.20312 | U41: 2.287927676 | V41: 0.2550936371
M42: 29 | N42: 10335.20312 | U42: 2.356565506 | V42: 0.2429463211
F43: Labor & Equipment: | M43: 30 | N43: 10335.20312 | U43: 2.427262471 | V43: 0.2313774487
F44: Cost of Labor & Equipment: | L44: =L29 ->  | M44: 31 | N44: 10335.20312 | U44: 2.500080345 | V44: 0.2203594749
F45: 20% P&O Labor & Equipment: | G45: =IF('User & Location Information'!F26="",'User & Location Information'!E26/100,'User & Location Information'!F26/100) -> 0.2 | L45: =G45*L44 ->  | M45: 32 | N45: 10335.20312 | U45: 2.575082756 | V45: 0.2098661666
F46: Total Labor & Equipment: | L46: =SUM(L44:L45) ->  | M46: 33 | N46: 10335.20312 | U46: 2.652335238 | V46: 0.1998725396
M47: 34 | N47: 10335.20312 | U47: 2.731905296 | V47: 0.1903547996
F48: Professional Services Fees: | M48: 35 | N48: 10335.20312 | U48: 2.813862454 | V48: 0.1812902854
M49: 36 | N49: 10335.20312 | U49: 2.898278328 | V49: 0.1726574146
F50: Capital Costs: | L50: =SUM(L41,L46,L48) ->  | M50: 37 | N50: 10335.20312 | U50: 2.985226678 | V50: 0.164435633
M51: 38 | N51: 10335.20312 | U51: 3.074783478 | V51: 0.1566053647
F52: Energy Costs: | M52: 39 | N52: 10335.20312 | U52: 3.167026983 | V52: 0.1491479664
F53: Electrical Cost | G53: ='User & Location Information'!E16 -> 0.13 | H53: $/kW∙h | M53: 40 | N53: 10335.20312 | U53: 3.262037792 | V53: 0.1420456823
F54: Vacuum Power | G54: 11 | H54: kW | J54: Inflation Rate (%): | K54: 0.03 | M54: 41 | N54: 10335.20312 | U54: 3.359898926 | V54: 0.1352816022
F55: Vacuum Run Time | G55: 14 | H55: hr/d | J55: Discount Rate (%): | K55: 0.05 | M55: 42 | N55: 10335.20312 | U55: 3.460695894 | V55: 0.1288396211
F56: Wastewater Transfer Pump | G56: 7.5 | H56: kW | J56: Salvage Value: | K56: None | M56: 43 | N56: 10335.20312 | U56: 3.56451677 | V56: 0.1227044011
F57: transfer run time | G57: 2.7 | H57: hr/d | J57: Depreciation: | K57: None | M57: 44 | N57: 10335.20312 | U57: 3.671452273 | V57: 0.1168613344
F58: Annual Electric Cost: | G58: =(G53*G54*G55*365)+(G56*G53*G57*365)+((G53*G54*G55*365)+(G56*G53*G57*365))*0.25 -> 10335.20312 | H58: includes 25% demand charge | M58: 45 | N58: 10335.20312 | U58: 3.781595842 | V58: 0.1112965089
M59: 46 | N59: 10335.20312 | U59: 3.895043717 | V59: 0.1059966752
F60: Life Cycle Costs: | M60: 47 | N60: 10335.20312 | U60: 4.011895028 | V60: 0.1009492144
F61: System Annual Maint. Salary: | G61: =IF(E28="",D28,E28)*G4 ->  | M61: 48 | N61: 10335.20312 | U61: 4.132251879 | V61: 0.09614210899
M62: 49 | N62: 10335.20312 | U62: 4.256219436 | V62: 0.09156391332
F63: Replace vacuum pump in 15 yrs | G63: =L63/15 -> 906.6666667 | H63: per year | I63: replacement vacuum pump: | L63: 13600 | M63: 50 | N63: 10335.20312 | U63: 4.383906019 | V63: 0.08720372697
F64: Replace collection tank in 15 yrs | G64: =L64/15 -> 573.3333333 | H64: per year | I64: replacement tank: | L64: 8600 | M64: 51 | N64: 10335.20312 | U64: 4.515423199 | V64: 0.08305116855
F65: Replace sewage pump in 15 yr | G65: =L65/15 -> 393.3333333 | H65: per year | I65: replacement pump: | L65: 5900 | M65: 52 | N65: 10335.20312 | U65: 4.650885895 | V65: 0.079096351
M66: 53 | N66: 10335.20312 | U66: 4.790412472 | V66: 0.07532985809
F67: Replace vacuum valves in 10 yrs | G67: =L67*G8/10 -> 0 | H67: per year | I67: replacement vacuum valves (at each pod): | L67: 20 | M67: 54 | N67: 10335.20312 | U67: 4.934124846 | V67: 0.07174272199
F68: Replace vacuum controller in 7 yrs | G68: =L68*G8/7 -> 0 | H68: per year | I68: replacement vacuum controller (at each pod): | L68: 40 | M68: 55 | N68: 10335.20312 | U68: 5.082148592 | V68: 0.0683264019
M69: 56 | N69: 10335.20312 | U69: 5.234613049 | V69: 0.06507276371
F70: Sum Annualized Maintenance Cost: | G70: =SUM(G61,G63,G64,G65,G67,G68) ->  | H70: per year | I70: This is utility doing network and on-lot maintenance | M70: 57 | N70: 10335.20312 | U70: 5.391651441 | V70: 0.06197406068
M71: 58 | N71: 10335.20312 | U71: 5.553400984 | V71: 0.05902291493
M72: 59 | N72: 10335.20312 | U72: 5.720003014 | V72: 0.05621229993
M73: 60 | N73: 10335.20312 | U73: 5.891603104 | V73: 0.05353552375
F76: System Life (years) | G76: 60 | H76: yrs
F78: Life Cycle Present Value: | G78: =R9 -> 

Sheet Gravity Sewer Builder
A1: Conventional Gravity Sewer Costing Information | F1: Technology: Collection | I1: Assumed Utility has full ownership after installation
F2: Assumptions: Gravity Sewer | I2: Half the homes on opposite side of road from gravity main | Q2: System Life (years) | R2: =G59 -> 60
A3: Item | C3: Default Unit Cost | D3: Location Factor Unit Cost | E3: User Provided Unit Cost | I3: Distance between sources: | J3: ='Collection Technologies'!C7 -> 200 | Q3: Construction and Installation Costs | R3: =L40 -> 
F4: Daily Wastewater Volume | G4: ='Wastewater Volume Calculator'!J96 -> 0 | H4: gpd | I4: Number of Connections: | J4: ='Wastewater Volume Calculator'!C96 -> 0 | Q4: Annual Energy Costs | R4: =G47 -> 0
A5: On-Lot Costs | Q5: Annual Maintenance Cost | R5: =G53 -> 
F6: On-Lot Components | G6: Units | I6: Notes | J6: Unit Cost | L6: Cost | Q6: Discount Factor (as percent) | R6: =J52 -> 0.05
A7: Building Sewer (between source and sewer) | C7: 122 | D7: =(VLOOKUP(TRUNC('User & Location Information'!$E$12/100,0),LocationFactors!$B$4:$G$911,4,FALSE))/100*C7 ->  | F7: Building Sewer: | G7: =J4 -> 0 | I7: Assumed 60' to street | J7: =IF(E7="",D7,E7) ->  | L7: =G7*J7 ->  | Q7: Inflation Rate (as percent) | R7: =J51 -> 0.03
A8: Labor & Equipment to Install On-Lot Components ($ per installation) | I8: Labor & Equipment: | J8: =IF(E9="",D9,E9) ->  | L8: =G7*J8 -> 
C9: 1578 | D9: =(VLOOKUP(TRUNC('User & Location Information'!$E$12/100,0),LocationFactors!$B$4:$G$911,5,FALSE))/100*C9 ->  | Q9: Present Value of System Life Cycle Cost | R9: =SUM(T13:T73) -> 
A10: Collection Network Cost | I10: Total Individual On-Lot Costs: | L10: =(J7+J8) -> 
M11: Year | N11: Annualized Costs | P11: Periodic Costs | Q11: Total Cost in Year Zero | R11: Sum Cost of Year | S11: Sum Cost of Year Adjusted for Inflation | T11: Present Value of Cost of Year | U11: Inflation Factor | V11: Discount Factor
A12: 8" SDR 35 Sewer Pipe ($ per foot) | C12: 7.76 | D12: =(VLOOKUP(TRUNC('User & Location Information'!$E$12/100,0),LocationFactors!$B$4:$G$911,4,FALSE))/100*C12 ->  | J12: Total On-lot Cost: | L12: =SUM(L7:L8) ->  | N12: Energy | O12: Maintenance
A13: 10" SDR 35 Sewer Pipe ($ per foot) | C13: 12.3 | D13: =(VLOOKUP(TRUNC('User & Location Information'!$E$12/100,0),LocationFactors!$B$4:$G$911,4,FALSE))/100*C13 ->  | M13: 0 | Q13: =R3 ->  | R13: =IF($R$2>=$M$13,(SUM(N13:P13)+Q13),"") ->  | S13: =R13*U13 ->  | T13: =S13*V13 ->  | U13: =IF(R$2>=M13,((1+R$7)^M13),"") -> 1 | V13: =IF(R$2>=M13,((1/(1+R$6)^M13)),"") -> 1
A14: 4-ft diameter manhole | C14: 1148 | D14: =(VLOOKUP(TRUNC('User & Location Information'!$E$12/100,0),LocationFactors!$B$4:$G$911,4,FALSE))/100*C14 ->  | M14: =IF(ISERROR(IF($R$2>=M13+1,M13+1,"")),"",IF($R$2>=M13+1,M13+1,"")) -> 1 | N14: =IF(M14<=$R$2, $R$4, "") -> 0 | O14: =IF(M14<=$R$2,$R$5,"") ->  | R14: =IF(M14<=$R$2,SUM(N14:P14),"") ->  | S14: =IF(M14<=$R$2,R14*U14,"") ->  | T14: =IF(M14<=$R$2,S14*V14,"") ->  | U14: 1.03 | V14: 0.9523809524
F15: Collection Network Components | J15: Unit Cost | L15: Cost | M15: =IF(ISERROR(IF($R$2>=M14+1,M14+1,"")),"",IF($R$2>=M14+1,M14+1,"")) -> 2 | N15: =IF(M15<=$R$2, $R$4, "") -> 0 | O15: =IF(M15<=$R$2,$R$5,"") ->  | R15: =IF(M15<=$R$2,SUM(N15:P15),"") ->  | S15: =IF(M15<=$R$2,R15*U15,"") ->  | T15: =IF(M15<=$R$2,S15*V15,"") ->  | U15: 1.0609 | V15: 0.9070294785
A16: Labor and Equipment to Install Manhole | C16: 2000 | D16: =(VLOOKUP(TRUNC('User & Location Information'!$E$12/100,0),LocationFactors!$B$4:$G$911,5,FALSE))/100*C16 ->  | F16: Feet of Directional Bore: | G16: =J4/2*30 -> 0 | H16: ft | I16: Cost Directional Bore: | J16: =IF(E17="",D17,E17) ->  | K16: per ft | L16: =G16*J16 ->  | M16: 3 | N16: 0 | U16: 1.092727 | V16: 0.8638375985
A17: Directional Boring ($ per foot) | C17: 20 | D17: =(VLOOKUP(TRUNC('User & Location Information'!$E$12/100,0),LocationFactors!$B$4:$G$911,5,FALSE))/100*C17 ->  | F17: Assumes 1/2 connections are on other side of 30' street | M17: 4 | N17: 0 | U17: 1.12550881 | V17: 0.8227024748
A18: Labor and Equipment to install pipe network ($ per foot of pipe) | F18: Length of 8" Pipe: | G18: =J4/2*J3 -> 0 | H18: ft | I18: Cost of 8" dia. Pipe: | J18: =IF(E12="",D12,E12) ->  | K18: per ft | L18: =G18*J18 ->  | M18: 5 | N18: 0 | U18: 1.159274074 | V18: 0.7835261665
C19: 100 | D19: =(VLOOKUP(TRUNC('User & Location Information'!$E$12/100,0),LocationFactors!$B$4:$G$911,5,FALSE))/100*C19 ->  | F19: Length of 10" Pipe: | G19: =IF(G4>56000,0.04*G18,0) -> 0 | H19: ft | I19: Cost of 10" dia. Pipe: | J19: =IF(E13="",D13,E13) ->  | K19: per ft | M19: 6 | N19: 0 | U19: 1.194052297 | V19: 0.7462153966
A20: Annual Maintenance Costs | F20: If flow > 56,000 gpd, then (4% of 8" line) 10" dia pipe is added to system as Trunk | M20: 7 | N20: 0 | U20: 1.229873865 | V20: 0.7106813301
M21: 8 | N21: 0 | U21: 1.266770081 | V21: 0.676839362
A22: Annual Maintenance Salary (per gpd) | C22: 1.1 | D22: =(VLOOKUP(TRUNC('User & Location Information'!$E$12/100,0),LocationFactors!$B$4:$G$911,5,FALSE))/100*C22 ->  | F22: Total Pipe Length: | G22: =SUM(G18:G19) -> 0 | H22: ft | I22: Equipment & labor: | J22: =IF(E19="",D19,E19) ->  | K22: per ft | L22: =G22*J22 ->  | M22: 9 | N22: 0 | U22: 1.304773184 | V22: 0.6446089162
M23: 10 | N23: 0 | U23: 1.343916379 | V23: 0.6139132535
F24: Number of Manholes: | G24: =SUM(G18:G19)/300 -> 0 | I24: Unit Manhole 4' dia. Cost: | J24: =IF(E14="",D14,E14) ->  | L24: =G24*J24 ->  | M24: 11 | N24: 0 | U24: 1.384233871 | V24: 0.5846792891
I25: Manhole Installation: | J25: =IF(E16="",D16,E16) ->  | L25: =G24*J25 ->  | M25: 12 | N25: 0 | U25: 1.425760887 | V25: 0.5568374182
M26: 13 | N26: 0 | U26: 1.468533713 | V26: 0.5303213506
F27: Materials: | M27: 14 | N27: 0 | U27: 1.512589725 | V27: 0.505067953
F28: Cost of Materials: | G28: (On-Lot Costs are Not Included) | L28: =SUM(L16,L18,L19,L24) ->  | M28: 15 | N28: 0 | U28: 1.557967417 | V28: 0.4810170981
F29: 20% P&O for Materials: | G29: =IF('User & Location Information'!F25="",'User & Location Information'!E25/100,'User & Location Information'!F25/100) -> 0.2 | L29: =L28*G29 ->  | M29: 16 | N29: 0 | U29: 1.604706439 | V29: 0.458111522
F30: Sales Tax on Materials: | G30: ='User & Location Information'!E14/100 -> 0 | L30: =L28*G30 ->  | M30: 17 | N30: 0 | U30: 1.652847632 | V30: 0.4362966876
F31: Total Materials: | L31: =SUM(L28:L30) ->  | M31: 18 | N31: 0 | U31: 1.702433061 | V31: 0.4155206549
M32: 19 | N32: 0 | U32: 1.753506053 | V32: 0.395733957
F33: Labor & Equipment: | M33: 20 | N33: 0 | U33: 1.806111235 | V33: 0.3768894829
F34: Cost of Labor & Equipment: | G34: (On-Lot Cost are Not Included) | L34: =SUM(L22,L25) ->  | M34: 21 | N34: 0 | U34: 1.860294572 | V34: 0.3589423646
F35: 20% P&O Labor & Equipment: | G35: =IF('User & Location Information'!F26="",'User & Location Information'!E26/100,'User & Location Information'!F26/100) -> 0.2 | L35: =G35*L34 ->  | M35: 22 | N35: 0 | U35: 1.916103409 | V35: 0.3418498711
F36: Total Labor & Equipment: | L36: =SUM(L34:L35) ->  | M36: 23 | N36: 0 | U36: 1.973586511 | V36: 0.3255713058
M37: 24 | N37: 0 | U37: 2.032794106 | V37: 0.3100679103
F38: Professional Services Fees: | L38: 0 | M38: 25 | N38: 0 | U38: 2.09377793 | V38: 0.2953027717
M39: 26 | N39: 0 | U39: 2.156591268 | V39: 0.281240735
F40: Capital Costs: | I40: for network, not including on-lot costs | L40: =SUM(L31,L36,L38) ->  | M40: 27 | N40: 0 | U40: 2.221289006 | V40: 0.267848319
M41: 28 | N41: 0 | U41: 2.287927676 | V41: 0.2550936371
F42: Energy Costs: | M42: 29 | N42: 0 | U42: 2.356565506 | V42: 0.2429463211
F43: Electrical Cost | G43: ='User & Location Information'!E16 -> 0.13 | H43: $/kW∙h | J43: Assume no Lift Station | M43: 30 | N43: 0 | U43: 2.427262471 | V43: 0.2313774487
F44: Aeration Power | H44: kW | M44: 31 | N44: 0 | U44: 2.500080345 | V44: 0.2203594749
F45: Aeration Run Time | H45: hr/d | M45: 32 | N45: 0 | U45: 2.575082756 | V45: 0.2098661666
F46: Panel Power: | H46: kW | I46: (assumes continuous power draw) | M46: 33 | N46: 0 | U46: 2.652335238 | V46: 0.1998725396
F47: Annual Electric Cost: | M47: 34 | N47: 0 | U47: 2.731905296 | V47: 0.1903547996
M48: 35 | N48: 0 | U48: 2.813862454 | V48: 0.1812902854
M49: 36 | N49: 0 | U49: 2.898278328 | V49: 0.1726574146
F50: Life Cycle Costs: | M50: 37 | N50: 0 | U50: 2.985226678 | V50: 0.164435633
F51: System Annual Maintenance: | G51: =IF(E22="",D22,E22)*G4 ->  | H51: Salary | I51: Inflation Rate (%): | J51: 0.03 | M51: 38 | N51: 0 | U51: 3.074783478 | V51: 0.1566053647
F52: Jet 10% of pipes per year ($15/ft) | G52: =G22*0.1*15 -> 0 | I52: Discount Rate (%): | J52: 0.05 | M52: 39 | N52: 0 | U52: 3.167026983 | V52: 0.1491479664
F53: Sum Annualized Maintenance: | G53: =SUM(G51:G52) ->  | I53: Salvage Value: | J53: None | M53: 40 | N53: 0 | U53: 3.262037792 | V53: 0.1420456823
I54: Depreciation: | J54: None | M54: 41 | N54: 0 | U54: 3.359898926 | V54: 0.1352816022
M55: 42 | N55: 0 | U55: 3.460695894 | V55: 0.1288396211
M56: 43 | N56: 0 | U56: 3.56451677 | V56: 0.1227044011
F57: Individual on-lot maintenance: | G57: 20 | H57: assumes rotor-root line every 10 years | M57: 44 | N57: 0 | U57: 3.671452273 | V57: 0.1168613344
M58: 45 | N58: 0 | U58: 3.781595842 | V58: 0.1112965089
F59: System Life (years) | G59: 60 | H59: yrs | M59: 46 | N59: 0 | U59: 3.895043717 | V59: 0.1059966752
M60: 47 | N60: 0 | U60: 4.011895028 | V60: 0.1009492144
F61: Life Cycle Present Value: | G61: =R9 ->  | M61: 48 | N61: 0 | U61: 4.132251879 | V61: 0.09614210899
M62: 49 | N62: 0 | U62: 4.256219436 | V62: 0.09156391332
M63: 50 | N63: 0 | U63: 4.383906019 | V63: 0.08720372697
M64: 51 | N64: 0 | U64: 4.515423199 | V64: 0.08305116855
M65: 52 | N65: 0 | U65: 4.650885895 | V65: 0.079096351
M66: 53 | N66: 0 | U66: 4.790412472 | V66: 0.07532985809
M67: 54 | N67: 0 | U67: 4.934124846 | V67: 0.07174272199
M68: 55 | N68: 0 | U68: 5.082148592 | V68: 0.0683264019
M69: 56 | N69: 0 | U69: 5.234613049 | V69: 0.06507276371
M70: 57 | N70: 0 | U70: 5.391651441 | V70: 0.06197406068
M71: 58 | N71: 0 | U71: 5.553400984 | V71: 0.05902291493
M72: 59 | N72: 0 | U72: 5.720003014 | V72: 0.05621229993
M73: 60 | N73: 0 | U73: 5.891603104 | V73: 0.05353552375

Sheet Low Pressure Sewer Builder
A1: Low Pressure Sewer Costing Information | F1: Technology: Collection
F2: Assumptions: Grinder Pumps | I2: Half the homes on opposite side of road from force main | Q2: System Life (years) | R2: =G65 -> 60
A3: Item | C3: Default Unit Cost | D3: Location Factor Unit Cost | E3: User Provided Unit Cost | I3: Distance between sources: | J3: ='Collection Technologies'!C7 -> 200 | Q3: Construction and Installation Costs | R3: =L45 -> 
F4: Daily Wastewater Volume | G4: ='Wastewater Volume Calculator'!J96 -> 0 | H4: gpd | I4: Number of Connections: | J4: ='Wastewater Volume Calculator'!C96 -> 0 | Q4: Annual Energy Costs | R4: =G52 -> 0
A5: On-Lot Costs | Q5: Annual Maintenance Cost | R5: =G60 -> 
Q6: Discount Factor (as percent) | R6: =J52 -> 0.05
A7: Pump | C7: 2800 | D7: =(VLOOKUP(TRUNC('User & Location Information'!$E$12/100,0),LocationFactors!$B$4:$G$911,4,FALSE))/100*C7 ->  | F7: On-Lot Components | G7: Units | I7: Notes | J7: Unit Cost | L7: Cost | Q7: Inflation Rate (as percent) | R7: =J51 -> 0.03
A8: Pump Vault: | C8: 1760 | D8: =(VLOOKUP(TRUNC('User & Location Information'!$E$12/100,0),LocationFactors!$B$4:$G$911,4,FALSE))/100*C8 ->  | F8: Pump Vault: | G8: =$J$4 -> 0 | J8: =IF(E8="",D8,E8) ->  | L8: =G8*J8 -> 
A9: Pump Controls | C9: 462 | D9: =(VLOOKUP(TRUNC('User & Location Information'!$E$12/100,0),LocationFactors!$B$4:$G$911,4,FALSE))/100*C9 ->  | F9: Pump: | G9: =$J$4 -> 0 | J9: =IF(E7="",D7,E7) ->  | Q9: Present Value of System Life Cycle Cost | R9: =SUM(T13:T73) -> 
A10: Connect source to pump vault | C10: 209 | D10: =(VLOOKUP(TRUNC('User & Location Information'!$E$12/100,0),LocationFactors!$B$4:$G$911,6,FALSE))/100*C10 ->  | F10: Pump Controls: | G10: 0 | J10: =IF(E9="",D9,E9) -> 
A11: Check Valve | C11: 58.3 | D11: =(VLOOKUP(TRUNC('User & Location Information'!$E$12/100,0),LocationFactors!$B$4:$G$911,4,FALSE))/100*C11 ->  | F11: Pipeline to Forcemain: | G11: 0 | H11: Assume 2" dia pipe and trench | J11: =IF(E10="",D10,E10) ->  | M11: Year | N11: Annualized Costs | P11: Periodic Costs | Q11: Total Cost in Year Zero | R11: Sum Cost of Year | S11: Sum Cost of Year Adjusted for Inflation | T11: Present Value of Cost of Year | U11: Inflation Factor | V11: Discount Factor
A12: 2" PVC Ball Valve: | C12: 69.3 | D12: =(VLOOKUP(TRUNC('User & Location Information'!$E$12/100,0),LocationFactors!$B$4:$G$911,4,FALSE))/100*C12 ->  | F12: Check Valve: | G12: 0 | J12: =IF(E11="",D11,E11) ->  | N12: Energy | O12: Maintenance
A13: Labor & Equipment to Install On-Lot Components ($ per installation) | F13: Ball Valve: | G13: 0 | J13: =IF(E12="",D12,E12) ->  | M13: 0 | Q13: =R3 ->  | R13: =IF($R$2>=$M$13,(SUM(N13:P13)+Q13),"") ->  | S13: =R13*U13 ->  | T13: =S13*V13 ->  | U13: =IF(R$2>=M13,((1+R$7)^M13),"") -> 1 | V13: =IF(R$2>=M13,((1/(1+R$6)^M13)),"") -> 1
C14: 1540 | D14: =(VLOOKUP(TRUNC('User & Location Information'!$E$12/100,0),LocationFactors!$B$4:$G$911,5,FALSE))/100*C14 ->  | F14: Equipment & Labor: | G14: 0 | J14: =IF(E14="",D14,E14) ->  | M14: =IF(ISERROR(IF($R$2>=M13+1,M13+1,"")),"",IF($R$2>=M13+1,M13+1,"")) -> 1 | N14: =IF(M14<=$R$2, $R$4, "") -> 0 | O14: =IF(M14<=$R$2,$R$5,"") ->  | R14: =IF(M14<=$R$2,SUM(N14:P14),"") ->  | S14: =IF(M14<=$R$2,R14*U14,"") ->  | T14: =IF(M14<=$R$2,S14*V14,"") ->  | U14: 1.03 | V14: 0.9523809524
M15: =IF(ISERROR(IF($R$2>=M14+1,M14+1,"")),"",IF($R$2>=M14+1,M14+1,"")) -> 2 | N15: =IF(M15<=$R$2, $R$4, "") -> 0 | O15: =IF(M15<=$R$2,$R$5,"") ->  | R15: =IF(M15<=$R$2,SUM(N15:P15),"") ->  | S15: =IF(M15<=$R$2,R15*U15,"") ->  | T15: =IF(M15<=$R$2,S15*V15,"") ->  | U15: 1.0609 | V15: 0.9070294785
A16: Collection Network Cost | I16: Average Cost for On-Lot Components: | L16: =SUM(L8:L14)/J4 ->  | M16: 3 | N16: 0 | U16: 1.092727 | V16: 0.8638375985
J17: Total of all Lots: | L17: =SUM(L8:L14) ->  | M17: 4 | N17: 0 | U17: 1.12550881 | V17: 0.8227024748
A18: 6" Sch 40 PVC ($ per foot) | C18: 19 | D18: =(VLOOKUP(TRUNC('User & Location Information'!$E$12/100,0),LocationFactors!$B$4:$G$911,4,FALSE))/100*C18 ->  | M18: 5 | N18: 0 | U18: 1.159274074 | V18: 0.7835261665
A19: 4" Sch 40 PVC ($ per foot) | C19: 10.05 | D19: =(VLOOKUP(TRUNC('User & Location Information'!$E$12/100,0),LocationFactors!$B$4:$G$911,4,FALSE))/100*C19 ->  | M19: 6 | N19: 0 | U19: 1.194052297 | V19: 0.7462153966
A20: 3" Sch 40 PVC: ($ per foot) | C20: 6.6 | D20: =(VLOOKUP(TRUNC('User & Location Information'!$E$12/100,0),LocationFactors!$B$4:$G$911,4,FALSE))/100*C20 ->  | F20: Collection Network Components | J20: Unit Cost | L20: Cost | M20: 7 | N20: 0 | U20: 1.229873865 | V20: 0.7106813301
A21: 2" Sch 40 PVC: ($ per foot) | C21: 3.6 | D21: =(VLOOKUP(TRUNC('User & Location Information'!$E$12/100,0),LocationFactors!$B$4:$G$911,4,FALSE))/100*C21 ->  | F21: Feet of Directional Bore: | G21: =(J4/2)*30 -> 0 | H21: ft | I21: Cost Directional Bore: | J21: =IF(E25="",D25,E25) ->  | K21: per ft | L21: =G21*J21 ->  | M21: 8 | N21: 0 | U21: 1.266770081 | V21: 0.676839362
A22: Toning Wire: | C22: 0.11 | D22: =(VLOOKUP(TRUNC('User & Location Information'!$E$12/100,0),LocationFactors!$B$4:$G$911,4,FALSE))/100*C22 ->  | F22: This assumes 1/2 of connections are on opposite side of 30' road | M22: 9 | N22: 0 | U22: 1.304773184 | V22: 0.6446089162
A23: No. Air Release Valves: | C23: 229 | D23: =(VLOOKUP(TRUNC('User & Location Information'!$E$12/100,0),LocationFactors!$B$4:$G$911,4,FALSE))/100*C23 ->  | M23: 10 | N23: 0 | U23: 1.343916379 | V23: 0.6139132535
F24: Length of 2" Pipe: | G24: =IF(G4<=18000,G30,IF(G4<=36000,0.9*G30,IF(G4<=64800,0.8*G30,IF(G4<=144000,0.75*G30)))) -> 0 | H24: ft | I24: Cost of 2" dia. Pipe: | J24: =IF(E21="",D21,E21) ->  | K24: per ft | L24: =G24*J24 ->  | M24: 11 | N24: 0 | U24: 1.384233871 | V24: 0.5846792891
A25: Directional Boring ($ per foot) | C25: 20 | D25: =(VLOOKUP(TRUNC('User & Location Information'!$E$12/100,0),LocationFactors!$B$4:$G$911,5,FALSE))/100*C25 ->  | F25: Length of 3" Pipe: | G25: =IF(G4<=18000,0,IF(G4<=36000,G30*0.1,IF(G4<=64800,G30*0.15,IF(G4<=144000,G30*0.15)))) -> 0 | H25: ft | I25: Cost of 3" dia. Pipe: | J25: =IF(E20="",D20,E20) ->  | K25: per ft | M25: 12 | N25: 0 | U25: 1.425760887 | V25: 0.5568374182
A26: Labor and Equipment to connect vaults & install pipe network ($ per foot of pipe) | F26: Length of 4" Pipe: | G26: =IF(G4<=36000,0,IF(G4<=64800,G30*0.05,IF(G4<=144000,G30*0.05))) -> 0 | I26: Cost of 4" dia. Pipe: | J26: =IF(E19="",D19,E19) ->  | K26: per ft | M26: 13 | N26: 0 | U26: 1.468533713 | V26: 0.5303213506
C27: 11.5 | D27: =(VLOOKUP(TRUNC('User & Location Information'!$E$12/100,0),LocationFactors!$B$4:$G$911,5,FALSE))/100*C27 ->  | F27: Length of 6" Pipe: | G27: =IF(G4<=64800,0,IF(G4<=144000,G30*0.05)) -> 0 | I27: Cost of 6" dia. Pipe: | J27: =IF(E18="",D18,E18) ->  | K27: per ft | M27: 14 | N27: 0 | U27: 1.512589725 | V27: 0.505067953
A28: Annual Maintenance Costs | F28: Toning Wire: | G28: =G30 -> 0 | H28: ft | I28: Toning Wire Cost: | J28: =IF(E22="",D22,E22) ->  | K28: per ft | M28: 15 | N28: 0 | U28: 1.557967417 | V28: 0.4810170981
F29: No. Air Release Valves: | G29: =G30/500 -> 0 | I29: Cost Air Release Valve: | J29: =IF(E23="",D23,E23) ->  | M29: 16 | N29: 0 | U29: 1.604706439 | V29: 0.458111522
A30: Annual Maintenance Salary | C30: 1.1 | D30: =(VLOOKUP(TRUNC('User & Location Information'!$E$12/100,0),LocationFactors!$B$4:$G$911,5,FALSE))/100*C30 ->  | F30: Total Pipe Length: | G30: =J4*J3/2 -> 0 | H30: ft | I30: Equipment & labor: | J30: =IF(E27="",D27,E27) ->  | K30: per ft | M30: 17 | N30: 0 | U30: 1.652847632 | V30: 0.4362966876
I31: $5.85 is RSMeans at 1 to 4 feet deep, 12" wide | M31: 18 | N31: 0 | U31: 1.702433061 | V31: 0.4155206549
F32: Materials: | M32: 19 | N32: 0 | U32: 1.753506053 | V32: 0.395733957
F33: Cost of Materials: | G33: For collection Network - Not on-lot components | L33: =SUM(L21,L24,L25,L26,L27,L28,L29) ->  | M33: 20 | N33: 0 | U33: 1.806111235 | V33: 0.3768894829
F34: 20% P&O for Materials: | G34: =IF('User & Location Information'!F25="",'User & Location Information'!E25/100,'User & Location Information'!F25/100) -> 0.2 | L34: =L33*G34 ->  | M34: 21 | N34: 0 | U34: 1.860294572 | V34: 0.3589423646
F35: Sales Tax on Materials: | G35: ='User & Location Information'!E14/100 -> 0 | L35: =L33*G35 ->  | M35: 22 | N35: 0 | U35: 1.916103409 | V35: 0.3418498711
F36: Total Materials: | L36: =SUM(L33:L35) ->  | M36: 23 | N36: 0 | U36: 1.973586511 | V36: 0.3255713058
M37: 24 | N37: 0 | U37: 2.032794106 | V37: 0.3100679103
F38: Labor & Equipment: | M38: 25 | N38: 0 | U38: 2.09377793 | V38: 0.2953027717
F39: Cost of Labor & Equipment: | L39: =SUM(L30) ->  | M39: 26 | N39: 0 | U39: 2.156591268 | V39: 0.281240735
F40: 20% P&O Labor & Equipment: | G40: =IF('User & Location Information'!F26="",'User & Location Information'!E26/100,'User & Location Information'!F26/100) -> 0.2 | L40: =G40*L39 ->  | M40: 27 | N40: 0 | U40: 2.221289006 | V40: 0.267848319
F41: Total Labor & Equipment: | L41: =SUM(L39:L40) ->  | M41: 28 | N41: 0 | U41: 2.287927676 | V41: 0.2550936371
M42: 29 | N42: 0 | U42: 2.356565506 | V42: 0.2429463211
F43: Professional Services Fees: | M43: 30 | N43: 0 | U43: 2.427262471 | V43: 0.2313774487
M44: 31 | N44: 0 | U44: 2.500080345 | V44: 0.2203594749
F45: Capital Costs: | G45: for collection network - not on-lot components | L45: =SUM(L36,L41,L43) ->  | M45: 32 | N45: 0 | U45: 2.575082756 | V45: 0.2098661666
M46: 33 | N46: 0 | U46: 2.652335238 | V46: 0.1998725396
F47: Energy Costs: | M47: 34 | N47: 0 | U47: 2.731905296 | V47: 0.1903547996
F48: Electrical Cost | G48: ='User & Location Information'!E16 -> 0.13 | H48: $/kW∙h | J48: Homeowner pays electrical | M48: 35 | N48: 0 | U48: 2.813862454 | V48: 0.1812902854
F49: Aeration Power | H49: kW | M49: 36 | N49: 0 | U49: 2.898278328 | V49: 0.1726574146
F50: Aeration Run Time | H50: hr/d | M50: 37 | N50: 0 | U50: 2.985226678 | V50: 0.164435633
F51: Panel Power: | H51: kW | I51: Inflation Rate (%): | J51: 0.03 | M51: 38 | N51: 0 | U51: 3.074783478 | V51: 0.1566053647
F52: Annual Electric Cost: | I52: Discount Rate (%): | J52: 0.05 | M52: 39 | N52: 0 | U52: 3.167026983 | V52: 0.1491479664
I53: Salvage Value: | J53: None | M53: 40 | N53: 0 | U53: 3.262037792 | V53: 0.1420456823
I54: Depreciation: | J54: None | M54: 41 | N54: 0 | U54: 3.359898926 | V54: 0.1352816022
F55: Life Cycle Costs: | M55: 42 | N55: 0 | U55: 3.460695894 | V55: 0.1288396211
F56: System Annual Maintenance: | G56: =IF(E30="",D30,E30)*G4 ->  | H56: salary | M56: 43 | N56: 0 | U56: 3.56451677 | V56: 0.1227044011
F57: Jet 10% of pipes per year ($15/ft) | G57: =(0.1*G30)*J57 -> 0 | H57: Unit Cost to Jet Pipe $/foot: | J57: =Database!F52 -> 15 | M57: 44 | N57: 0 | U57: 3.671452273 | V57: 0.1168613344
F58: Pump 10% of basin per year ($100 ea) | G58: =J4*0.1*100 -> 0 | M58: 45 | N58: 0 | U58: 3.781595842 | V58: 0.1112965089
F59: Replace pumps 10 yrs @ $2,500 | G59: =(J4*J9)/10 ->  | H59: per yr | M59: 46 | N59: 0 | U59: 3.895043717 | V59: 0.1059966752
F60: Total per year O&M | G60: =SUM(G56:G59) ->  | M60: 47 | N60: 0 | U60: 4.011895028 | V60: 0.1009492144
M61: 48 | N61: 0 | U61: 4.132251879 | V61: 0.09614210899
F62: Annual Individual On-Lot Maintenance: | G62: =(J9/10)+(J10/10) ->  | H62: Includes 10-yr cycle of replace pump and controls | M62: 49 | N62: 0 | U62: 4.256219436 | V62: 0.09156391332
M63: 50 | N63: 0 | U63: 4.383906019 | V63: 0.08720372697
M64: 51 | N64: 0 | U64: 4.515423199 | V64: 0.08305116855
F65: System Life (years) | G65: 60 | H65: yrs | M65: 52 | N65: 0 | U65: 4.650885895 | V65: 0.079096351
M66: 53 | N66: 0 | U66: 4.790412472 | V66: 0.07532985809
F67: Life Cycle Present Value: | G67: =R9 ->  | M67: 54 | N67: 0 | U67: 4.934124846 | V67: 0.07174272199
M68: 55 | N68: 0 | U68: 5.082148592 | V68: 0.0683264019
M69: 56 | N69: 0 | U69: 5.234613049 | V69: 0.06507276371
M70: 57 | N70: 0 | U70: 5.391651441 | V70: 0.06197406068
M71: 58 | N71: 0 | U71: 5.553400984 | V71: 0.05902291493
M72: 59 | N72: 0 | U72: 5.720003014 | V72: 0.05621229993
M73: 60 | N73: 0 | U73: 5.891603104 | V73: 0.05353552375

Sheet Gravity Trench Builder
A1: Gravity-Flow Trench Dispersal Costing Information | F1: Technology: Gravity-Flow Trenches | N1: =F1 -> Technology: Gravity-Flow Trenches | Q1: =G3 -> 0 | R1: =H3 -> gpd
F2: Assumptions: | Q2: System Life (years) | R2: =G78 -> 60
A3: Question: What are you using for the trench media? If crushed aggregate is being used - put a "1" in cell E7, if a liner trench media is being used - enter a "2" in cell E7 | F3: Flow: | G3: ='Wastewater Volume Calculator'!J96 -> 0 | H3: gpd | I3: Soil: | J3: =IF('Soil Types & Application Rates'!K41=1,'Soil Types & Application Rates'!K38, IF('Soil Types & Application Rates'!K41=2,'Soil Types & Application Rates'!K39)) ->  | K3: gpd/ft2 | Q3: Construction and Installation Costs | R3: =L62 -> 
F4: Trench Width: | G4: 3 | H4: ft | I4: Trench Depth | J4: 2 | K4: ft | Q4: Annual Energy Costs | R4: =G69 -> 0
E5: 1 | Q5: Annual Maintenance Cost | R5: =G76 -> 
A6: Question: What is the Unit Weight of the crushed aggregate? Enter pounds per cubic foot in Cell E10 | Q6: Discount Factor (as percent) | R6: =J74 -> 0.05
E7: 95 | F7: Absorption Field Design: | Q7: Inflation Rate (as percent) | R7: =J73 -> 0.03
A8: Pump Tank Volume Information | F8: Design Infiltrative Surface Area: | G8: =G3/J3 ->  | H8: ft2
A9: Assumption: volume is 1 (default value) times the daily flow (in gallons) then converted to cubic feet | F9: Total Trench Length: | G9: =G8/G4 ->  | H9: ft | Q9: Present Value of System Life Cycle Cost | R9: =SUM(T13:T73) -> 
F10: Number of Trenches | G10: =ROUNDUP(G9/100,0) -> 
A11: To change the default value (1), enter a new multiplier: | F11: Average Length per Trench | G11: =G9/G10 ->  | H11: ft | M11: Year | N11: Annualized Costs | P11: Periodic Costs | Q11: Total Cost in Year Zero | R11: Sum Cost of Year | S11: Sum Cost of Year Adjusted for Inflation | T11: Present Value of Cost of Year | U11: Inflation Factor | V11: Discount Factor
F12: Laterals per Zone: | G12: 8 | N12: Energy | O12: Maintenance | X12: Zones assumes 8 laterals per zone
A13: Item | C13: Default Unit Cost | D13: Location Factor Unit Cost | E13: User Provided Unit Cost | F13: Number of Zones: | G13: =ROUNDUP(G10/G12,0) ->  | M13: 0 | Q13: =R3 ->  | R13: =IF($R$2>=$M$13,(SUM(N13:P13)+Q13),"") ->  | S13: =R13*U13 ->  | T13: =S13*V13 ->  | U13: =IF(R$2>=M13,((1+R$7)^M13),"") -> 1 | V13: =IF(R$2>=M13,((1/(1+R$6)^M13)),"") -> 1
F14: Total Distribution Field Area | G14: =(G11+6)*9*G10 ->  | H14: ft2 | M14: =IF(ISERROR(IF($R$2>=M13+1,M13+1,"")),"",IF($R$2>=M13+1,M13+1,"")) -> 1 | N14: =IF(M14<=$R$2, $R$4, "") -> 0 | O14: =IF(M14<=$R$2,$R$5,"") ->  | R14: =IF(M14<=$R$2,SUM(N14:P14),"") ->  | S14: =IF(M14<=$R$2,R14*U14,"") ->  | T14: =IF(M14<=$R$2,S14*V14,"") ->  | U14: 1.03 | V14: 0.9523809524
M15: 2 | N15: 0 | U15: 1.0609 | V15: 0.9070294785
A16: Washed Rock Trench Media ($ per ton) | C16: 10.5 | D16: =(VLOOKUP(TRUNC('User & Location Information'!$E$12/100,0),LocationFactors!$B$4:$G$911,4,FALSE))/100*C16 ->  | M16: 3 | N16: 0 | U16: 1.092727 | V16: 0.8638375985
A17: Other Trench Media ($ per ft trench) | C17: 6 | D17: =(VLOOKUP(TRUNC('User & Location Information'!$E$12/100,0),LocationFactors!$B$4:$G$911,4,FALSE))/100*C17 ->  | F17: Pump System (if needed): | I17: Notes | J17: Unit Cost | L17: Cost | M17: 4 | N17: 0 | U17: 1.12550881 | V17: 0.8227024748
A18: Pump | C18: 731 | D18: =(VLOOKUP(TRUNC('User & Location Information'!$E$12/100,0),LocationFactors!$B$4:$G$911,4,FALSE))/100*C18 ->  | F18: Pump Tank Volume: | G18: =G3*IF(E11="",1,E11) -> 0 | I18: cost/gallon | J18: =IF(E19="",D19,E19) ->  | K18: $/gal | L18: =G18*J18 ->  | M18: 5 | N18: 0 | U18: 1.159274074 | V18: 0.7835261665
A19: Pump Tank: | C19: 1.5 | D19: =(VLOOKUP(TRUNC('User & Location Information'!$E$12/100,0),LocationFactors!$B$4:$G$911,4,FALSE))/100*C19 ->  | M19: 6 | N19: 0 | U19: 1.194052297 | V19: 0.7462153966
A20: Pump Vault: | C20: 188 | D20: =(VLOOKUP(TRUNC('User & Location Information'!$E$12/100,0),LocationFactors!$B$4:$G$911,4,FALSE))/100*C20 ->  | F20: Pump Flow per Zone | G20: =0.1442*(G3^0.5919) -> 0 | H20: gpm | M20: 7 | N20: 0 | U20: 1.229873865 | V20: 0.7106813301
A21: Pump Control Panel (cost per pump) | C21: 1044 | D21: =(VLOOKUP(TRUNC('User & Location Information'!$E$12/100,0),LocationFactors!$B$4:$G$911,4,FALSE))/100*C21 ->  | F21: Pump Pressure: | G21: 65 | H21: ft | M21: 8 | N21: 0 | U21: 1.266770081 | V21: 0.676839362
A22: Index Valves: | C22: 157 | D22: =(VLOOKUP(TRUNC('User & Location Information'!$E$12/100,0),LocationFactors!$B$4:$G$911,4,FALSE))/100*C22 ->  | F22: Number of Pumps: | G22: =IF(G3<500,0, IF(G3/G20<960,1,2)) -> 0 | J22: =IF(E18="",D18,E18) ->  | L22: =G22*J22 ->  | M22: 9 | N22: 0 | U22: 1.304773184 | V22: 0.6446089162 | X22: number of pumps determined by flow rate and 16 hours of operation
A23: 4" Sch 40 PVC: ($ per foot) | C23: 0.63 | D23: =(VLOOKUP(TRUNC('User & Location Information'!$E$12/100,0),LocationFactors!$B$4:$G$911,4,FALSE))/100*C23 ->  | F23: Pump Vaults: | G23: =G22 -> 0 | J23: =IF(E20="",D20,E20) ->  | L23: =G23*J23 ->  | M23: 10 | N23: 0 | U23: 1.343916379 | V23: 0.6139132535
A24: 3" Sch 40 PVC: ($ per foot) | C24: 6.6 | D24: =(VLOOKUP(TRUNC('User & Location Information'!$E$12/100,0),LocationFactors!$B$4:$G$911,4,FALSE))/100*C24 ->  | F24: Pump Control Panel | G24: =G22 -> 0 | J24: =IF(E21="",D21,E21) ->  | M24: 11 | N24: 0 | U24: 1.384233871 | V24: 0.5846792891 | X24: number of pumps multiples control panel price by $1000
A25: 2" Sch 40 PVC: ($ per foot) | C25: 3.3 | D25: =(VLOOKUP(TRUNC('User & Location Information'!$E$12/100,0),LocationFactors!$B$4:$G$911,4,FALSE))/100*C25 ->  | F25: Pump & Tank Installation: | G25: $ per tank gallon | J25: =IF(E36="",D36,E36) ->  | L25: =G18*J25 ->  | M25: 12 | N25: 0 | U25: 1.425760887 | V25: 0.5568374182 | X25: $0.10 per gallon of tank to install
A26: 1" Sch 40 PVC: ($ per foot) | C26: 1.96 | D26: =(VLOOKUP(TRUNC('User & Location Information'!$E$12/100,0),LocationFactors!$B$4:$G$911,4,FALSE))/100*C26 ->  | F26: Control Panel Installation: | G26: =G13+G22 ->  | H26: #zones+#pumps | J26: =IF(E39="",D39,E39) ->  | M26: 13 | N26: 0 | U26: 1.468533713 | V26: 0.5303213506
A27: 4" Corrugated Pipe: ($ per foot) | C27: 0.47 | D27: =(VLOOKUP(TRUNC('User & Location Information'!$E$12/100,0),LocationFactors!$B$4:$G$911,4,FALSE))/100*C27 ->  | M27: 14 | N27: 0 | U27: 1.512589725 | V27: 0.505067953
A28: Distribution Box | C28: 42 | D28: =(VLOOKUP(TRUNC('User & Location Information'!$E$12/100,0),LocationFactors!$B$4:$G$911,4,FALSE))/100*C28 ->  | M28: 15 | N28: 0 | U28: 1.557967417 | V28: 0.4810170981
A29: Installation | F29: Trench System: | M29: 16 | N29: 0 | U29: 1.604706439 | V29: 0.458111522
F30: Washed Rock Media: | G30: =IF(E5=1,G8*E7/2000,0) ->  | I30: tons | J30: =IF(E16="",D16,E16) ->  | L30: =G30*J30 ->  | M30: 17 | N30: 0 | U30: 1.652847632 | V30: 0.4362966876
A31: Trench Excavation and Install Media ($ per foot trench) ($ per foot of tubing) | F31: Other Trench Media: | G31: =IF(E5=2,G9,0) -> 0 | I31: feet by 3' wide | J31: =IF(E17="",D17,E17) ->  | L31: =IF(ISBLANK(G31), "",H31*J31*G31) ->  | M31: 18 | N31: 0 | U31: 1.702433061 | V31: 0.4155206549
C32: 1.79 | D32: =(VLOOKUP(TRUNC('User & Location Information'!$E$12/100,0),LocationFactors!$B$4:$G$911,5,FALSE))/100*C32 ->  | F32: Excavation & Install Media | J32: =IF(E32="",D32,E32) ->  | L32: =J32*G3 ->  | M32: 19 | N32: 0 | U32: 1.753506053 | V32: 0.395733957 | X32: excavation and install - $0.50 per gpd
A33: Trenching and Pipe Placement for Supply Lines & manifolds ($ per foot) ($ per foot of pipe) | M33: 20 | N33: 0 | U33: 1.806111235 | V33: 0.3768894829
C34: 5.38 | D34: =(VLOOKUP(TRUNC('User & Location Information'!$E$12/100,0),LocationFactors!$B$4:$G$911,5,FALSE))/100*C34 ->  | M34: 21 | N34: 0 | U34: 1.860294572 | V34: 0.3589423646
A35: Pump Tank Excavation and Installation (based on $ per gallon) | F35: Distribution to Trenches: | M35: 22 | N35: 0 | U35: 1.916103409 | V35: 0.3418498711
C36: 1.8 | D36: =(VLOOKUP(TRUNC('User & Location Information'!$E$12/100,0),LocationFactors!$B$4:$G$911,5,FALSE))/100*C36 ->  | F36: 4" Corrugated Pipe: | G36: =G9 ->  | H36: ft | J36: =IF(E27="",D27,E27) ->  | L36: =G36*J36 ->  | M36: 23 | N36: 0 | U36: 1.973586511 | V36: 0.3255713058
A37: Pump & Control System Installation - estimated to be one hour per pump plus one hour per zone ($ per hour) | F37: 2" pump to D-Box line: | G37: =0.035*G14 ->  | H37: ft | J37: =IF(E25="",D25,E25) ->  | L37: =G37*J37 ->  | M37: 24 | N37: 0 | U37: 2.032794106 | V37: 0.3100679103 | X37: 0.035 ft of pump to D-box pipe needed per ft2 of application area
F38: 4" PVC pipe: | G38: =G14*0.029 ->  | J38: =IF(E23="",D23,E23) ->  | L38: =G38*J38 ->  | M38: 25 | N38: 0 | U38: 2.09377793 | V38: 0.2953027717 | X38: 0.029 ft of 4" PVC per ft2 of application area
C39: 117 | D39: =(VLOOKUP(TRUNC('User & Location Information'!$E$12/100,0),LocationFactors!$B$4:$G$911,5,FALSE))/100*C39 ->  | F39: Distribution Box: | G39: =G13 ->  | J39: =IF(E28="",D28,E28) ->  | L39: =G39*J39 ->  | M39: 26 | N39: 0 | U39: 2.156591268 | V39: 0.281240735 | X39: one distribution box per zone
F40: Index Valves: | G40: =ROUNDUP(G13/5,0) ->  | J40: =IF(E22="",D22,E22) ->  | L40: =G40*J40 ->  | M40: 27 | N40: 0 | U40: 2.221289006 | V40: 0.267848319 | X40: Index valves: assumes five zones per index valve
F41: Distribution Installation: | G41: =G37+G38 ->  | J41: =IF(E34="",D34,E34) ->  | L41: =J41*G41 ->  | M41: 28 | N41: 0 | U41: 2.287927676 | V41: 0.2550936371
M42: 29 | N42: 0 | U42: 2.356565506 | V42: 0.2429463211
M43: 30 | N43: 0 | U43: 2.427262471 | V43: 0.2313774487
M44: 31 | N44: 0 | U44: 2.500080345 | V44: 0.2203594749
F45: =F1 -> Technology: Gravity-Flow Trenches | M45: 32 | N45: 0 | U45: 2.575082756 | V45: 0.2098661666
M46: 33 | N46: 0 | U46: 2.652335238 | V46: 0.1998725396
F47: =F3 -> Flow: | G47: =G3 -> 0 | H47: =H3 -> gpd | M47: 34 | N47: 0 | U47: 2.731905296 | V47: 0.1903547996
M48: 35 | N48: 0 | U48: 2.813862454 | V48: 0.1812902854
F49: Materials | M49: 36 | N49: 0 | U49: 2.898278328 | V49: 0.1726574146
F50: Cost of Materials: | L50: =SUM(L18,L22,L23,L24,L30,L31,L36,L37,L38,L39,L40) ->  | M50: 37 | N50: 0 | U50: 2.985226678 | V50: 0.164435633
F51: 20% P&O for Materials: | G51: =IF('User & Location Information'!F25="",'User & Location Information'!E25/100,'User & Location Information'!F25/100) -> 0.2 | L51: =L50*G51 ->  | M51: 38 | N51: 0 | U51: 3.074783478 | V51: 0.1566053647
F52: Sales Tax on Materials: | G52: ='User & Location Information'!E14/100 -> 0 | L52: =L50*G52 ->  | M52: 39 | N52: 0 | U52: 3.167026983 | V52: 0.1491479664
F53: Total Materials: | L53: =SUM(L50:L52) ->  | M53: 40 | N53: 0 | U53: 3.262037792 | V53: 0.1420456823
M54: 41 | N54: 0 | U54: 3.359898926 | V54: 0.1352816022
F55: Labor & Equipment | M55: 42 | N55: 0 | U55: 3.460695894 | V55: 0.1288396211
F56: Cost of Labor & Equipment: | L56: =SUM(L25:L26,L32,L41) ->  | M56: 43 | N56: 0 | U56: 3.56451677 | V56: 0.1227044011
F57: 20% P&O for Labor & Equipment: | G57: =IF('User & Location Information'!F26="",'User & Location Information'!E26/100,'User & Location Information'!F26/100) -> 0.2 | L57: =L56*G57 ->  | M57: 44 | N57: 0 | U57: 3.671452273 | V57: 0.1168613344
F58: Total Labor & Equipment: | L58: =SUM(L56:L57) ->  | M58: 45 | N58: 0 | U58: 3.781595842 | V58: 0.1112965089
M59: 46 | N59: 0 | U59: 3.895043717 | V59: 0.1059966752
F60: Professional Services Fees: | M60: 47 | N60: 0 | U60: 4.011895028 | V60: 0.1009492144
M61: 48 | N61: 0 | U61: 4.132251879 | V61: 0.09614210899
F62: Capital Costs: | L62: =SUM(L53,L58,L60) ->  | M62: 49 | N62: 0 | U62: 4.256219436 | V62: 0.09156391332
M63: 50 | N63: 0 | U63: 4.383906019 | V63: 0.08720372697
F64: Energy Costs | M64: 51 | N64: 0 | U64: 4.515423199 | V64: 0.08305116855
F65: Electrical Cost | G65: ='User & Location Information'!E16 -> 0.13 | H65: $/kW∙h | M65: 52 | N65: 0 | U65: 4.650885895 | V65: 0.079096351
F66: Pump Power: | G66: =(G20*G21)/(3960*0.6)*G22 -> 0 | H66: hp | M66: 53 | N66: 0 | U66: 4.790412472 | V66: 0.07532985809
F67: Pump Run Time: | G67: =IFERROR((G3/(G22*G20))/60,0) -> 0 | H67: hr/d | M67: 54 | N67: 0 | U67: 4.934124846 | V67: 0.07174272199
F68: Panel Power: | G68: =IF(G66>0,0.001,0) -> 0 | H68: kW | M68: 55 | N68: 0 | U68: 5.082148592 | V68: 0.0683264019
F69: Annual Electric Cost: | G69: =(G65*G66*0.746*G67*365)+(G68*24*365) -> 0 | M69: 56 | N69: 0 | U69: 5.234613049 | V69: 0.06507276371
M70: 57 | N70: 0 | U70: 5.391651441 | V70: 0.06197406068
M71: 58 | N71: 0 | U71: 5.553400984 | V71: 0.05902291493
F72: Life Cycle Costs: | M72: 59 | N72: 0 | U72: 5.720003014 | V72: 0.05621229993
F73: Annual Maintenance: | G73: =0.1*G3 -> 0 | I73: Inflation Rate (%): | J73: 0.03 | M73: 60 | N73: 0 | U73: 5.891603104 | V73: 0.05353552375
F74: System Replacement: | G74: =L62/30 ->  | I74: Discount Rate (%): | J74: 0.05
F75: Annualized Pump Replacement: | G75: =IF(G22=0,0,J22/7) -> 0 | I75: Salvage Value: | J75: none
F76: Sum of Annual Maintenance: | G76: =SUM(G73:G75) ->  | I76: Depreciation: | J76: none
F78: System Life (years): | G78: 60
F80: Life Cycle Present Value: | G80: =R9 -> 

Sheet Drip Dispersal Builder
A1: Drip Irrigation Costing Information | F1: Technology: Drip Distribution | M1: =F1 -> Technology: Drip Distribution | P1: =G3 -> 0 | Q1: =H3 -> gpd | R1: 100
F2: Assumptions: dose two zones concurrent, flush one zone | Q2: System Life (years) | R2: =G83 -> 60
A3: Item | C3: Default Unit Cost | D3: Location Factor Unit Cost | E3: User Provided Unit Cost | F3: Flow: | G3: ='Wastewater Volume Calculator'!J96 -> 0 | H3: gpd | I3: Soil: | J3: =IF('Soil Types & Application Rates'!K41=1,'Soil Types & Application Rates'!K38, IF('Soil Types & Application Rates'!K41=2, 'Soil Types & Application Rates'!K39)) ->  | K3: gpd/ft2 | Q3: Construction and Installation Costs | R3: =L67 -> 
F4: Field Area Required: | G4: =G3/J3 ->  | H4: ft2 | I4: Dose Flow/lateral: | J4: =(G6/G8)*(G9/60) -> 0.5083333333 | K4: gpm | Q4: Annual Energy Costs | R4: =G74 -> 
A5: Pump | C5: 314 | D5: =(VLOOKUP(TRUNC('User & Location Information'!$E$12/100,0),LocationFactors!$B$4:$G$911,4,FALSE))/100*C5 ->  | F5: Total Length of Tubing: | G5: =G4/2 ->  | H5: ft | I5: Number of Zones: | J5: =EVEN(ROUNDUP(G12/G11,0)) ->  | Q5: Annual Maintenance Cost | R5: =G81 -> 
A6: Pump Tank: | C6: 1.5 | D6: =(VLOOKUP(TRUNC('User & Location Information'!$E$12/100,0),LocationFactors!$B$4:$G$911,4,FALSE))/100*C6 ->  | F6: Lateral Length | G6: =IF(G3<500,100,IF(G3>=500,250)) -> 100 | I6: Flush Velocity | J6: 2 | K6: fps | Q6: Discount Factor (as percent) | R6: =L79 -> 0.05
A7: Pump Vault: | C7: 188 | D7: =(VLOOKUP(TRUNC('User & Location Information'!$E$12/100,0),LocationFactors!$B$4:$G$911,4,FALSE))/100*C7 ->  | F7: Estimated Flow/Zone: | G7: =0.1442*(G3^0.5919) -> 0 | H7: ft | I7: Tubing Diameter | J7: 0.55 | K7: inch | Q7: Inflation Rate (as percent) | R7: =L78 -> 0.03
A8: Pump Control Panel (cost per pump) | C8: 1044 | D8: =(VLOOKUP(TRUNC('User & Location Information'!$E$12/100,0),LocationFactors!$B$4:$G$911,4,FALSE))/100*C8 ->  | F8: Emitter Spacing: | G8: 2 | H8: ft | I8: Flush Flow per Lateral: | J8: =(((J7/12)^2)/4)*3.14*J6*448.8 -> 1.480182917 | K8: gpm | Q8: Annual Replacement Budget
A9: Diaphragm Valves | C9: 105 | D9: =(VLOOKUP(TRUNC('User & Location Information'!$E$12/100,0),LocationFactors!$B$4:$G$911,4,FALSE))/100*C9 ->  | F9: Emitter Flow Rate: | G9: 0.61 | H9: gph | I9: Total Flow per Lateral: | J9: =J4+J8 -> 1.98851625 | K9: gpm | Q9: Present Value of System Life Cycle Cost | R9: =SUM(T13:T73) -> 
A10: Index Valves: | C10: 157 | D10: =(VLOOKUP(TRUNC('User & Location Information'!$E$12/100,0),LocationFactors!$B$4:$G$911,4,FALSE))/100*C10 ->  | F10: Estimated # of emitters/zone: | G10: =EVEN(ROUNDUP(G7/(G9/60),0)) -> 0 | H10: gpm | I10: Total Flow per Zone: | J10: =G11*J9 -> 0 | K10: gpm | M10: Year | N10: Annualized Costs | P10: Periodic Costs | Q10: Total Cost in Year Zero | R10: Sum Cost of Year | S10: Sum Cost of Year Adjusted for Inflation | T10: Present Value of Cost of Year | U10: Inflation Factor | V10: Discount Factor
A11: 3" PVC ball valve: | C11: 155 | D11: =(VLOOKUP(TRUNC('User & Location Information'!$E$12/100,0),LocationFactors!$B$4:$G$911,4,FALSE))/100*C11 ->  | F11: Estimated laterals/zone: | G11: =ROUNDUP(G10/(G6/G8),0) -> 0 | I11: Pump Operating Pressure: | J11: 45 | K11: psi
A12: 2" PVC Ball Valve: | C12: 76 | D12: =(VLOOKUP(TRUNC('User & Location Information'!$E$12/100,0),LocationFactors!$B$4:$G$911,4,FALSE))/100*C12 ->  | F12: Estimated Number of Laterals: | G12: =G5/G6 ->  | N12: Energy | O12: Maintenance
A13: 1" PVC Ball Valve: | C13: 36 | D13: =(VLOOKUP(TRUNC('User & Location Information'!$E$12/100,0),LocationFactors!$B$4:$G$911,4,FALSE))/100*C13 ->  | I13: Actual # of Laterals: | J13: =J5*G11 ->  | M13: 0 | Q13: =R3 ->  | R13: =IF($R$2>=$M$13,(SUM(N13:P13)+Q13),"") ->  | S13: =R13*U13 ->  | T13: =S13*V13 ->  | U13: =IF(R$2>=M13,((1+R$7)^M13),"") -> 1 | V13: =IF(R$2>=M13,((1/(1+R$6)^M13)),"") -> 1
A14: Filtration System: | C14: 2088 | D14: =(VLOOKUP(TRUNC('User & Location Information'!$E$12/100,0),LocationFactors!$B$4:$G$911,4,FALSE))/100*C14 ->  | I14: Total Tubing Length: | J14: =J13*G6 ->  | K14: ft | M14: =IF(ISERROR(IF($R$2>=M13+1,M13+1,"")),"",IF($R$2>=M13+1,M13+1,"")) -> 1 | N14: =IF(M14<=$R$2, $R$4, "") ->  | O14: =IF(M14<=$R$2,$R$5,"") ->  | P14: =IF(M14<=$R$2,$R$8,"") -> 0 | R14: =IF(M14<=$R$2,SUM(N14:P14),"") ->  | S14: =IF(M14<=$R$2,R14*U14,"") ->  | T14: =IF(M14<=$R$2,S14*V14,"") ->  | U14: 1.03 | V14: 0.9523809524
A15: Rolls of Tubing (1000-ft): | C15: 540 | D15: =(VLOOKUP(TRUNC('User & Location Information'!$E$12/100,0),LocationFactors!$B$4:$G$911,4,FALSE))/100*C15 ->  | I15: Pump Tank Volume: | J15: =IF(E36="",1,E36)*G3 -> 0 | K15: gal | M15: =IF(ISERROR(IF($R$2>=M14+1,M14+1,"")),"",IF($R$2>=M14+1,M14+1,"")) -> 2 | N15: =IF(M15<=$R$2, $R$4, "") ->  | O15: =IF(M15<=$R$2,$R$5,"") ->  | P15: =IF(M15<=$R$2,$R$8,"") -> 0 | R15: =IF(M15<=$R$2,SUM(N15:P15),"") ->  | S15: =IF(M15<=$R$2,R15*U15,"") ->  | T15: =IF(M15<=$R$2,S15*V15,"") ->  | U15: 1.0609 | V15: 0.9070294785
A16: Flex-PVC: | C16: 115 | D16: =(VLOOKUP(TRUNC('User & Location Information'!$E$12/100,0),LocationFactors!$B$4:$G$911,4,FALSE))/100*C16 ->  | M16: 3 | P16: 0 | U16: 1.092727 | V16: 0.8638375985
A17: Flex to Tube Couplers: | C17: 0.63 | D17: =(VLOOKUP(TRUNC('User & Location Information'!$E$12/100,0),LocationFactors!$B$4:$G$911,4,FALSE))/100*C17 ->  | M17: 4 | P17: 0 | U17: 1.12550881 | V17: 0.8227024748
A18: 3" Sch 40 PVC: | C18: 6.6 | D18: =(VLOOKUP(TRUNC('User & Location Information'!$E$12/100,0),LocationFactors!$B$4:$G$911,4,FALSE))/100*C18 ->  | F18: Headworks | I18: Notes | J18: Unit Cost | L18: Cost | M18: 5 | P18: 0 | U18: 1.159274074 | V18: 0.7835261665
A19: 2" Sch 40 PVC: | C19: 3.3 | D19: =(VLOOKUP(TRUNC('User & Location Information'!$E$12/100,0),LocationFactors!$B$4:$G$911,4,FALSE))/100*C19 ->  | F19: Pump Tank: | I19: $/tank gallon | J19: =IF(E6="",D6,E6) ->  | L19: =J19*J15 ->  | M19: 6 | P19: 0 | U19: 1.194052297 | V19: 0.7462153966
A20: 1" Sch 40 PVC: | C20: 1.96 | D20: =(VLOOKUP(TRUNC('User & Location Information'!$E$12/100,0),LocationFactors!$B$4:$G$911,4,FALSE))/100*C20 ->  | F20: Number of Pumps: | G20: =IF(G3<500,1,2) -> 1 | H20: each | I20: 12 gpm | J20: =IF(E5="",D5,E5) ->  | L20: =G20*J20 ->  | M20: 7 | P20: 0 | U20: 1.229873865 | V20: 0.7106813301 | X20: diaphragm valves = zones + return valve
A21: Other Fittings: | C21: 7.31 | D21: =(VLOOKUP(TRUNC('User & Location Information'!$E$12/100,0),LocationFactors!$B$4:$G$911,4,FALSE))/100*C21 ->  | F21: Pump Vault: | G21: =G20 -> 1 | H21: each | J21: =IF(E7="",D7,E7) ->  | L21: =G21*J21 ->  | M21: 8 | P21: 0 | U21: 1.266770081 | V21: 0.676839362
A22: Installation | F22: Pump Tank Installation: | G22: $/tank gallon | J22: =IF(E25="",D25,E25) ->  | L22: =J22*G3 ->  | M22: 9 | P22: 0 | U22: 1.304773184 | V22: 0.6446089162
M23: 10 | P23: 0 | U23: 1.343916379 | V23: 0.6139132535
A24: Pump Tank Excavation and Installation (based on $ per gallon) | F24: Pump Control Panel | G24: per pump cost | J24: =IF(E8="",D8,E8) ->  | L24: =G20*J24 ->  | M24: 11 | P24: 0 | U24: 1.384233871 | V24: 0.5846792891
C25: 1.8 | D25: =(VLOOKUP(TRUNC('User & Location Information'!$E$12/100,0),LocationFactors!$B$4:$G$911,5,FALSE))/100*C25 ->  | F25: Diaphragm Valves | G25: =J5 ->  | H25: each | L25: =G25*J25 ->  | M25: 12 | P25: 0 | U25: 1.425760887 | V25: 0.5568374182 | X25: 2000 is unit price, 500 gpd and less = 1/2 unit, and so on
A26: Trenching and Pipe Placement for Supply Lines & manifolds ($ per foot) ($ per foot of pipe) | F26: Index Valves: | G26: 0 | H26: each | M26: 13 | P26: 0 | U26: 1.468533713 | V26: 0.5303213506
C27: 5.38 | D27: =(VLOOKUP(TRUNC('User & Location Information'!$E$12/100,0),LocationFactors!$B$4:$G$911,5,FALSE))/100*C27 ->  | F27: 3" PVC ball valve: | G27: 0 | H27: each | M27: 14 | P27: 0 | U27: 1.512589725 | V27: 0.505067953
A28: Pump & Control System Installation - estimated to be one hour per pump plus one hour per zone ($ per hour) | F28: 2" PVC Ball Valve: | G28: =G20 -> 1 | H28: each | M28: 15 | P28: 0 | U28: 1.557967417 | V28: 0.4810170981
F29: 1" PVC Ball Valve: | G29: 0 | H29: each | M29: 16 | P29: 0 | U29: 1.604706439 | V29: 0.458111522
C30: 117 | D30: =(VLOOKUP(TRUNC('User & Location Information'!$E$12/100,0),LocationFactors!$B$4:$G$911,5,FALSE))/100*C30 ->  | F30: Filtration System: | G30: =IF(G3<500,0.5, IF(G3<1000, 1, IF(G3<5000,1.5, IF(G3<10000,2,IF(G3<10000,3, IF(G3>=10000,4)))))) -> 0.5 | H30: each | M30: 17 | P30: 0 | U30: 1.652847632 | V30: 0.4362966876
A31: Drip Tubing Installation and Connection ($ per foot of tubing) | L31: =G31*J31 -> 0 | M31: 18 | P31: 0 | U31: 1.702433061 | V31: 0.4155206549
C32: 0.89 | D32: =(VLOOKUP(TRUNC('User & Location Information'!$E$12/100,0),LocationFactors!$B$4:$G$911,5,FALSE))/100*C32 ->  | F32: Pump & Control Installation | G32: =G25+G20 ->  | H32: # of pumps + # of zones | J32: =IF(E30="",D30,E30) ->  | L32: =G32*J32 ->  | M32: 19 | P32: 0 | U32: 1.753506053 | V32: 0.395733957
A33: Pump Tank Volume Information | M33: 20 | P33: 0 | U33: 1.806111235 | V33: 0.3768894829 | X33: greater than 50 gpm is 3" pipe, pipe length is 0.01 * application area
A34: Assumption: volume is 1 (default value) times the daily flow (in gallons) then converted to cubic feet | F34: Distribution Network | I34: Notes | J34: Unit Cost | L34: Cost | M34: 21 | P34: 0 | U34: 1.860294572 | V34: 0.3589423646 | X34: 50 gpm and less is 2" pipe, pipe length is 0.01 * application area
F35: Rolls of Tubing (1000-ft): | G35: =ROUNDUP(J14/1000,0) ->  | H35: rolls | J35: =IF(E15="",D15,E15) ->  | L35: =G35*J35 ->  | M35: 22 | P35: 0 | U35: 1.916103409 | V35: 0.3418498711 | X35: 14 gpm and less is 1" pipe, pipe length is 0.05 * application area
A36: To change the default value (1), enter a new multiplier: | F36: Flex-PVC: | G36: =ROUNDUP((J13*4)/100,0) ->  | H36: rolls | L36: =G36*J36 ->  | M36: 23 | P36: 0 | U36: 1.973586511 | V36: 0.3255713058
F37: Flex to Tube Couplers: | G37: =J13*2 ->  | H37: each | L37: =G37*J37 ->  | M37: 24 | P37: 0 | U37: 2.032794106 | V37: 0.3100679103
F38: 3" Sch 40 PVC: | G38: =IF(J10<=50, 0, G4*0.01) -> 0 | H38: ft | L38: =G38*J38 ->  | M38: 25 | P38: 0 | U38: 2.09377793 | V38: 0.2953027717
F39: 2" Sch 40 PVC: | G39: =IF(J10<=14,0,IF(J10>=50,0,G4*0.01)) -> 0 | H39: ft | L39: =G39*J39 ->  | M39: 26 | P39: 0 | U39: 2.156591268 | V39: 0.281240735
F40: 1" Sch 40 PVC: | G40: =IF(J10>=14,0,G4*0.05) ->  | H40: ft | L40: =G40*J40 ->  | M40: 27 | P40: 0 | U40: 2.221289006 | V40: 0.267848319
F41: Other Fittings: | G41: =J13 ->  | H41: sets | I41: 1 set/lateral | L41: =G41*J41 ->  | M41: 28 | P41: 0 | U41: 2.287927676 | V41: 0.2550936371
F42: Trenching & pipe placement for supply lines & manifolds | M42: 29 | P42: 0 | U42: 2.356565506 | V42: 0.2429463211
G43: =SUM(G38:G40) ->  | H43: ft | J43: =IF(E27="",D27,E27) ->  | L43: =G43*J43 ->  | M43: 30 | P43: 0 | U43: 2.427262471 | V43: 0.2313774487
F44: Drip Tube Installation: | G44: =J14 ->  | H44: ft | I44: equip & labor | J44: =IF(E32="",D32,E32) ->  | L44: =G44*J44 ->  | M44: 31 | P44: 0 | U44: 2.500080345 | V44: 0.2203594749
M45: 32 | P45: 0 | U45: 2.575082756 | V45: 0.2098661666
M46: 33 | P46: 0 | U46: 2.652335238 | V46: 0.1998725396
M47: 34 | P47: 0 | U47: 2.731905296 | V47: 0.1903547996
M48: 35 | P48: 0 | U48: 2.813862454 | V48: 0.1812902854
M49: 36 | P49: 0 | U49: 2.898278328 | V49: 0.1726574146
F50: =F1 -> Technology: Drip Distribution | M50: 37 | P50: 0 | U50: 2.985226678 | V50: 0.164435633
M51: 38 | P51: 0 | U51: 3.074783478 | V51: 0.1566053647
F52: =F3 -> Flow: | G52: =G3 -> 0 | H52: gpd | M52: 39 | P52: 0 | U52: 3.167026983 | V52: 0.1491479664
M53: 40 | P53: 0 | U53: 3.262037792 | V53: 0.1420456823
F54: Materials: | M54: 41 | P54: 0 | U54: 3.359898926 | V54: 0.1352816022
F55: Cost of Materials: | L55: =SUM(L19,L20,L21,L24,L25,L26,L27,L28,L29,L30,L31,L35,L36,L37,L38,L39,L40,L41) ->  | M55: 42 | P55: 0 | U55: 3.460695894 | V55: 0.1288396211
F56: P&O for Materials: | G56: =IF('User & Location Information'!F25="",'User & Location Information'!E25/100,'User & Location Information'!F25/100) -> 0.2 | L56: =L55*G56 ->  | M56: 43 | P56: 0 | U56: 3.56451677 | V56: 0.1227044011
F57: Sales Tax on Materials: | G57: ='User & Location Information'!E14/100 -> 0 | L57: =L55*G57 ->  | M57: 44 | P57: 0 | U57: 3.671452273 | V57: 0.1168613344
F58: Total Materials: | L58: =SUM(L55:L57) ->  | M58: 45 | P58: 0 | U58: 3.781595842 | V58: 0.1112965089
M59: 46 | P59: 0 | U59: 3.895043717 | V59: 0.1059966752
F60: Labor & Equipment: | M60: 47 | P60: 0 | U60: 4.011895028 | V60: 0.1009492144
F61: Cost of Labor & Equipment: | L61: =SUM(L22,L23,L32,L44,L45) ->  | M61: 48 | P61: 0 | U61: 4.132251879 | V61: 0.09614210899
F62: Labor & Equipment: | G62: =IF('User & Location Information'!F26="",'User & Location Information'!E26/100,'User & Location Information'!F26/100) -> 0.2 | L62: =L61*G62 ->  | M62: 49 | P62: 0 | U62: 4.256219436 | V62: 0.09156391332
F63: Total Labor & Equipment: | L63: =SUM(L61:L62) ->  | M63: 50 | P63: 0 | U63: 4.383906019 | V63: 0.08720372697
M64: 51 | P64: 0 | U64: 4.515423199 | V64: 0.08305116855
F65: Professional Services Fees: | M65: 52 | P65: 0 | U65: 4.650885895 | V65: 0.079096351
M66: 53 | P66: 0 | U66: 4.790412472 | V66: 0.07532985809
F67: Capital Costs: | L67: =SUM(L58,L63,L65) ->  | M67: 54 | P67: 0 | U67: 4.934124846 | V67: 0.07174272199
M68: 55 | P68: 0 | U68: 5.082148592 | V68: 0.0683264019
F69: Energy Costs: | M69: 56 | P69: 0 | U69: 5.234613049 | V69: 0.06507276371
F70: Electrical Cost | G70: ='User & Location Information'!E16 -> 0.13 | H70: $/kW∙h | M70: 57 | P70: 0 | U70: 5.391651441 | V70: 0.06197406068
F71: Pump Power: | G71: =(((J11*2.31)*J10)/(3960*0.6))*G20 -> 0 | H71: hp | M71: 58 | P71: 0 | U71: 5.553400984 | V71: 0.05902291493
F72: Pump Run Time: | G72: =G3/J10/60 ->  | H72: hr/d | M72: 59 | P72: 0 | U72: 5.720003014 | V72: 0.05621229993
F73: Panel Power: | G73: 0.001 | H73: kW | I73: (assumes continuous power draw) | M73: 60 | P73: 0 | U73: 5.891603104 | V73: 0.05353552375
F74: Annual Electric Cost: | G74: =(G71*0.746*G72*G70*365)+(G73*8760*G70) -> 
F77: Life Cycle Costs:
F78: Annual Maintenance: | G78: =0.5*G3 -> 0 | H78: 50% of gpd | K78: Inflation Rate (%): | L78: 0.03
F79: Annualized Pump Replacement: | G79: =L20/7 ->  | K79: Discount Rate (%): | L79: 0.05
F80: Annualized Drip System Replacement: | G80: =L67/30 ->  | H80: 30 yr replacement | K80: Salvage Value: | L80: None
F81: Total Annualized Maintenance: | G81: =SUM(G78:G80) ->  | K81: Depreciation: | L81: None
F83: System Life (years) | G83: 60 | H83: yrs
F85: Life Cycle Present Value: | G85: =R9 -> 

Sheet Low Pressure Distribution
A1: Low Pressure Distribution Costing Information | F1: Technology: Low Pressure Distribution | M1: =F1 -> Technology: Low Pressure Distribution | P1: =G3 -> 0 | Q1: =H3 -> gpd | R1: 100
F2: Assumptions: | Q2: System Life (years) | R2: =G78 -> 60
A3: Item | C3: Default Unit Cost | D3: Location Factor Unit Cost | E3: User Provided Unit Cost | F3: Flow: | G3: ='Wastewater Volume Calculator'!J96 -> 0 | H3: gpd | I3: Soil: | J3: =IF('Soil Types & Application Rates'!K41=1, 'Soil Types & Application Rates'!K38, IF('Soil Types & Application Rates'!K41=2, 'Soil Types & Application Rates'!K39)) ->  | K3: gpd/ft2 | Q3: Construction and Installation Costs | R3: =L62 -> 
F4: Trench Width: | G4: 1 | H4: ft | I4: Trench Depth | J4: 1.5 | K4: ft | Q4: Annual Energy Costs | R4: =G69 -> 
A5: Pump | C5: 730 | D5: =(VLOOKUP(TRUNC('User & Location Information'!$E$12/100,0),LocationFactors!$B$4:$G$911,4,FALSE))/100*C5 ->  | Q5: Annual Maintenance Cost | R5: =G76 -> 
A6: Pump Tank ($ per gallon) | C6: 1.46 | D6: =(VLOOKUP(TRUNC('User & Location Information'!$E$12/100,0),LocationFactors!$B$4:$G$911,4,FALSE))/100*C6 ->  | F6: Absorption Field Design: | Q6: Discount Factor (as percent) | R6: =J74 -> 0.05
A7: Pump Control Panel ($ per pump) | C7: 1044 | D7: =(VLOOKUP(TRUNC('User & Location Information'!$E$12/100,0),LocationFactors!$B$4:$G$911,4,FALSE))/100*C7 ->  | F7: Field Area Required: | G7: =G3/J3 ->  | H7: ft2 | I7: Orifice Flow Rate: | J7: 0.5 | K7: gpm | Q7: Inflation Rate (as percent) | R7: =J73 -> 0.03
A8: Pump Vault or Pump Screen | C8: 188 | D8: =(VLOOKUP(TRUNC('User & Location Information'!$E$12/100,0),LocationFactors!$B$4:$G$911,4,FALSE))/100*C8 ->  | F8: Space Between Laterals: | G8: 5 | H8: ft | I8: Flow per Lateral: | J8: =(ROUNDDOWN((G11/5),0))*J7 ->  | K8: gpm
A9: Fittings (1 set per lateral) | C9: 26.25 | D9: =(VLOOKUP(TRUNC('User & Location Information'!$E$12/100,0),LocationFactors!$B$4:$G$911,4,FALSE))/100*C9 ->  | F9: Total Length of Laterals: | G9: =G7/G8 ->  | H9: ft | I9: Approx. Flow per Zone: | J9: =0.1442*(G3^0.5919) -> 0 | K9: gpm | Q9: Present Value of System Life Cycle Cost | R9: =SUM(T13:T73) -> 
A10: 4" Sch 40 PVC | C10: 9.15 | D10: =(VLOOKUP(TRUNC('User & Location Information'!$E$12/100,0),LocationFactors!$B$4:$G$911,4,FALSE))/100*C10 ->  | F10: Number of Laterals | G10: =G9/120 ->  | I10: Laterals per Zone: | J10: =ROUNDUP(J9/J8,0) ->  | P10: Periodic Costs | Q10: Total Cost in Year Zero | R10: Sum Cost of Year | S10: Sum Cost of Year Adjusted for Inflation | T10: Present Value of Cost of Year | U10: Inflation Factor | V10: Discount Factor
A11: 3" Sch 40 PVC | C11: 6.6 | D11: =(VLOOKUP(TRUNC('User & Location Information'!$E$12/100,0),LocationFactors!$B$4:$G$911,4,FALSE))/100*C11 ->  | F11: Average Lateral Length: | G11: =G9/G10 ->  | H11: ft | I11: # of Zones: | J11: =ROUNDUP(G10/J10,0) ->  | M11: Year | N11: Annualized Costs
A12: 2" Sch 40 PVC | C12: 3.33 | D12: =(VLOOKUP(TRUNC('User & Location Information'!$E$12/100,0),LocationFactors!$B$4:$G$911,4,FALSE))/100*C12 ->  | F12: Orifice Spacing | G12: 5 | H12: ft | I12: Actual Flow per Zone: | J12: =J10*J8 ->  | K12: gpm | N12: Energy | O12: Maintenance
A13: 1.5" Sch 40 PVC | C13: 2.73 | D13: =(VLOOKUP(TRUNC('User & Location Information'!$E$12/100,0),LocationFactors!$B$4:$G$911,4,FALSE))/100*C13 ->  | M13: 0 | Q13: =R3 ->  | R13: =IF($R$2>=$M$13,(SUM(N13:P13)+Q13),"") ->  | S13: =R13*U13 ->  | T13: =S13*V13 ->  | U13: =IF(R$2>=M13,((1+R$7)^M13),"") -> 1 | V13: =IF(R$2>=M13,((1/(1+R$6)^M13)),"") -> 1
A14: 1.25" Sch 40 PVC | C14: 2.49 | D14: =(VLOOKUP(TRUNC('User & Location Information'!$E$12/100,0),LocationFactors!$B$4:$G$911,4,FALSE))/100*C14 ->  | M14: =IF(ISERROR(IF($R$2>=M13+1,M13+1,"")),"",IF($R$2>=M13+1,M13+1,"")) -> 1 | N14: =IF(M14<=$R$2, $R$4, "") ->  | O14: =IF(M14<=$R$2,$R$5,"") ->  | R14: =IF(M14<=$R$2,SUM(N14:P14),"") ->  | S14: =IF(M14<=$R$2,R14*U14,"") ->  | T14: =IF(M14<=$R$2,S14*V14,"") ->  | U14: 1.03 | V14: 0.9523809524
A15: 2" Bronze Globe Valve | C15: 165 | D15: =(VLOOKUP(TRUNC('User & Location Information'!$E$12/100,0),LocationFactors!$B$4:$G$911,4,FALSE))/100*C15 ->  | M15: =IF(ISERROR(IF($R$2>=M14+1,M14+1,"")),"",IF($R$2>=M14+1,M14+1,"")) -> 2 | N15: =IF(M15<=$R$2, $R$4, "") ->  | O15: =IF(M15<=$R$2,$R$5,"") ->  | R15: =IF(M15<=$R$2,SUM(N15:P15),"") ->  | S15: =IF(M15<=$R$2,R15*U15,"") ->  | T15: =IF(M15<=$R$2,S15*V15,"") ->  | U15: 1.0609 | V15: 0.9070294785
A16: Index Valves: | C16: 157 | D16: =(VLOOKUP(TRUNC('User & Location Information'!$E$12/100,0),LocationFactors!$B$4:$G$911,4,FALSE))/100*C16 ->  | F16: Pump System Design: | I16: Notes | J16: Unit Cost | L16: Cost | M16: 3 | U16: 1.092727 | V16: 0.8638375985
A17: 3" Diaphragm Valves: | C17: 105 | D17: =(VLOOKUP(TRUNC('User & Location Information'!$E$12/100,0),LocationFactors!$B$4:$G$911,4,FALSE))/100*C17 ->  | F17: Pump Tank Volume: | G17: =G3*IF(E35="",1,E35) -> 0 | H17: gal | M17: 4 | U17: 1.12550881 | V17: 0.8227024748
A18: 3" PVC ball Valve: | C18: 155 | D18: =(VLOOKUP(TRUNC('User & Location Information'!$E$12/100,0),LocationFactors!$B$4:$G$911,4,FALSE))/100*C18 ->  | F18: Pump Tank: | H18: cost per gallon | J18: =IF(E6="",D6,E6) ->  | L18: =G17*J18 ->  | M18: 5 | U18: 1.159274074 | V18: 0.7835261665
A19: 2" PVC Ball Valve: | C19: 76 | D19: =(VLOOKUP(TRUNC('User & Location Information'!$E$12/100,0),LocationFactors!$B$4:$G$911,4,FALSE))/100*C19 ->  | F19: Pump Flow per Zone: | G19: =J12 ->  | H19: gpm | M19: 6 | U19: 1.194052297 | V19: 0.7462153966
A20: 1.5" PVC Ball Valve: | C20: 59 | D20: =(VLOOKUP(TRUNC('User & Location Information'!$E$12/100,0),LocationFactors!$B$4:$G$911,4,FALSE))/100*C20 ->  | F20: Pump Pressure: | G20: 120 | H20: ft | M20: 7 | U20: 1.229873865 | V20: 0.7106813301
A21: Washed Rock Media or Other Trench Media ($ per ton delivered) | F21: Number of Pumps: | G21: 1 | J21: =IF(E5="",D5,E5) ->  | L21: =G21*J21 ->  | M21: 8 | U21: 1.266770081 | V21: 0.676839362
C22: 11 | D22: =(VLOOKUP(TRUNC('User & Location Information'!$E$12/100,0),LocationFactors!$B$4:$G$911,4,FALSE))/100*C22 ->  | F22: Pump Vault: | G22: =G21 -> 1 | J22: =IF(E8="",D8,E8) ->  | L22: =G22*J22 ->  | M22: 9 | U22: 1.304773184 | V22: 0.6446089162
A23: Installation | F23: Control Panel: | G23: 1 | J23: =IF(E7="",D7,E7) ->  | L23: =G23*J23 ->  | M23: 10 | U23: 1.343916379 | V23: 0.6139132535
F24: Control System Installation: | G24: =G21+J11 ->  | H24: #pumps + #zones | J24: =IF(E31="",D31,E31) ->  | L24: =G24*J24 ->  | M24: 11 | U24: 1.384233871 | V24: 0.5846792891
A25: Pump Tank Excavation and Installation (based on $ per gallon) | F25: Pump & Tank Installation: | G25: =G17 -> 0 | I25: equip & electric | J25: =IF(E26="",D26,E26) ->  | M25: 12 | U25: 1.425760887 | V25: 0.5568374182
C26: 1.8 | D26: =(VLOOKUP(TRUNC('User & Location Information'!$E$12/100,0),LocationFactors!$B$4:$G$911,5,FALSE))/100*C26 ->  | M26: 13 | U26: 1.468533713 | V26: 0.5303213506
A27: Trenching, Pipe Placement, Riser & Sprayer Installation ($ per foot of pipe) | F27: Lateral System: | M27: 14 | U27: 1.512589725 | V27: 0.505067953
C28: 5.38 | D28: =(VLOOKUP(TRUNC('User & Location Information'!$E$12/100,0),LocationFactors!$B$4:$G$911,5,FALSE))/100*C28 ->  | F28: 2" diameter lateral: | G28: =G9 ->  | H28: ft | J28: =IF(E12="",D12,E12) ->  | L28: =G28*J28 ->  | M28: 15 | U28: 1.557967417 | V28: 0.4810170981
A29: Control System Installation - estimated to be one hour per pump plus one hour per zone ($ per hour) | F29: Washed Rock Media: | G29: =(G9*G4)*95/2000 ->  | I29: tons | J29: =IF(E22="",D22,E22) ->  | L29: =G29*J29 ->  | M29: 16 | U29: 1.604706439 | V29: 0.458111522
F30: Other Lateral Media: | H30: units | I30: time unit cost | L30: =G30*J30 -> 0 | M30: 17 | U30: 1.652847632 | V30: 0.4362966876
C31: 117 | D31: =(VLOOKUP(TRUNC('User & Location Information'!$E$12/100,0),LocationFactors!$B$4:$G$911,5,FALSE))/100*C31 ->  | M31: 18 | U31: 1.702433061 | V31: 0.4155206549
A32: Pump Tank Volume Information | F32: 2" Bronze Globe Valve: | G32: =G10 ->  | J32: =IF(E15="",D15,E15) ->  | L32: =G32*J32 ->  | M32: 19 | U32: 1.753506053 | V32: 0.395733957
A33: Assumption: volume is 1 (default value) times the daily flow (in gallons) then converted to cubic feet | F33: Fittings: | G33: =G10 ->  | H33: sets | I33: 1 set/lateral | J33: =IF(E9="",D9,E9) ->  | L33: =G33*J33 ->  | M33: 20 | U33: 1.806111235 | V33: 0.3768894829
F34: Lateral Installation: | G34: =G9 ->  | I34: equip & labor | J34: =IF(E28="",D28,E28) ->  | L34: =G34*J34 ->  | M34: 21 | U34: 1.860294572 | V34: 0.3589423646
A35: To change the default value (1), enter a new multiplier: | M35: 22 | U35: 1.916103409 | V35: 0.3418498711
F36: Distribution to Laterals: | M36: 23 | U36: 1.973586511 | V36: 0.3255713058
F37: Index Valves: | G37: =ROUNDUP(EVEN(J11/5),0) ->  | J37: =IF(E16="",D16,E16) ->  | L37: =G37*J37 ->  | M37: 24 | U37: 2.032794106 | V37: 0.3100679103
F38: 4" Sch 40 PVC: | G38: =IF($J$12>=180,0,IF($J$12<100, 0,((($J$10*$G$8)/2)*($J$11^2))+((($J$10*$G$8)/2)*($J$11)))) ->  | J38: =IF(E10="",D10,E10) ->  | L38: =G38*J38 ->  | M38: 25 | U38: 2.09377793 | V38: 0.2953027717
F39: 3" Sch 40 PVC: | G39: =IF($J$12>=100,0,IF($J$12<50, 0,((($J$10*$G$8)/2)*($J$11^2))+((($J$10*$G$8)/2)*($J$11)))) ->  | J39: =IF(E11="",D11,E11) ->  | L39: =G39*J39 ->  | M39: 26 | U39: 2.156591268 | V39: 0.281240735
F40: 2" Sch 40 PVC: | G40: =IF($J$12>=50,0,IF($J$12<30, 0,((($J$10*$G$8)/2)*($J$11^2))+((($J$10*$G$8)/2)*($J$11)))) ->  | J40: =IF(E12="",D12,E12) ->  | L40: =G40*J40 ->  | M40: 27 | U40: 2.221289006 | V40: 0.267848319
F41: 1.5 Sch 40 PVC: | G41: =IF($J$12>=30,0,((($J$10*$G$8)/2)*($J$11^2))+((($J$10*$G$8)/2)*($J$11))) ->  | J41: =IF(E13="",D13,E13) ->  | L41: =G41*J41 ->  | M41: 28 | U41: 2.287927676 | V41: 0.2550936371
F42: 3" PVC ball valve: | G42: 3 | J42: =IF(E18="",D18,E18) ->  | M42: 29 | U42: 2.356565506 | V42: 0.2429463211
F43: 3" diaphragm Valve | G43: 1 | J43: =IF(E17="",D17,E17) ->  | M43: 30 | U43: 2.427262471 | V43: 0.2313774487
F44: Distribution System Installation: | G44: =SUM(G39:G41) ->  | H44: ft | I44: equip & labor | J44: =IF(E28="",D28,E28) ->  | L44: =G44*J44 ->  | M44: 31 | U44: 2.500080345 | V44: 0.2203594749
F45: =F1 -> Technology: Low Pressure Distribution | M45: 32 | U45: 2.575082756 | V45: 0.2098661666
M46: 33 | U46: 2.652335238 | V46: 0.1998725396
F47: =F3 -> Flow: | G47: =G3 -> 0 | H47: =H3 -> gpd | M47: 34 | U47: 2.731905296 | V47: 0.1903547996
M48: 35 | U48: 2.813862454 | V48: 0.1812902854
F49: Materials | M49: 36 | U49: 2.898278328 | V49: 0.1726574146
F50: Cost of Materials: | L50: =SUM(L18,L21:L23,L28:L33,L37:L43) ->  | M50: 37 | U50: 2.985226678 | V50: 0.164435633
F51: P&O for Materials: | G51: =IF('User & Location Information'!F25="",'User & Location Information'!E25/100,'User & Location Information'!F25/100) -> 0.2 | L51: =G51*L50 ->  | M51: 38 | U51: 3.074783478 | V51: 0.1566053647
F52: Sales Tax on Materials: | G52: ='User & Location Information'!E14/100 -> 0 | L52: =L50*G52 ->  | M52: 39 | U52: 3.167026983 | V52: 0.1491479664
F53: Total Materials: | L53: =SUM(L50:L52) ->  | M53: 40 | U53: 3.262037792 | V53: 0.1420456823
M54: 41 | U54: 3.359898926 | V54: 0.1352816022
F55: Labor & Equipment | M55: 42 | U55: 3.460695894 | V55: 0.1288396211
F56: Cost of Labor & Equipment: | L56: =SUM(L24:L25,L34,L44) ->  | M56: 43 | U56: 3.56451677 | V56: 0.1227044011
F57: P&O for Labor & Equipment: | G57: =IF('User & Location Information'!F26="",'User & Location Information'!E26/100,'User & Location Information'!F26/100) -> 0.2 | L57: =L56*G57 ->  | M57: 44 | U57: 3.671452273 | V57: 0.1168613344
F58: Total Labor & Equipment: | L58: =SUM(L56:L57) ->  | M58: 45 | U58: 3.781595842 | V58: 0.1112965089
M59: 46 | U59: 3.895043717 | V59: 0.1059966752
F60: Professional Services Fees: | M60: 47 | U60: 4.011895028 | V60: 0.1009492144
M61: 48 | U61: 4.132251879 | V61: 0.09614210899
F62: Capital Costs: | L62: =SUM(L53,L58,L60) ->  | M62: 49 | U62: 4.256219436 | V62: 0.09156391332
M63: 50 | U63: 4.383906019 | V63: 0.08720372697
F64: Energy Costs | M64: 51 | U64: 4.515423199 | V64: 0.08305116855
F65: Electrical Cost: | G65: ='User & Location Information'!E16 -> 0.13 | H65: $/kW∙h | M65: 52 | U65: 4.650885895 | V65: 0.079096351
F66: Pump Power: | G66: =(G20*G19)/(3960*0.6) ->  | H66: hp | M66: 53 | U66: 4.790412472 | V66: 0.07532985809
F67: Pump Run Time: | G67: =G3/J12/60 ->  | H67: hr/d | M67: 54 | U67: 4.934124846 | V67: 0.07174272199
F68: Panel Power: | G68: 0.001 | H68: kW | M68: 55 | U68: 5.082148592 | V68: 0.0683264019
F69: Annual Electric Cost: | G69: =(G65*G66*0.746*G67*365)+(G68*8760) ->  | H69: $/yr | M69: 56 | U69: 5.234613049 | V69: 0.06507276371
M70: 57 | U70: 5.391651441 | V70: 0.06197406068
M71: 58 | U71: 5.553400984 | V71: 0.05902291493
F72: Life Cycle Costs: | M72: 59 | U72: 5.720003014 | V72: 0.05621229993
F73: Annual Maintenance: | G73: =G3*0.5 -> 0 | I73: Inflation Rate (%): | J73: 0.03 | M73: 60 | U73: 5.891603104 | V73: 0.05353552375
F74: Annualized Pump Replacement: | G74: =J21/7 ->  | H74: (7 yr cycle) | I74: Discount Rate (%): | J74: 0.05
F75: Annualized System Replacement: | G75: =L62/30 ->  | H75: (30 yr cycle) | I75: Salvage Value: | J75: None
F76: Sum of Annualized Maintenance: | G76: =SUM(G73:G75) ->  | I76: Depreciation: | J76: None
F78: System Life (years): | G78: 60 | H78: yrs
F80: Life Cycle Present Value: | G80: =R9 -> 

Sheet Spray Irrigation Builder
A1: Spray Irrigation Costing Information | F1: Technology: Spray | M1: =F1 -> Technology: Spray | P1: =G3 -> 0 | Q1: =H3 -> gpd | R1: 100
F2: Assumptions: | Q2: System Life (years) | R2: =G79 -> 60
A3: Item | C3: Default Unit Cost | D3: Location Factor Unit Cost | E3: User Provided Unit Cost | F3: Flow: | G3: ='Wastewater Volume Calculator'!J96 -> 0 | H3: gpd | I3: Soil: | J3: =IF('Soil Types & Application Rates'!K41=1,'Soil Types & Application Rates'!K38, IF('Soil Types & Application Rates'!K41=2, 'Soil Types & Application Rates'!K39)) ->  | K3: gpd/ft2 | Q3: Construction and Installation Costs | R3: =L62 -> 
Q4: Annual Energy Costs | R4: =G69 -> 
A5: Materials | F5: Absorption Field Design: | Q5: Annual Maintenance Cost | R5: =G77 -> 
F6: Field Area Required: | G6: =G3/J3 ->  | H6: ft2 | I6: Sprayer Pressure: | J6: 40 | K6: psi | Q6: Discount Factor (as percent) | R6: =J70 -> 0.05
A7: Pump | C7: 730 | D7: =(VLOOKUP(TRUNC('User & Location Information'!$E$12/100,0),LocationFactors!$B$4:$G$911,4,FALSE))/100*C7 ->  | F7: Est. Spray Heads (pop-up) | G7: =IF(G6<=G10,1,ROUNDUP(EVEN(G6/G10),0)) ->  | I7: Zone Flow Limit: | J7: =0.1441*(G3^0.5919) -> 0 | K7: gpm | Q7: Inflation Rate (as percent) | R7: =J69 -> 0.03
A8: Pump Tank ($ per gallon) | C8: 1.46 | D8: =(VLOOKUP(TRUNC('User & Location Information'!$E$12/100,0),LocationFactors!$B$4:$G$911,4,FALSE))/100*C8 ->  | F8: Sprayer Flow Rate: | G8: 5 | H8: gpm | I8: # of Zones: | J8: =IF(G7=1,1,IF((G7*G8)<J7,G7,(ROUNDUP(EVEN((G7*G8)/J7),0)))) -> 
A9: Pump Control Panel ($ per pump) | C9: 1044 | D9: =(VLOOKUP(TRUNC('User & Location Information'!$E$12/100,0),LocationFactors!$B$4:$G$911,4,FALSE))/100*C9 ->  | F9: Sprayer Radius: | G9: 50 | H9: ft | I9: Sprayers/Zone: | J9: =IF(G7=1,1,ROUNDUP(EVEN(G7/J8),0)) ->  | Q9: Present Value of System Life Cycle Cost | R9: =SUM(T13:T73) -> 
A10: Pump Vault or Pump Screen | C10: 188 | D10: =(VLOOKUP(TRUNC('User & Location Information'!$E$12/100,0),LocationFactors!$B$4:$G$911,4,FALSE))/100*C10 ->  | F10: Sprayer Area: | G10: =((G9*2)^2)/4*3.14 -> 7850 | H10: ft2 | I10: Pump Flow Rate: | J10: =J9*G8 ->  | K10: gpm
A11: Spray Heads ($ per head) | C11: 52.5 | D11: =(VLOOKUP(TRUNC('User & Location Information'!$E$12/100,0),LocationFactors!$B$4:$G$911,4,FALSE))/100*C11 ->  | I11: Actual Sprayers: | J11: =J8*J9 ->  | M11: Year | N11: Annualized Costs | P11: Periodic Costs | Q11: Total Cost in Year Zero | R11: Sum Cost of Year | S11: Sum Cost of Year Adjusted for Inflation | T11: Present Value of Cost of Year | U11: Inflation Factor | V11: Discount Factor
A12: Fittings (1 set per sprayer) | C12: 26.5 | D12: =(VLOOKUP(TRUNC('User & Location Information'!$E$12/100,0),LocationFactors!$B$4:$G$911,4,FALSE))/100*C12 ->  | N12: Energy | O12: Maintenance
A13: Fence (per foot of length) | C13: 12 | D13: =(VLOOKUP(TRUNC('User & Location Information'!$E$12/100,0),LocationFactors!$B$4:$G$911,4,FALSE))/100*C13 ->  | F13: Pump System Design: | I13: Notes | J13: Unit Cost | L13: Cost | M13: 0 | Q13: =R3 ->  | R13: =IF($R$2>=$M$13,(SUM(N13:P13)+Q13),"") ->  | S13: =R13*U13 ->  | T13: =S13*V13 ->  | U13: =IF(R$2>=M13,((1+R$7)^M13),"") -> 1 | V13: =IF(R$2>=M13,((1/(1+R$6)^M13)),"") -> 1
A14: 3" Sch 40 PVC | C14: 1.35 | D14: =(VLOOKUP(TRUNC('User & Location Information'!$E$12/100,0),LocationFactors!$B$4:$G$911,4,FALSE))/100*C14 ->  | F14: Pump Tank Volume: | G14: =G3*IF(E38="",1,E38) -> 0 | M14: =IF(ISERROR(IF($R$2>=M13+1,M13+1,"")),"",IF($R$2>=M13+1,M13+1,"")) -> 1 | N14: =IF(M14<=$R$2, $R$4, "") ->  | O14: =IF(M14<=$R$2,$R$5,"") ->  | R14: =IF(M14<=$R$2,SUM(N14:P14),"") ->  | S14: =IF(M14<=$R$2,R14*U14,"") ->  | T14: =IF(M14<=$R$2,S14*V14,"") ->  | U14: 1.03 | V14: 0.9523809524
A15: 2" Sch 40 PVC | C15: 0.61 | D15: =(VLOOKUP(TRUNC('User & Location Information'!$E$12/100,0),LocationFactors!$B$4:$G$911,4,FALSE))/100*C15 ->  | F15: Pump Tank | J15: =IF(E8="",D8,E8) ->  | L15: =G14*J15 ->  | M15: =IF(ISERROR(IF($R$2>=M14+1,M14+1,"")),"",IF($R$2>=M14+1,M14+1,"")) -> 2 | N15: =IF(M15<=$R$2, $R$4, "") ->  | O15: =IF(M15<=$R$2,$R$5,"") ->  | R15: =IF(M15<=$R$2,SUM(N15:P15),"") ->  | S15: =IF(M15<=$R$2,R15*U15,"") ->  | T15: =IF(M15<=$R$2,S15*V15,"") ->  | U15: 1.0609 | V15: 0.9070294785
A16: Index Valves: | C16: 157 | D16: =(VLOOKUP(TRUNC('User & Location Information'!$E$12/100,0),LocationFactors!$B$4:$G$911,4,FALSE))/100*C16 ->  | F16: Pump Flow Rate per Zone: | G16: =J10 ->  | H16: gpm | M16: 3 | U16: 1.092727 | V16: 0.8638375985
A17: Diaphragm Valves: | C17: 105 | D17: =(VLOOKUP(TRUNC('User & Location Information'!$E$12/100,0),LocationFactors!$B$4:$G$911,4,FALSE))/100*C17 ->  | F17: Pump Pressure: | G17: 200 | H17: ft | M17: 4 | U17: 1.12550881 | V17: 0.8227024748
A18: 3" PVC ball Valve: | C18: 155 | D18: =(VLOOKUP(TRUNC('User & Location Information'!$E$12/100,0),LocationFactors!$B$4:$G$911,4,FALSE))/100*C18 ->  | F18: Number of Pumps: | G18: =IF(G3<=1000,1,2) -> 1 | J18: =IF(E7="",D7,E7) ->  | L18: =G18*J18 ->  | M18: 5 | U18: 1.159274074 | V18: 0.7835261665
A19: 2" PVC Ball Valve: | C19: 76 | D19: =(VLOOKUP(TRUNC('User & Location Information'!$E$12/100,0),LocationFactors!$B$4:$G$911,4,FALSE))/100*C19 ->  | F19: Pump Vault | G19: =G18 -> 1 | J19: =IF(E10="",D10,E10) ->  | L19: =G19*J19 ->  | M19: 6 | U19: 1.194052297 | V19: 0.7462153966
A20: 1.5" PVC Ball Valve: | C20: 59 | D20: =(VLOOKUP(TRUNC('User & Location Information'!$E$12/100,0),LocationFactors!$B$4:$G$911,4,FALSE))/100*C20 ->  | F20: Pump Control Panel: | G20: $1000 per pump | J20: =IF(E9="",D9,E9) ->  | K20: per pump | L20: =J20*G18 ->  | M20: 7 | U20: 1.229873865 | V20: 0.7106813301
A21: Installation | F21: Rainy Day Storage | G21: =IF(G3<=1000,0,G3*IF(E34="",30,E34)) -> 0 | H21: gal | J21: =IF(E31="",D31,E31) ->  | K21: per ft3 | L21: =(G21/7.48/2)*J21 ->  | M21: 8 | U21: 1.266770081 | V21: 0.676839362
M22: 9 | U22: 1.304773184 | V22: 0.6446089162
A23: Pump Tank Excavation and Installation (based on $ per gallon) | F23: Control System Installation: | G23: =G18+J8 ->  | H23: # of pumps + # zones | J23: =IF(E29="",D29,E29) ->  | L23: =G23*J23 ->  | M23: 10 | U23: 1.343916379 | V23: 0.6139132535
C24: 1.8 | D24: =(VLOOKUP(TRUNC('User & Location Information'!$E$12/100,0),LocationFactors!$B$4:$G$911,5,FALSE))/100*C24 ->  | F24: Pump & Tank Installation: | J24: =IF(E24="",D24,E24) ->  | L24: =G14*J24 ->  | M24: 11 | U24: 1.384233871 | V24: 0.5846792891
A25: Trenching, Pipe Placement, Riser & Sprayer Installation ($ per foot of pipe) | M25: 12 | U25: 1.425760887 | V25: 0.5568374182
C26: 5.38 | D26: =(VLOOKUP(TRUNC('User & Location Information'!$E$12/100,0),LocationFactors!$B$4:$G$911,5,FALSE))/100*C26 ->  | F26: Lateral System: | M26: 13 | U26: 1.468533713 | V26: 0.5303213506
A27: Control System Installation - estimated to be one hour per pump plus one hour per zone ($ per hour) | F27: Sprayers | G27: =J11 ->  | H27: ea | J27: =IF(E11="",D11,E11) ->  | L27: =G27*J27 ->  | M27: 14 | U27: 1.512589725 | V27: 0.505067953
F28: Fittings | G28: =G27 ->  | H28: sets | I28: 1 set/sprayer | J28: =IF(E12="",D12,E12) ->  | M28: 15 | U28: 1.557967417 | V28: 0.4810170981
C29: 117 | D29: =(VLOOKUP(TRUNC('User & Location Information'!$E$12/100,0),LocationFactors!$B$4:$G$911,5,FALSE))/100*C29 ->  | F29: Fence: | G29: =((G6)^0.5)*4 ->  | H29: ft | J29: =IF(E13="",D13,E13) ->  | M29: 16 | U29: 1.604706439 | V29: 0.458111522
A30: Excavation of Rainy Season Storage ($ per cubic foot) | F30: 3" Sch 40 PVC | G30: =IF(J10>50,(G9*1.15*J8*J9),0) ->  | H30: ft | J30: =IF($E$14="",$D$14,$E$14) ->  | M30: 17 | U30: 1.652847632 | V30: 0.4362966876
C31: 10.75 | D31: =(VLOOKUP(TRUNC('User & Location Information'!$E$12/100,0),LocationFactors!$B$4:$G$911,5,FALSE))/100*C31 ->  | F31: 2" Sch 40 PVC | G31: =IF(J10>=50,0,(G9*1.15*J8*J9)) ->  | H31: ft | J31: =IF($E$15="",$D$15,$E$15) ->  | M31: 18 | U31: 1.702433061 | V31: 0.4155206549
A32: Rainy Weather Storage | M32: 19 | U32: 1.753506053 | V32: 0.395733957
A33: Assumption: The Rainy Season storage is equivalent to 30 days of design flow. | F33: Lateral Installation: | G33: =SUM(G30:G31) ->  | I33: equip & labor | J33: =IF($E$26="",$D$26,$E$26) ->  | M33: 20 | U33: 1.806111235 | V33: 0.3768894829
A34: To change the default value (30), enter a new Multiplier: | M34: 21 | U34: 1.860294572 | V34: 0.3589423646
A35: Pump Tank Volume Information | F35: Pumps to Laterals: | M35: 22 | U35: 1.916103409 | V35: 0.3418498711
A36: Assumption: volume is 1 (default value) times the daily flow (in gallons) then converted to cubic feet | F36: Index Valves: | G36: 0 | H36: ea | J36: =IF(E16="",D16,E16) ->  | L36: =G36*J36 ->  | M36: 23 | U36: 1.973586511 | V36: 0.3255713058
F37: Diaphragm Valves: | G37: =J8 ->  | H37: ea | J37: =IF(E17="",D17,E17) ->  | M37: 24 | U37: 2.032794106 | V37: 0.3100679103
A38: To change the default value (1), enter a new multiplier: | F38: 3" PVC ball Valve: | G38: 0 | H38: ea | J38: =IF(E18="",D18,E18) ->  | M38: 25 | U38: 2.09377793 | V38: 0.2953027717
F39: 2" PVC Ball Valve: | G39: 2 | H39: ea | J39: =IF(E19="",D19,E19) ->  | M39: 26 | U39: 2.156591268 | V39: 0.281240735
F40: 1.5" PVC Ball Valve: | G40: 3 | H40: ea | J40: 56 | L40: 168 | M40: 27 | U40: 2.221289006 | V40: 0.267848319
F41: 3" Sch 40 PVC: | G41: =IF(G30=0,0,G30*0.1) ->  | H41: ft | J41: =IF($E$14="",$D$14,$E$14) ->  | M41: 28 | U41: 2.287927676 | V41: 0.2550936371
F42: 2" Sch 40 PVC: | G42: =IF(G31=0,0,0.1*G31) ->  | H42: ft | J42: =IF($E$15="",$D$15,$E$15) ->  | M42: 29 | U42: 2.356565506 | V42: 0.2429463211
F43: Pipe Installation: | G43: =SUM(G41:G42) ->  | H43: ft | I43: equip & labor | J43: =IF($E$26="",$D$26,$E$26) ->  | M43: 30 | U43: 2.427262471 | V43: 0.2313774487
M44: 31 | U44: 2.500080345 | V44: 0.2203594749
F45: =F1 -> Technology: Spray | M45: 32 | U45: 2.575082756 | V45: 0.2098661666
M46: 33 | U46: 2.652335238 | V46: 0.1998725396
F47: =F3 -> Flow: | G47: =G3 -> 0 | H47: =H3 -> gpd | M47: 34 | U47: 2.731905296 | V47: 0.1903547996
M48: 35 | U48: 2.813862454 | V48: 0.1812902854
F49: Materials: | M49: 36 | U49: 2.898278328 | V49: 0.1726574146
F50: Cost of Materials: | L50: =SUM(L15,L18,L19,L20,L21,L22,L27,L28,L29,L30,L31,L36,L37,L38,L39,L40,L41,L42) ->  | M50: 37 | U50: 2.985226678 | V50: 0.164435633
F51: 20% P&O for Materials: | L51: =0.2*L50 ->  | M51: 38 | U51: 3.074783478 | V51: 0.1566053647
F52: Sales Tax on Materials: | G52: ='User & Location Information'!E14/100 -> 0 | L52: =L50*G52 ->  | M52: 39 | U52: 3.167026983 | V52: 0.1491479664
F53: Total Materials: | L53: =SUM(L50:L52) ->  | M53: 40 | U53: 3.262037792 | V53: 0.1420456823
M54: 41 | U54: 3.359898926 | V54: 0.1352816022
F55: Labor & Equipment: | M55: 42 | U55: 3.460695894 | V55: 0.1288396211
F56: Cost of Labor & Equipment: | L56: =SUM(L23,L24,L33,L43) ->  | M56: 43 | U56: 3.56451677 | V56: 0.1227044011
F57: 20% P&O for Labor & Equipment: | L57: =0.2*L56 ->  | M57: 44 | U57: 3.671452273 | V57: 0.1168613344
F58: Total Labor & Equipment: | L58: =SUM(L56:L57) ->  | M58: 45 | U58: 3.781595842 | V58: 0.1112965089
M59: 46 | U59: 3.895043717 | V59: 0.1059966752
F60: Professional Services Fees: | M60: 47 | U60: 4.011895028 | V60: 0.1009492144
M61: 48 | U61: 4.132251879 | V61: 0.09614210899
F62: Capital Costs: | L62: =SUM(L53,L58,L60) ->  | M62: 49 | U62: 4.256219436 | V62: 0.09156391332
M63: 50 | U63: 4.383906019 | V63: 0.08720372697
F64: Energy Costs: | M64: 51 | U64: 4.515423199 | V64: 0.08305116855
F65: Electrical Cost | G65: ='User & Location Information'!E16 -> 0.13 | H65: $/kW∙h | M65: 52 | U65: 4.650885895 | V65: 0.079096351
F66: Pump Power: | G66: =(G16*G17)/(3960*0.6) ->  | H66: hp | M66: 53 | U66: 4.790412472 | V66: 0.07532985809
F67: Pump Run Time: | G67: =G3/G16/60 ->  | H67: hr/d | M67: 54 | U67: 4.934124846 | V67: 0.07174272199
F68: Panel Power: | G68: 0.001 | H68: kW | I68: (assumes continuous power draw) | M68: 55 | U68: 5.082148592 | V68: 0.0683264019
F69: Annual Electric Cost: | G69: =(G65*(G66*0.746)*G67*365)+G68*G65*8760 ->  | I69: Inflation Rate (%): | J69: 0.03 | M69: 56 | U69: 5.234613049 | V69: 0.06507276371
I70: Discount Rate (%): | J70: 0.05 | M70: 57 | U70: 5.391651441 | V70: 0.06197406068
I71: Salvage Value: | J71: none | M71: 58 | U71: 5.553400984 | V71: 0.05902291493
F72: Life Cycle Costs: | I72: Depreciation: | J72: none | M72: 59 | U72: 5.720003014 | V72: 0.05621229993
F73: Annual Maintenance: | G73: =0.5*G3 -> 0 | M73: 60 | U73: 5.891603104 | V73: 0.05353552375
F74: Annualized Pump Replacement: | G74: =J18/7 ->  | H74: (7 yr cycle)
F75: Annualized Controls Replacement: | G75: =L20/20 ->  | H75: (20 yr cycle)
F76: Replace 25% of Sprayers/Yr: | G76: =0.25*J11*J27 -> 
F77: Total Annualized Maintenance: | G77: =SUM(G73:G76) -> 
F79: System Life (years): | G79: 60
F81: Life Cycle Present Value: | G81: =R9 -> 

Sheet RSF Builder
A1: RSF Costing Information | F1: Technology: Attached Growth Recirculating Media Filter | Y1: RSF Material List
F2: Assumptions: | Q2: System Life (years) | R2: =G53 -> 60
C3: Default Unit Cost | D3: Location Factor Unit Cost | E3: User Provided Unit Cost | Q3: Construction and Installation Costs | R3: =L37 ->  | Y3: Project Name | Z3: RSF Cost Model
A4: Item | B4: Unit | F4: Daily Wastewater Volume | G4: ='Wastewater Volume Calculator'!J96 -> 0 | H4: gpd | I4: Surface Area | J4: =G4/5 -> 0 | K4: ft2 | Q4: Annual Energy Costs | R4: =G44 -> 1.1388 | Y4: Design Data (gpd) | Z4: ='Wastewater Volume Calculator'!J96 -> 0
A5: Materials | Q5: Annual Maintenance Cost | R5: =G48 -> 0 | AI5: gpm | AJ5: area | AK5: labor cost | AL5: Knox Labor | AM5: account for 79% labor decrease in Knoxville
F6: Cost of Materials: | G6: =AB100 ->  | Q6: Annual Replacement Budget: | R6: =G49 ->  | Y6: Area (ft2) | Z6: =Z4/5 -> 0 | AI6: 1250 | AJ6: 250 | AK6: 12572 | AL6: =AK6/AJ6 -> 50.288 | AM6: =AL6/0.79 -> 63.6556962
Q7: Discount Factor (as percent) | R7: =L49 -> 0.05 | AI7: 2500 | AJ7: 500 | AK7: 16187 | AL7: =AK7/AJ7 -> 32.374 | AM7: =AL7/0.79 -> 40.97974684
A8: Recirculation Tank | B8: per gallon | C8: 1.46 | D8: =(VLOOKUP(TRUNC('User & Location Information'!$E$12/100,0),LocationFactors!$B$4:$G$911,4,FALSE))/100*C8 ->  | Q8: Inflation Rate (as percent) | R8: =L48 -> 0.03 | Z8: RSF Size and Design Data | AI8: 5000 | AJ8: 1000 | AK8: 25703 | AL8: 25.703 | AM8: 32.53544304
A9: 4' x 8' x ½" sheets of OSB or particle board | B9: per sheet | C9: 18.9 | D9: =(VLOOKUP(TRUNC('User & Location Information'!$E$12/100,0),LocationFactors!$B$4:$G$911,4,FALSE))/100*C9 ->  | F9: Installation Cost: | G9: =J4*IF(E63="",D63,E63) ->  | Y9: Width | AA9: =IF(Z4<1000,8,IF(Z4<5000,16,IF(Z4<10000,24,IF(Z4>=10000,35)))) -> 8 | AI9: 12500 | AJ9: 2500 | AK9: 44200 | AL9: 17.68 | AM9: 22.37974684
A10: treated 4" x 4" (per foot) | B10: per foot | C10: 2.1 | D10: =(VLOOKUP(TRUNC('User & Location Information'!$E$12/100,0),LocationFactors!$B$4:$G$911,4,FALSE))/100*C10 ->  | Q10: Present Value of System Life Cycle Cost | R10: =SUM(T14:T74) ->  | Y10: Length | AA10: =Z6/AA9 -> 0 | AI10: 18750 | AJ10: 3750 | AK10: 56395 | AL10: 15.03866667 | AM10: 19.03628692
A11: treated 2" x 4" | B11: per foot | C11: 1.05 | D11: =(VLOOKUP(TRUNC('User & Location Information'!$E$12/100,0),LocationFactors!$B$4:$G$911,4,FALSE))/100*C11 ->  | F11: Number of Recirculation Pumps: | G11: =Y84 -> 1 | Y11: 25% Zone Length | AA11: =AA10*0.25 -> 0 | AI11: 25000 | AJ11: 5000 | AK11: 68590 | AL11: 13.718 | AM11: 17.36455696
A12: untreated 2" x 4" | B12: per foot | C12: 1.05 | D12: =(VLOOKUP(TRUNC('User & Location Information'!$E$12/100,0),LocationFactors!$B$4:$G$911,4,FALSE))/100*C12 ->  | F12: Pump Flow Rate: | G12: 65 | H12: gpm | M12: Year | N12: Annualized Costs | P12: Periodic Costs | Q12: Total Cost in Year Zero | R12: Sum Cost of Year | S12: Sum Cost of Year Adjusted for Inflation | T12: Present Value of Cost of Year | U12: Inflation Factor | V12: Discount Factor | Y12: 75% Zone Length | AA12: =AA10*0.75 -> 0 | AI12: 37500 | AJ12: 7500 | AK12: 92980 | AL12: 12.39733333 | AM12: 15.692827
A13: treated 2" x 6" | B13: per foot | C13: 1.575 | D13: =(VLOOKUP(TRUNC('User & Location Information'!$E$12/100,0),LocationFactors!$B$4:$G$911,4,FALSE))/100*C13 ->  | F13: Pump Design TDH: | G13: 50 | H13: ft of water | N13: Energy | O13: Maintenance | AI13: 50000 | AJ13: 10000 | AK13: 117371 | AL13: 11.7371 | AM13: 14.85708861
A14: treated 2" x 12" | B14: per foot | C14: 2.625 | D14: =(VLOOKUP(TRUNC('User & Location Information'!$E$12/100,0),LocationFactors!$B$4:$G$911,4,FALSE))/100*C14 ->  | F14: Pump Power: | G14: =(G12*G13)/(3960*0.6) -> 1.367845118 | H14: hp | M14: 0 | Q14: =R3 ->  | R14: =IF($R$2>=$M$14,(SUM(N14:P14)+Q14),"") ->  | S14: =R14*U14 ->  | T14: =S14*V14 ->  | U14: =IF(R$2>=M14,((1+R$8)^M14),"") -> 1 | V14: =IF(R$2>=M14,((1/(1+R$7)^M14)),"") -> 1 | Y14: Number of Laterals | AA14: =AA10/1.25 -> 0
A15: 30 mil PVC liner | B15: per sq ft | C15: 0.525 | D15: =(VLOOKUP(TRUNC('User & Location Information'!$E$12/100,0),LocationFactors!$B$4:$G$911,4,FALSE))/100*C15 ->  | M15: =IF(ISERROR(IF($R$2>=M14+1,M14+1,"")),"",IF($R$2>=M14+1,M14+1,"")) -> 1 | N15: =IF(M15<=$R$2, $R$4, "") -> 1.1388 | O15: =IF(M15<=$R$2,$R$5,"") -> 0 | P15: =IF(M15<=$R$2,$R$6,"") ->  | R15: =IF(M15<=$R$2,SUM(N15:P15),"") ->  | S15: =IF(M15<=$R$2,R15*U15,"") ->  | T15: =IF(M15<=$R$2,S15*V15,"") ->  | U15: 1.03 | V15: 0.9523809524 | Y15: Number Of Orifices | AA15: =AA14*(AA9-2.5)/1.25 -> 0
A16: coarse rock that supports media | B16: per ton | C16: 31.5 | D16: =(VLOOKUP(TRUNC('User & Location Information'!$E$12/100,0),LocationFactors!$B$4:$G$911,4,FALSE))/100*C16 ->  | F16: Flow Rate into Single Pass Zone: | G16: 65 | H16: gpm | M16: =IF(ISERROR(IF($R$2>=M15+1,M15+1,"")),"",IF($R$2>=M15+1,M15+1,"")) -> 2 | N16: =IF(M16<=$R$2, $R$4, "") -> 1.1388 | O16: =IF(M16<=$R$2,$R$5,"") -> 0 | P16: =IF(M16<=$R$2,$R$6,"") ->  | R16: =IF(M16<=$R$2,SUM(N16:P16),"") ->  | S16: =IF(M16<=$R$2,R16*U16,"") ->  | T16: =IF(M16<=$R$2,S16*V16,"") ->  | U16: 1.0609 | V16: 0.9070294785
A17: bedding sand for under liner | B17: per ton | C17: 21 | D17: =(VLOOKUP(TRUNC('User & Location Information'!$E$12/100,0),LocationFactors!$B$4:$G$911,4,FALSE))/100*C17 ->  | F17: Hours of Operation per Day: | G17: =G4/G16/60 -> 0 | H17: hr/d | M17: 3 | N17: 1.1388 | O17: 0 | U17: 1.092727 | V17: 0.8638375985 | Y17: Number of Fields | AA17: 1
A18: #57 washed rock | B18: per ton | C18: 15.75 | D18: =(VLOOKUP(TRUNC('User & Location Information'!$E$12/100,0),LocationFactors!$B$4:$G$911,4,FALSE))/100*C18 ->  | M18: 4 | N18: 1.1388 | O18: 0 | U18: 1.12550881 | V18: 0.8227024748 | Y18: Number of Dosing Zones | AA18: 1
A19: RSF sand (media) | B19: per ton | C19: 42 | D19: =(VLOOKUP(TRUNC('User & Location Information'!$E$12/100,0),LocationFactors!$B$4:$G$911,4,FALSE))/100*C19 ->  | M19: 5 | N19: 1.1388 | O19: 0 | U19: 1.159274074 | V19: 0.7835261665
A20: 30" x 48" riser with lid | B20: each | C20: 315 | D20: =(VLOOKUP(TRUNC('User & Location Information'!$E$12/100,0),LocationFactors!$B$4:$G$911,4,FALSE))/100*C20 ->  | M20: 6 | N20: 1.1388 | O20: 0 | U20: 1.194052297 | V20: 0.7462153966
A21: 1" dia. Sch. 40 PVC | B21: per foot | C21: 1.96 | D21: =(VLOOKUP(TRUNC('User & Location Information'!$E$12/100,0),LocationFactors!$B$4:$G$911,4,FALSE))/100*C21 ->  | M21: 7 | N21: 1.1388 | O21: 0 | U21: 1.229873865 | V21: 0.7106813301 | Y21: Units | Z21: Item Description | AA21: Unit Cost Material | AB21: Material Cost | AC21: Unit Labor Cost | AD21: Labor Cost | AE21: Total Unit Price
A22: 1-1/4" dia. Sch. 40 PVC | B22: per foot | C22: 2.49 | D22: =(VLOOKUP(TRUNC('User & Location Information'!$E$12/100,0),LocationFactors!$B$4:$G$911,4,FALSE))/100*C22 ->  | M22: 8 | N22: 1.1388 | O22: 0 | U22: 1.266770081 | V22: 0.676839362 | Y22: RSF
A23: 1-1/2" dia. Sch. 40 PVC | B23: per foot | C23: 2.73 | D23: =(VLOOKUP(TRUNC('User & Location Information'!$E$12/100,0),LocationFactors!$B$4:$G$911,4,FALSE))/100*C23 ->  | M23: 9 | N23: 1.1388 | O23: 0 | U23: 1.304773184 | V23: 0.6446089162
A24: 2" dia. Sch. 40 PVC | B24: per foot | C24: 3.33 | D24: =(VLOOKUP(TRUNC('User & Location Information'!$E$12/100,0),LocationFactors!$B$4:$G$911,4,FALSE))/100*C24 ->  | F24: Materials: | M24: 10 | N24: 1.1388 | O24: 0 | U24: 1.343916379 | V24: 0.6139132535 | Y24: Filter Shell
A25: 2-1/2" dia. Sch. 40 PVC | B25: per foot | C25: 5.1765 | D25: =(VLOOKUP(TRUNC('User & Location Information'!$E$12/100,0),LocationFactors!$B$4:$G$911,4,FALSE))/100*C25 ->  | F25: Cost of Materials: | L25: =G6 ->  | M25: 11 | N25: 1.1388 | O25: 0 | U25: 1.384233871 | V25: 0.5846792891 | Y25: =ROUNDUP(((AA9*2)+(AA10*2))/8,0) -> 2 | Z25: 4' x 8' x ½" sheets of OSB or particle board | AA25: =IF(E9="",D9,E9) ->  | AB25: =Y25*AA25 ->  | AC25: 35 | AD25: =AC25*Y25 -> 70 | AE25: =AD25+AB25 -> 
A26: 3" dia. Sch. 40 PVC | B26: per foot | C26: 6.6 | D26: =(VLOOKUP(TRUNC('User & Location Information'!$E$12/100,0),LocationFactors!$B$4:$G$911,4,FALSE))/100*C26 ->  | F26: P&O for Materials: | G26: =IF('User & Location Information'!F25="",'User & Location Information'!E25/100,'User & Location Information'!F25/100) -> 0.2 | L26: =L25*G26 ->  | M26: 12 | N26: 1.1388 | O26: 0 | U26: 1.425760887 | V26: 0.5568374182 | Y26: =(AA9*2)+(AA10*2) -> 16 | Z26: treated 4" x 4" top of wall | AA26: =IF(E10="",D10,E10) ->  | AC26: 6 | AD26: 96
A27: 4" dia. Sch. 40 PVC | B27: per foot | C27: 9.6075 | D27: =(VLOOKUP(TRUNC('User & Location Information'!$E$12/100,0),LocationFactors!$B$4:$G$911,4,FALSE))/100*C27 ->  | F27: Sales Tax on Materials: | G27: ='User & Location Information'!E14/100 -> 0 | L27: =L25*G27 ->  | M27: 13 | N27: 1.1388 | O27: 0 | U27: 1.468533713 | V27: 0.5303213506 | Y27: =2*(AA9+AA10) -> 16 | Z27: treated 2" x 4" liner face locks | AA27: =IF($E$11="",$D$11,$E$11) ->  | AB27: =Y27*AA27 ->  | AC27: 6 | AD27: 96
A28: 6" dia. Sch. 40 PVC | B28: per foot | C28: 17.7975 | D28: =(VLOOKUP(TRUNC('User & Location Information'!$E$12/100,0),LocationFactors!$B$4:$G$911,4,FALSE))/100*C28 ->  | F28: Total Materials: | L28: =SUM(L25:L27) ->  | M28: 14 | N28: 1.1388 | O28: 0 | U28: 1.512589725 | V28: 0.505067953 | Y28: =(((AA9+AA10)*2)/1.5)*4 -> 42.66666667 | Z28: treated 2" x 4" wall bottom and vertical frame | AA28: =IF($E$11="",$D$11,$E$11) ->  | AB28: =Y28*AA28 ->  | AC28: 6 | AD28: 256
A29: Recirculation Pump, screened vault & controls | B29: unit | C29: 1008 | D29: =(VLOOKUP(TRUNC('User & Location Information'!$E$12/100,0),LocationFactors!$B$4:$G$911,4,FALSE))/100*C29 ->  | M29: 15 | N29: 1.1388 | O29: 0 | U29: 1.557967417 | V29: 0.4810170981 | Y29: =(AA9+AA10)*2 -> 16 | Z29: treated 2" x 6" top caps | AA29: =IF(E13="",D13,E13) ->  | AC29: 6 | AD29: 96
A30: Pump Control Panel | B30: each | C30: 575 | D30: =(VLOOKUP(TRUNC('User & Location Information'!$E$12/100,0),LocationFactors!$B$4:$G$911,4,FALSE))/100*C30 ->  | F30: Labor & Equipment: | M30: 16 | N30: 1.1388 | O30: 0 | U30: 1.604706439 | V30: 0.458111522 | Y30: =Y28 -> 42.66666667 | Z30: untreated 2" x 4" bracing | AA30: =IF(E12="",D12,E12) ->  | AC30: 6 | AD30: 256
A31: 2" PVC end cap | B31: each | C31: 2.1 | D31: =(VLOOKUP(TRUNC('User & Location Information'!$E$12/100,0),LocationFactors!$B$4:$G$911,4,FALSE))/100*C31 ->  | F31: Cost of Labor & Equipment: | L31: =G9 ->  | M31: 17 | N31: 1.1388 | O31: 0 | U31: 1.652847632 | V31: 0.4362966876 | Y31: =AA9*2 -> 16 | Z31: treated 2" x 12" for divider wall | AA31: =IF(E14="",D14,E14) ->  | AC31: 6 | AD31: 96
A32: 6" PVC end cap | B32: each | C32: 36.75 | D32: =(VLOOKUP(TRUNC('User & Location Information'!$E$12/100,0),LocationFactors!$B$4:$G$911,4,FALSE))/100*C32 ->  | F32: P&O Labor & Equipment: | G32: =IF('User & Location Information'!F26="",'User & Location Information'!E26/100,'User & Location Information'!F26/100) -> 0.2 | L32: =L31*G32 ->  | M32: 18 | N32: 1.1388 | O32: 0 | U32: 1.702433061 | V32: 0.4155206549 | Y32: =((AA9+8)*(AA10+12)) -> 192 | Z32: Sq. Ft. of 30 mil Polypropylene liner | AC32: 1.25 | AD32: 240
A33: 6" PVC threaded end plug | B33: each | C33: 57.75 | D33: =(VLOOKUP(TRUNC('User & Location Information'!$E$12/100,0),LocationFactors!$B$4:$G$911,4,FALSE))/100*C33 ->  | F33: Total Labor & Equipment: | L33: =SUM(L31:L32) ->  | M33: 19 | N33: 1.1388 | O33: 0 | U33: 1.753506053 | V33: 0.395733957 | Y33: =(((AA9*AA10)*2)*95)/2000 -> 0 | Z33: tons of coarse rock that supports media | AC33: 10 | AD33: 0 | AF33: 95 lb/ft3
A34: 6" bulkhead connector | B34: each | C34: 577.5 | D34: =(VLOOKUP(TRUNC('User & Location Information'!$E$12/100,0),LocationFactors!$B$4:$G$911,4,FALSE))/100*C34 ->  | M34: 20 | N34: 1.1388 | O34: 0 | U34: 1.806111235 | V34: 0.3768894829 | Y34: =(((AA9*AA10)*0.5)*110)/2000 -> 0 | Z34: tons of bedding sand for under liner | AC34: 10 | AD34: 0
A35: 4" bulkhead connector | B35: each | C35: 315 | D35: =(VLOOKUP(TRUNC('User & Location Information'!$E$12/100,0),LocationFactors!$B$4:$G$911,4,FALSE))/100*C35 ->  | F35: Professional Services Fees: | M35: 21 | N35: 1.1388 | O35: 0 | U35: 1.860294572 | V35: 0.3589423646 | Y35: =(((AA9*AA10)*0.75)*95)/2000 -> 0 | Z35: tons of #57 washed limestone for RSF cap and around chambers | AC35: 10 | AD35: 0
A36: 3" bulkhead connector | B36: each | C36: 157.5 | D36: =(VLOOKUP(TRUNC('User & Location Information'!$E$12/100,0),LocationFactors!$B$4:$G$911,4,FALSE))/100*C36 ->  | M36: 22 | N36: 1.1388 | O36: 0 | U36: 1.916103409 | V36: 0.3418498711 | Y36: =(AA9*AA10*2*105)/2000 -> 0 | Z36: tons of RSF sand | AC36: 10 | AD36: 0 | AF36: 105 lb/ft3
A37: 2" bulkhead connector | B37: each | C37: 94.5 | D37: =(VLOOKUP(TRUNC('User & Location Information'!$E$12/100,0),LocationFactors!$B$4:$G$911,4,FALSE))/100*C37 ->  | F37: Capital Costs: | L37: =SUM(L28,L33,L35) ->  | M37: 23 | N37: 1.1388 | O37: 0 | U37: 1.973586511 | V37: 0.3255713058 | Y37: Inlet Manifold
A38: 6" schedule 40 elbow | B38: each | C38: 75.6 | D38: =(VLOOKUP(TRUNC('User & Location Information'!$E$12/100,0),LocationFactors!$B$4:$G$911,4,FALSE))/100*C38 ->  | M38: 24 | N38: 1.1388 | O38: 0 | U38: 2.032794106 | V38: 0.3100679103 | Y38: 1 | Z38: 2" cap for inlet manifold | AA38: =IF(E31="",D31,E31) ->  | AB38: =Y38*AA38 ->  | AC38: 10 | AD38: =AC38*Y38 -> 10 | AE38: =AD38+AB38 -> 
A39: 4" PVC Sch 40 els | B39: each | C39: 26.25 | D39: =(VLOOKUP(TRUNC('User & Location Information'!$E$12/100,0),LocationFactors!$B$4:$G$911,4,FALSE))/100*C39 ->  | F39: Energy Costs: | M39: 25 | N39: 1.1388 | O39: 0 | U39: 2.09377793 | V39: 0.2953027717 | Y39: 1 | Z39: 2" boot kit for influent line through liner | AA39: =IF(E37="",D37,E37) ->  | AB39: =Y39*AA39 ->  | AC39: 25 | AD39: =AC39*Y39 -> 25 | AE39: =AD39+AB39 -> 
A40: 2" Sch 40 PVC els | B40: each | C40: 4.2 | D40: =(VLOOKUP(TRUNC('User & Location Information'!$E$12/100,0),LocationFactors!$B$4:$G$911,4,FALSE))/100*C40 ->  | F40: Electrical Cost | G40: ='User & Location Information'!E16 -> 0.13 | H40: $/kW∙h | M40: 26 | N40: 1.1388 | O40: 0 | U40: 2.156591268 | V40: 0.281240735 | Y40: =AA9 -> 8 | Z40: 4" schedule 40 drilled PVC inlet header | AA40: =IF(E27="",D27,E27) ->  | AB40: =Y40*AA40 ->  | AC40: 10 | AD40: =AC40*Y40 -> 80 | AE40: =AD40+AB40 -> 
A41: 1 ½" Sch 40 PVC els | B41: each | C41: 3.15 | D41: =(VLOOKUP(TRUNC('User & Location Information'!$E$12/100,0),LocationFactors!$B$4:$G$911,4,FALSE))/100*C41 ->  | F41: Recirculation Power | G41: =G11*G14*0.746 -> 1.020412458 | H41: kW | M41: 27 | N41: 1.1388 | O41: 0 | U41: 2.221289006 | V41: 0.267848319 | Y41: 1 | Z41: 30" x 48" riser with lid for inlet header and dose flush line | AA41: =IF($E$20="",$D$20,$E$20) ->  | AB41: =Y41*AA41 ->  | AC41: 100 | AD41: =AC41*Y41 -> 100 | AE41: =AD41+AB41 -> 
A42: 1½ x 2" Sch 40 PVC reducer els | B42: each | C42: 9.45 | D42: =(VLOOKUP(TRUNC('User & Location Information'!$E$12/100,0),LocationFactors!$B$4:$G$911,4,FALSE))/100*C42 ->  | F42: Recirculation Time: | G42: =G17 -> 0 | H42: hr/d | M42: 28 | N42: 1.1388 | O42: 0 | U42: 2.287927676 | V42: 0.2550936371 | Y42: Recirc Underdrain
A43: 2" x 1 ½" Sch 40 PVC Reducer Tees | B43: each | C43: 6.3 | D43: =(VLOOKUP(TRUNC('User & Location Information'!$E$12/100,0),LocationFactors!$B$4:$G$911,4,FALSE))/100*C43 ->  | F43: Panel Power: | G43: 0.001 | H43: kW | I43: (assumes continuous power draw) | M43: 29 | N43: 1.1388 | O43: 0 | U43: 2.356565506 | V43: 0.2429463211 | Y43: =AA9-2 -> 6 | Z43: 6" schedule 40, slotted and drilled PVC recirc underdrain | AA43: =IF($E$28="",$D$28,$E$28) ->  | AB43: =Y43*AA43 ->  | AC43: 5 | AD43: =AC43*Y43 -> 30 | AE43: =AD43+AB43 -> 
A44: 2" Sch 40 PVC Tee | B44: each | C44: 5.25 | D44: =(VLOOKUP(TRUNC('User & Location Information'!$E$12/100,0),LocationFactors!$B$4:$G$911,4,FALSE))/100*C44 ->  | F44: Annual Electric Cost: | G44: =(G40*G41*G42*365)+(G43*G40*8760) -> 1.1388 | M44: 30 | N44: 1.1388 | O44: 0 | U44: 2.427262471 | V44: 0.2313774487 | Y44: =Y43 -> 6 | Z44: 6" schedule 40 PVC underdrain header | AA44: =IF($E$28="",$D$28,$E$28) ->  | AC44: 4 | AD44: 24
A45: 1 ½" Sch 40 PVC Tees | B45: each | C45: 3.15 | D45: =(VLOOKUP(TRUNC('User & Location Information'!$E$12/100,0),LocationFactors!$B$4:$G$911,4,FALSE))/100*C45 ->  | M45: 31 | N45: 1.1388 | O45: 0 | U45: 2.500080345 | V45: 0.2203594749 | Z45: 6" cap for underdrain header | AA45: =IF(E32="",D32,E32) ->  | AC45: 10 | AD45: 0
A46: 2" Sch 40 PVC crosses | B46: each | C46: 10.5 | D46: =(VLOOKUP(TRUNC('User & Location Information'!$E$12/100,0),LocationFactors!$B$4:$G$911,4,FALSE))/100*C46 ->  | M46: 32 | N46: 1.1388 | O46: 0 | U46: =IF(R$2>=M46,((1+R$8)^M46),"") -> 2.575082756 | V46: =IF(R$2>=M46,((1/(1+R$7)^M46)),"") -> 0.2098661666 | Z46: 6" PVC plug for recirc underdrain | AA46: =IF(E33="",D33,E33) ->  | AD46: 0
A47: 1 ½" Sch 40 crosses | B47: each | C47: 7.35 | D47: =(VLOOKUP(TRUNC('User & Location Information'!$E$12/100,0),LocationFactors!$B$4:$G$911,4,FALSE))/100*C47 ->  | F47: Life Cycle Costs: | M47: 33 | N47: 1.1388 | O47: 0 | U47: 2.652335238 | V47: 0.1998725396 | Y47: 1 | Z47: 6" schedule 40 elbow for recirc line into tank and effluent structure | AA47: =IF(E38="",D38,E38) ->  | AC47: 10 | AD47: 10
A48: 2" to 1" Sch 40 PVC slip bushings | B48: each | C48: 1.05 | D48: =(VLOOKUP(TRUNC('User & Location Information'!$E$12/100,0),LocationFactors!$B$4:$G$911,4,FALSE))/100*C48 ->  | F48: Annual Maintenance Contract: | G48: =0.5*G4 -> 0 | H48: $0.50/gpd | K48: Inflation Rate (%): | L48: 0.03 | M48: 34 | N48: 1.1388 | O48: 0 | U48: 2.731905296 | V48: 0.1903547996 | Y48: 1 | Z48: 30" riser with lid for recirc underdrains | AA48: =IF($E$20="",$D$20,$E$20) ->  | AC48: 100 | AD48: 100
A49: 1 ½" x 1" Sch 40 PVC slip bushings | B49: each | C49: 0.6825 | D49: =(VLOOKUP(TRUNC('User & Location Information'!$E$12/100,0),LocationFactors!$B$4:$G$911,4,FALSE))/100*C49 ->  | F49: annualized cost to rebuild system in 30 yr | G49: =L37/30 ->  | K49: Discount Rate (%): | L49: 0.05 | M49: 35 | N49: 1.1388 | O49: 0 | U49: 2.813862454 | V49: 0.1812902854 | Y49: =IF(Z4>=500,1,0) -> 0 | Z49: 6" boot kit for underdrain (including glue) | AA49: =IF(E34="",D34,E34) ->  | AC49: 25 | AD49: 0
A50: 1 ½" Sch 40 PVC threaded male bushings | B50: each | C50: 5.25 | D50: =(VLOOKUP(TRUNC('User & Location Information'!$E$12/100,0),LocationFactors!$B$4:$G$911,4,FALSE))/100*C50 ->  | F50: Sum of Annualized Maintenance Costs: | G50: =SUM(G48:G49) ->  | K50: Salvage Value: | L50: None | M50: 36 | N50: 1.1388 | O50: 0 | U50: 2.898278328 | V50: 0.1726574146 | Y50: Drip Underdarin
A51: 1 ½" Sch 40 PVC female threaded adapters | B51: each | C51: 5.25 | D51: =(VLOOKUP(TRUNC('User & Location Information'!$E$12/100,0),LocationFactors!$B$4:$G$911,4,FALSE))/100*C51 ->  | K51: Depreciation: | L51: None | M51: 37 | N51: 1.1388 | O51: 0 | U51: 2.985226678 | V51: 0.164435633 | Y51: =AA9-2 -> 6 | Z51: 4" schedule 40, slotted PVC drip underdrain | AA51: =IF($E$27="",$D$27,$E$27) ->  | AB51: =Y51*AA51 ->  | AC51: 10 | AD51: =AC51*Y51 -> 60 | AE51: =AD51+AB51 -> 
A52: 2" x 1 ½" Sch 40 PVC Reducer bushing | B52: each | C52: 1.05 | D52: =(VLOOKUP(TRUNC('User & Location Information'!$E$12/100,0),LocationFactors!$B$4:$G$911,4,FALSE))/100*C52 ->  | M52: 38 | N52: 1.1388 | O52: 0 | U52: 3.074783478 | V52: 0.1566053647 | Y52: =Y51 -> 6 | Z52: 4" schedule 40 PVC underdrain header | AA52: =IF($E$27="",$D$27,$E$27) ->  | AC52: 10 | AD52: 60
A53: 3" PVC Sch 40 swing check valve | B53: each | C53: 105 | D53: =(VLOOKUP(TRUNC('User & Location Information'!$E$12/100,0),LocationFactors!$B$4:$G$911,4,FALSE))/100*C53 ->  | F53: System Life (years) | G53: 60 | H53: yrs | M53: 39 | N53: 1.1388 | O53: 0 | U53: 3.167026983 | V53: 0.1491479664 | Y53: 1 | Z53: 4" schedule 40 elbow for recirc line into tank | AA53: =IF(E39="",D39,E39) ->  | AC53: 10 | AD53: 10
A54: 1 ½" long sweep, PVC | B54: each | C54: 26.25 | D54: =(VLOOKUP(TRUNC('User & Location Information'!$E$12/100,0),LocationFactors!$B$4:$G$911,4,FALSE))/100*C54 ->  | M54: 40 | N54: 1.1388 | O54: 0 | U54: 3.262037792 | V54: 0.1420456823 | Y54: 1 | Z54: 4" boot kit for underdrain (including glue) | AA54: =IF(E35="",D35,E35) ->  | AC54: 25 | AD54: 25
A55: 1 ½" Sch 40 PVC swing check valves | B55: each | C55: 52.5 | D55: =(VLOOKUP(TRUNC('User & Location Information'!$E$12/100,0),LocationFactors!$B$4:$G$911,4,FALSE))/100*C55 ->  | F55: Life Cycle Present Value: | G55: =R10 ->  | M55: 41 | N55: 1.1388 | O55: 0 | U55: 3.359898926 | V55: 0.1352816022 | Y55: =AA10 -> 0 | Z55: 3" 100% recycle line | AA55: =IF(E26="",D26,E26) ->  | AC55: 10 | AD55: 0
A56: 1" orifice shields | B56: each | C56: 1.575 | D56: =(VLOOKUP(TRUNC('User & Location Information'!$E$12/100,0),LocationFactors!$B$4:$G$911,4,FALSE))/100*C56 ->  | M56: 42 | N56: 1.1388 | O56: 0 | U56: 3.460695894 | V56: 0.1288396211 | Y56: 1 | Z56: 3" swing check valve for 100% recycle line | AA56: =IF(E53="",D53,E53) ->  | AC56: 25 | AD56: 25
A57: 2" Sch 40 PVC ball valve | B57: each | C57: 105 | D57: =(VLOOKUP(TRUNC('User & Location Information'!$E$12/100,0),LocationFactors!$B$4:$G$911,4,FALSE))/100*C57 ->  | M57: 43 | N57: 1.1388 | O57: 0 | U57: 3.56451677 | V57: 0.1227044011 | Y57: 1 | Z57: 30" x 48" riser with lid for 100% recycle line | AA57: =IF($E$20="",$D$20,$E$20) ->  | AC57: 100 | AD57: 100
A58: V 6606 Hydro Tec | B58: each | C58: 178.5 | D58: =(VLOOKUP(TRUNC('User & Location Information'!$E$12/100,0),LocationFactors!$B$4:$G$911,4,FALSE))/100*C58 ->  | M58: 44 | N58: 1.1388 | O58: 0 | U58: 3.671452273 | V58: 0.1168613344 | Y58: 2 | Z58: 3" boot kit for 100% recycle line through divider wall | AA58: =IF(E36="",D36,E36) ->  | AC58: 25 | AD58: 50
A59: 12" meter boxes with lids | B59: each | C59: 36.75 | D59: =(VLOOKUP(TRUNC('User & Location Information'!$E$12/100,0),LocationFactors!$B$4:$G$911,4,FALSE))/100*C59 ->  | M59: 45 | N59: 1.1388 | O59: 0 | U59: 3.781595842 | V59: 0.1112965089 | Y59: Dose Inlet Headers
A60: Labor | M60: 46 | N60: 1.1388 | O60: 0 | U60: 3.895043717 | V60: 0.1059966752 | Y60: =AA14*(AA9-2.5) -> 0 | Z60: 1" schedule 40 PVC laterals with 1/8" holes drilled on 15" centers | AA60: =IF($E$21="",$D$21,$E$21) ->  | AB60: =Y60*AA60 ->  | AC60: 2 | AD60: =AC60*Y60 -> 0 | AE60: =AD60+AB60 -> 
M61: 47 | N61: 1.1388 | O61: 0 | U61: 4.011895028 | V61: 0.1009492144 | Y61: =AA10-2 -> -2 | Z61: 2" Schd 40 PVC for flush line | AA61: =IF($E$24="",$D$24,$E$24) ->  | AC61: 1 | AD61: -2
A62: Labor & Equipment to Construct Sand Filter ($ per square foot of sand filter area) | M62: 48 | N62: 1.1388 | O62: 0 | U62: 4.132251879 | V62: 0.09614210899 | Y62: =AA10 -> 0 | Z62: 2" Schd 40 PVC dosing header | AA62: =IF($E$24="",$D$24,$E$24) ->  | AC62: 1 | AD62: 0
C63: =491.79*$J$4^-0.389 ->  | D63: =(VLOOKUP(TRUNC('User & Location Information'!$E$12/100,0),LocationFactors!$B$4:$G$911,6,FALSE))/100*C63 ->  | M63: 49 | N63: 1.1388 | O63: 0 | U63: 4.256219436 | V63: 0.09156391332 | Y63: =2*AA18 -> 2 | Z63: 2" Schd 40 PVC els for dosing header | AA63: =IF(E40="",D40,E40) ->  | AC63: 3 | AD63: 6
M64: 50 | N64: 1.1388 | O64: 0 | U64: 4.383906019 | V64: 0.08720372697 | Y64: =AA14-Y63-Y65 -> -2 | Z64: 2" Schd 40 PVC Ts for dosing header | AA64: =IF(E44="",D44,E44) ->  | AC64: 3 | AD64: -6
M65: 51 | N65: 1.1388 | O65: 0 | U65: 4.515423199 | V65: 0.08305116855 | Z65: 2" Schd 40 PVC crosses for dosing header | AA65: =IF(E47="",D47,E47) ->  | AC65: 3 | AD65: 0
M66: 52 | N66: 1.1388 | O66: 0 | U66: 4.650885895 | V66: 0.079096351 | Y66: =AA14 -> 0 | Z66: 2" to 1" Schd 40 PVC slip bushings for dosing header | AA66: =IF(E48="",D48,E48) ->  | AC66: 1 | AD66: 0
M67: 53 | N67: 1.1388 | O67: 0 | U67: 4.790412472 | V67: 0.07532985809 | Y67: Dose Eff Headers
M68: 54 | N68: 1.1388 | O68: 0 | U68: 4.934124846 | V68: 0.07174272199 | Y68: =AA18*((AA14/AA18)-1)*AA16/12 -> 0 | Z68: 1 ½" Schd 40 for dosing effluent header | AA68: =IF(E23="",D23,E23) ->  | AB68: =Y68*AA68 ->  | AC68: 1 | AD68: =AC68*Y68 -> 0 | AE68: =AD68+AB68 -> 
M69: 55 | N69: 1.1388 | O69: 0 | U69: 5.082148592 | V69: 0.0683264019 | Y69: 0 | Z69: 1 ½" Schd 40 PVC els for dosing effluent header | AA69: =IF(E41="",D41,E41) ->  | AC69: 3 | AD69: 0
M70: 56 | N70: 1.1388 | O70: 0 | U70: 5.234613049 | V70: 0.06507276371 | Y70: =2*AA18 -> 2 | Z70: 1 ½" Schd 40 Ts for dosing effluent header | AA70: =IF(E45="",D45,E45) ->  | AC70: 3 | AD70: 6
M71: 57 | N71: 1.1388 | O71: 0 | U71: 5.391651441 | V71: 0.06197406068 | Y71: =AA14-Y70 -> -2 | Z71: 1 ½" Schd 40 crosses for dosing effluent header | AA71: =IF(E47="",D47,E47) ->  | AC71: 3 | AD71: -6
M72: 58 | N72: 1.1388 | O72: 0 | U72: 5.553400984 | V72: 0.05902291493 | Y72: =AA14 -> 0 | Z72: 1 ½" x 1" Schd 40 PVC slip bushings for effluent header | AA72: =IF(E49="",D49,E49) ->  | AC72: 1 | AD72: 0
M73: 59 | N73: 1.1388 | O73: 0 | U73: 5.720003014 | V73: 0.05621229993 | Y73: =AA14 -> 0 | Z73: 1 ½" long sweep, PVC outdoor electrical conduit for lateral flushing | AA73: =IF(E54="",D54,E54) ->  | AC73: 3 | AD73: 0
M74: 60 | N74: 1.1388 | O74: 0 | U74: 5.891603104 | V74: 0.05353552375 | Y74: =AA14 -> 0 | Z74: 1 ½" Schd 40 PVC threaded male bushings for sweeps | AA74: =IF(E50="",D50,E50) ->  | AC74: 1 | AD74: 0
Y75: =AA14 -> 0 | Z75: 1 ½" Schd 40 PVC female threaded, PVC end caps for sweeps | AA75: =IF(E51="",D51,E51) ->  | AC75: 1 | AD75: 0
Y76: =AA18 -> 1 | Z76: 1 ½" Schd 40 PVC swing check valves for connections to flush lines | AA76: =IF(E55="",D55,E55) ->  | AC76: 3 | AD76: 3
Y77: 12 | Z77: 2" x 1 ½" Schd 40 PVC Reducer Ts for flush lines | AA77: =IF($E$52="",$D$52,$E$52) ->  | AC77: 3 | AD77: 36
Y78: 2 | Z78: 2" Schd 40 PVC els for flush line | AA78: =IF($E$40="",$D$40,$E$40) ->  | AC78: 3 | AD78: 6
Y79: 1 | Z79: 2" x 1 ½" Reducer bushing for upstream end of flush line | AA79: =IF($E$52="",$D$52,$E$52) ->  | AD79: 0
Y80: 1 | Z80: 2" Schd 40 PVC ball valve for flush line with 3/8" hole drilled through ball in closed position | AA80: =IF(E57="",D57,E57) ->  | AC80: 25 | AD80: 25
Y81: =AA15 -> 0 | Z81: 1" orifice shields | AA81: =IF(E56="",D56,E56) ->  | AC81: 0.5 | AD81: 0
Y82: Recirc Pump Components
Y83: =IF($Z$4<500,500,IF($Z$4<1000,1000,IF($Z$4<5000,2000,IF($Z$4<10000,4000,IF($Z$4>=10000,6000))))) -> 500 | Z83: gallons of water tight, unbaffled pump tank (drip) with one 12" inlet riser and two simplex pump openings for 30" risers (per gallon) | AA83: =IF(E8="",D8,E8) ->  | AB83: =Y83*AA83 ->  | AC83: =Database!F31 -> 1 | AD83: =AC83*Y83 -> 500 | AE83: =AD83+AB83 -> 
Y84: =IF($Z$4<500,1,IF($Z$4<1000,2,IF($Z$4<5000,4,IF($Z$4<10000,6,IF($Z$4>=10000,8))))) -> 1 | Z84: Sta-Rite DHHG 65 gpm in-line pump with hair strainer | AA84: =IF(E29="",D29,E29) ->  | AC84: 800 | AD84: =AC84*Y84 -> 800
Y85: =Y84 -> 1 | Z85: Pump Control Panel (same multiplier as tank) | AA85: =IF(E30="",D30,E30) ->  | AB85: =Y85*AA85 ->  | AC85: 2 | AD85: =Y85*AC85 -> 2 | AE85: =AB85+AD85 -> 
Y86: =Y87 -> 0 | Z86: 24" risers with lids and epoxy for drip tank | AA86: 142 | AB86: 0 | AC86: 25 | AD86: =AC86*Y$96 -> 0 | AE86: 0
Z87: OSI P501012, 1 HP recirculation pumps and assemblies | AA87: 774.74 | AB87: 0 | AD87: =AC87*Y$96 -> 0 | AE87: 0
Y88: =Y87 -> 0 | Z88: 2" H&V assembly with high pressure hose | AA88: 141 | AB88: 0 | AD88: =AC88*Y$96 -> 0 | AE88: 0
Y89: =Y87 -> 0 | Z89: PVU 57 2425 Universal Pump Vault | AA89: 298 | AB89: 0 | AD89: =AC89*Y$96 -> 0 | AE89: 0
Y90: 0 | AB90: 0 | AD90: =AC90*Y$96 -> 0 | AE90: 0
Y91: =AA10 -> 0 | Z91: 2" Schd 40 PVC pump line to Hydrotek | AA91: =IF(E24="",D24,E24) ->  | AC91: 2 | AD91: =AC91*Y91 -> 0
Y92: 1 | Z92: 2" boot kits for recirculation pump lines into filter | AA92: =IF(E37="",D37,E37) ->  | AC92: 25 | AD92: =AC92*Y92 -> 25
Y93: =Y95 -> 1 | Z93: 2" Schd 40 PVC els for Hydrotek inlet | AA93: =IF($E$40="",$D$40,$E$40) ->  | AC93: 3 | AD93: =AC93*Y93 -> 3
Z94: 2" NC Solenoids | AA94: 100 | AB94: 0 | AC94: 100 | AD94: =AC94*Y94 -> 0 | AE94: 0
Y95: =Y84 -> 1 | Z95: V 6606 Hydro Tec | AA95: =IF(E58="",D58,E58) ->  | AC95: 50 | AD95: =AC95*Y95 -> 50
Y96: 0 | Z96: 1½ x 2" reducer els for Hydro Tec outlets to dosing headers | AA96: =IF(E43="",D43,E43) ->  | AB96: =Y$96*AA96 ->  | AC96: 2 | AD96: =AC96*Y$96 -> 0
Y97: =AA18 -> 1 | Z97: 2" Schd 40 90s for inlets to dosing headers | AA97: =IF($E$40="",$D$40,$E$40) ->  | AB97: =Y97*AA97 ->  | AC97: 2 | AD97: =AC97*Y97 -> 2
Y98: =Y95 -> 1 | Z98: 12" meter boxes with lids for Hydro Tecs | AA98: =IF(E59="",D59,E59) ->  | AB98: =Y98*AA98 ->  | AC98: 10 | AD98: =AC98*Y98 -> 10
Y99: =Y84*8 -> 8 | Z99: 2" Scd 40 PVC for lines from Hydroteks to dosing headers | AA99: =Database!F7 -> 3.33 | AB99: =Y99*AA99 -> 26.64 | AC99: 2 | AD99: =AC99*Y99 -> 16 | AE99: 42.64
AB100: =SUM(AB25:AB99) ->  | AD100: =SUM(AD25:AD99) -> 3391 | AE100: =SUM(AE25:AE99) -> 

Sheet Proprietary Attached Growth
A1: Proprietary Attached Growth Costing Information | F1: Technology: Proprietary Attached Growth System
F2: Assumptions: | Q2: System Life (years) | R2: =G52 -> 60
A3: Item | C3: Default Unit Cost | D3: Location Factor Unit Cost | E3: User Provided Unit Cost | Q3: Construction and Installation Costs | R3: =L36 -> 0
F4: Daily Wastewater Volume | G4: ='Wastewater Volume Calculator'!J96 -> 0 | H4: gpd | Q4: Annual Energy Costs | R4: =G43 -> 93.0969
A5: Actual Cost (per Gallon per Day) for Attached Growth Aerobic Treatment Unit - including delivery | Q5: Annual Maintenance Cost | R5: =G49 -> 71.42857143
F6: Cost of Suspended Growth Device: | G6: =IF(E8="",D8,E8)*G4 -> 0 | Q6: Discount Factor (as percent) | R6: =J40 -> 0.05
Q7: Inflation Rate (as percent) | R7: =J39 -> 0.03
C8: =IF($G$4<2000,15, IF($G$4>=2000,(($G$4^-0.541)*1732))) -> 15 | D8: =(VLOOKUP(TRUNC('User & Location Information'!$E$12/100,0),LocationFactors!$B$4:$G$911,4,FALSE))/100*C8 ->  | E8: =1148773/88000 -> 13.05423864 | F8: Installation Cost: | G8: =G4*IF(E12="",D12,E12) -> 0
A9: Actual Cost to Install Treatment Device (per gpd of capacity) | Q9: Present Value of System Life Cycle Cost | R9: =SUM(T13:T73) -> 5800.572873
M11: Year | N11: Annualized Costs | P11: Periodic Costs | Q11: Total Cost in Year Zero | R11: Sum Cost of Year | S11: Sum Cost of Year Adjusted for Inflation | T11: Present Value of Cost of Year | U11: Inflation Factor | V11: Discount Factor
C12: 3.58 | D12: =(VLOOKUP(TRUNC('User & Location Information'!$E$12/100,0),LocationFactors!$B$4:$G$911,5,FALSE))/100*C12 ->  | E12: =(329082+73300)/88000 -> 4.572522727 | N12: Energy | O12: Maintenance
M13: 0 | Q13: =R3 -> 0 | R13: =IF($R$2>=$M$13,(SUM(N13:P13)+Q13),"") -> 0 | S13: =R13*U13 -> 0 | T13: =S13*V13 -> 0 | U13: =IF(R$2>=M13,((1+R$7)^M13),"") -> 1 | V13: =IF(R$2>=M13,((1/(1+R$6)^M13)),"") -> 1
M14: =IF(ISERROR(IF($R$2>=M13+1,M13+1,"")),"",IF($R$2>=M13+1,M13+1,"")) -> 1 | N14: =IF(M14<=$R$2, $R$4, "") -> 93.0969 | O14: =IF(M14<=$R$2,$R$5,"") -> 71.42857143 | R14: =IF(M14<=$R$2,SUM(N14:P14),"") -> 164.5254714 | S14: =IF(M14<=$R$2,R14*U14,"") -> 169.4612356 | T14: =IF(M14<=$R$2,S14*V14,"") -> 161.3916529 | U14: 1.03 | V14: 0.9523809524
B15: Hours of Operation per Day: | E15: 6 | M15: =IF(ISERROR(IF($R$2>=M14+1,M14+1,"")),"",IF($R$2>=M14+1,M14+1,"")) -> 2 | N15: =IF(M15<=$R$2, $R$4, "") -> 93.0969 | O15: =IF(M15<=$R$2,$R$5,"") -> 71.42857143 | R15: =IF(M15<=$R$2,SUM(N15:P15),"") -> 164.5254714 | S15: =IF(M15<=$R$2,R15*U15,"") -> 174.5450726 | T15: =IF(M15<=$R$2,S15*V15,"") -> 158.3175262 | U15: 1.0609 | V15: 0.9070294785
A16: Total Dynamic Head of Pump (feet) | E16: 45 | M16: 3 | N16: 93.0969 | O16: 71.42857143 | R16: 164.5254714 | S16: 179.7814248 | T16: 155.3019543 | U16: 1.092727 | V16: 0.8638375985
A17: Flow Rate of Pump (gpm) | E17: 5 | M17: 4 | N17: 93.0969 | O17: 71.42857143 | R17: 164.5254714 | S17: 185.1748676 | T17: 152.3438218 | U17: 1.12550881 | V17: 0.8227024748
C18: Replacement Cost of Pump: | E18: 500 | M18: 5 | N18: 93.0969 | O18: 71.42857143 | R18: 164.5254714 | S18: 190.7301136 | T18: 149.4420347 | U18: 1.159274074 | V18: 0.7835261665
M19: 6 | N19: 93.0969 | O19: 71.42857143 | R19: 164.5254714 | S19: 196.452017 | T19: 146.5955198 | U19: 1.194052297 | V19: 0.7462153966
M20: 7 | N20: 93.0969 | O20: 71.42857143 | R20: 164.5254714 | S20: 202.3455775 | T20: 143.8032242 | U20: 1.229873865 | V20: 0.7106813301
M21: 8 | N21: 93.0969 | O21: 71.42857143 | R21: 164.5254714 | S21: 208.4159448 | T21: 141.0641151 | U21: 1.266770081 | V21: 0.676839362
M22: 9 | N22: 93.0969 | O22: 71.42857143 | R22: 164.5254714 | S22: 214.6684232 | T22: 138.3771796 | U22: 1.304773184 | V22: 0.6446089162
F23: Materials: | M23: 10 | N23: 93.0969 | O23: 71.42857143 | R23: 164.5254714 | S23: 221.1084759 | T23: 135.7414238 | U23: 1.343916379 | V23: 0.6139132535
F24: Cost of Materials: | L24: =G6 -> 0 | M24: 11 | N24: 93.0969 | O24: 71.42857143 | R24: 164.5254714 | S24: 227.7417301 | T24: 133.1558729 | U24: 1.384233871 | V24: 0.5846792891
F25: 20% P&O for Materials: | G25: =IF('User & Location Information'!F25="",'User & Location Information'!E25/100,'User & Location Information'!F25/100) -> 0.2 | L25: =L24*G25 -> 0 | M25: 12 | N25: 93.0969 | O25: 71.42857143 | R25: 164.5254714 | S25: 234.5739821 | T25: 130.6195705 | U25: 1.425760887 | V25: 0.5568374182
F26: Sales Tax on Materials: | G26: ='User & Location Information'!E14/100 -> 0 | L26: =L24*G26 -> 0 | M26: 13 | N26: 93.0969 | O26: 71.42857143 | R26: 164.5254714 | S26: 241.6112015 | T26: 128.1315787 | U26: 1.468533713 | V26: 0.5303213506
F27: Total Materials: | L27: =SUM(L24:L26) -> 0 | M27: 14 | N27: 93.0969 | O27: 71.42857143 | R27: 164.5254714 | S27: 248.8595376 | T27: 125.6909772 | U27: 1.512589725 | V27: 0.505067953
M28: 15 | N28: 93.0969 | O28: 71.42857143 | R28: 164.5254714 | S28: 256.3253237 | T28: 123.2968634 | U28: 1.557967417 | V28: 0.4810170981
F29: Labor & Equipment: | M29: 16 | N29: 93.0969 | O29: 71.42857143 | R29: 164.5254714 | S29: 264.0150834 | T29: 120.9483517 | U29: 1.604706439 | V29: 0.458111522
F30: Cost of Labor & Equipment: | L30: =G8 -> 0 | M30: 17 | N30: 93.0969 | O30: 71.42857143 | R30: 164.5254714 | S30: 271.9355359 | T30: 118.6445736 | U30: 1.652847632 | V30: 0.4362966876
F31: 20% P&O Labor & Equipment: | G31: =IF('User & Location Information'!F26="",'User & Location Information'!E26/100,'User & Location Information'!F26/100) -> 0.2 | L31: =L30*G31 -> 0 | M31: 18 | N31: 93.0969 | O31: 71.42857143 | R31: 164.5254714 | S31: 280.093602 | T31: 116.3846769 | U31: 1.702433061 | V31: 0.4155206549
F32: Total Labor & Equipment: | L32: =SUM(L30:L31) -> 0 | M32: 19 | N32: 93.0969 | O32: 71.42857143 | R32: 164.5254714 | S32: 288.49641 | T32: 114.1678259 | U32: 1.753506053 | V32: 0.395733957
M33: 20 | N33: 93.0969 | O33: 71.42857143 | R33: 164.5254714 | S33: 297.1513023 | T33: 111.9932007 | U33: 1.806111235 | V33: 0.3768894829
F34: Professional Services Fees: | M34: 21 | N34: 93.0969 | O34: 71.42857143 | R34: 164.5254714 | S34: 306.0658414 | T34: 109.8599969 | U34: 1.860294572 | V34: 0.3589423646
M35: 22 | N35: 93.0969 | O35: 71.42857143 | R35: 164.5254714 | S35: 315.2478166 | T35: 107.7674255 | U35: 1.916103409 | V35: 0.3418498711
F36: Capital Costs: | L36: =SUM(L27,L32,L34) -> 0 | M36: 23 | N36: 93.0969 | O36: 71.42857143 | R36: 164.5254714 | S36: 324.7052511 | T36: 105.7147126 | U36: 1.973586511 | V36: 0.3255713058
M37: 24 | N37: 93.0969 | O37: 71.42857143 | R37: 164.5254714 | S37: 334.4464087 | T37: 103.701099 | U37: 2.032794106 | V37: 0.3100679103
F38: Energy Costs: | M38: 25 | N38: 93.0969 | O38: 71.42857143 | R38: 164.5254714 | S38: 344.4798009 | T38: 101.72584 | U38: 2.09377793 | V38: 0.2953027717
F39: Electrical Cost | G39: ='User & Location Information'!E16 -> 0.13 | H39: $/kW∙h | I39: Inflation Rate (%): | J39: 0.03 | M39: 26 | N39: 93.0969 | O39: 71.42857143 | R39: 164.5254714 | S39: 354.814195 | T39: 99.78820496 | U39: 2.156591268 | V39: 0.281240735
F40: Pump Power | G40: 0.323 | H40: kW | I40: Discount Rate (%): | J40: 0.05 | M40: 27 | N40: 93.0969 | O40: 71.42857143 | R40: 164.5254714 | S40: 365.4586208 | T40: 97.88747725 | U40: 2.221289006 | V40: 0.267848319
F41: Pump Run Time | G41: =E15 -> 6 | H41: hr/d | I41: Salvage Value: | J41: None | M41: 28 | N41: 93.0969 | O41: 71.42857143 | R41: 164.5254714 | S41: 376.4223794 | T41: 96.02295387 | U41: 2.287927676 | V41: 0.2550936371
F42: Panel Power: | G42: 0.001 | H42: kW | I42: Depreciation: | J42: None | M42: 29 | N42: 93.0969 | O42: 71.42857143 | R42: 164.5254714 | S42: 387.7150508 | T42: 94.19394523 | U42: 2.356565506 | V42: 0.2429463211
F43: Annual Electric Cost: | G43: =(G40*G41*G39*365)+(G42*365*24*G39) -> 93.0969 | M43: 30 | N43: 93.0969 | O43: 71.42857143 | R43: 164.5254714 | S43: 399.3465024 | T43: 92.39977484 | U43: 2.427262471 | V43: 0.2313774487
M44: 31 | N44: 93.0969 | O44: 71.42857143 | R44: 164.5254714 | S44: 411.3268974 | T44: 90.63977913 | U44: 2.500080345 | V44: 0.2203594749
M45: 32 | N45: 93.0969 | O45: 71.42857143 | R45: 164.5254714 | S45: 423.6667043 | T45: 88.91330715 | U45: 2.575082756 | V45: 0.2098661666
F46: Life Cycle Costs: | M46: 33 | N46: 93.0969 | O46: 71.42857143 | R46: 164.5254714 | S46: 436.3767055 | T46: 87.21972035 | U46: 2.652335238 | V46: 0.1998725396
F47: Annual Maintenance Contract: | G47: =0.5*G4 -> 0 | H47: $0.50/gpd | M47: 34 | N47: 93.0969 | O47: 71.42857143 | R47: 164.5254714 | S47: 449.4680066 | T47: 85.55839234 | U47: 2.731905296 | V47: 0.1903547996
F48: Annualized Pump Replacement: | G48: =E18/7 -> 71.42857143 | H48: assume 7 yr pump life | M48: 35 | N48: 93.0969 | O48: 71.42857143 | R48: 164.5254714 | S48: 462.9520468 | T48: 83.92870868 | U48: 2.813862454 | V48: 0.1812902854
F49: Sum Annualized Cost: | G49: =SUM(G47:G48) -> 71.42857143 | M49: 36 | N49: 93.0969 | O49: 71.42857143 | R49: 164.5254714 | S49: 476.8406082 | T49: 82.33006661 | U49: 2.898278328 | V49: 0.1726574146
M50: 37 | N50: 93.0969 | O50: 71.42857143 | R50: 164.5254714 | S50: 491.1458265 | T50: 80.76187486 | U50: 2.985226678 | V50: 0.164435633
M51: 38 | N51: 93.0969 | O51: 71.42857143 | R51: 164.5254714 | S51: 505.8802013 | T51: 79.22355344 | U51: 3.074783478 | V51: 0.1566053647
F52: System Life (years) | G52: 60 | H52: yrs | M52: 39 | N52: 93.0969 | O52: 71.42857143 | R52: 164.5254714 | S52: 521.0566073 | T52: 77.71453337 | U52: 3.167026983 | V52: 0.1491479664
M53: 40 | N53: 93.0969 | O53: 71.42857143 | R53: 164.5254714 | S53: 536.6883055 | T53: 76.23425654 | U53: 3.262037792 | V53: 0.1420456823
F54: Life Cycle Present Value: | G54: =R9 -> 5800.572873 | M54: 41 | N54: 93.0969 | O54: 71.42857143 | R54: 164.5254714 | S54: 552.7889547 | T54: 74.78217547 | U54: 3.359898926 | V54: 0.1352816022
M55: 42 | N55: 93.0969 | O55: 71.42857143 | R55: 164.5254714 | S55: 569.3726234 | T55: 73.35775308 | U55: 3.460695894 | V55: 0.1288396211
M56: 43 | N56: 93.0969 | O56: 71.42857143 | R56: 164.5254714 | S56: 586.4538021 | T56: 71.96046254 | U56: 3.56451677 | V56: 0.1227044011
M57: 44 | N57: 93.0969 | O57: 71.42857143 | R57: 164.5254714 | S57: 604.0474161 | T57: 70.58978707 | U57: 3.671452273 | V57: 0.1168613344
M58: 45 | N58: 93.0969 | O58: 71.42857143 | R58: 164.5254714 | S58: 622.1688386 | T58: 69.24521969 | U58: 3.781595842 | V58: 0.1112965089
M59: 46 | N59: 93.0969 | O59: 71.42857143 | R59: 164.5254714 | S59: 640.8339038 | T59: 67.92626313 | U59: 3.895043717 | V59: 0.1059966752
M60: 47 | N60: 93.0969 | O60: 71.42857143 | R60: 164.5254714 | S60: 660.0589209 | T60: 66.63242954 | U60: 4.011895028 | V60: 0.1009492144
M61: 48 | N61: 93.0969 | O61: 71.42857143 | R61: 164.5254714 | S61: 679.8606885 | T61: 65.36324041 | U61: 4.132251879 | V61: 0.09614210899
M62: 49 | N62: 93.0969 | O62: 71.42857143 | R62: 164.5254714 | S62: 700.2565092 | T62: 64.11822631 | U62: 4.256219436 | V62: 0.09156391332
M63: 50 | N63: 93.0969 | O63: 71.42857143 | R63: 164.5254714 | S63: 721.2642044 | T63: 62.89692676 | U63: 4.383906019 | V63: 0.08720372697
M64: 51 | N64: 93.0969 | O64: 71.42857143 | R64: 164.5254714 | S64: 742.9021306 | T64: 61.69889006 | U64: 4.515423199 | V64: 0.08305116855
M65: 52 | N65: 93.0969 | O65: 71.42857143 | R65: 164.5254714 | S65: 765.1891945 | T65: 60.5236731 | U65: 4.650885895 | V65: 0.079096351
M66: 53 | N66: 93.0969 | O66: 71.42857143 | R66: 164.5254714 | S66: 788.1448703 | T66: 59.37084124 | U66: 4.790412472 | V66: 0.07532985809
M67: 54 | N67: 93.0969 | O67: 71.42857143 | R67: 164.5254714 | S67: 811.7892164 | T67: 58.23996807 | U67: 4.934124846 | V67: 0.07174272199
M68: 55 | N68: 93.0969 | O68: 71.42857143 | R68: 164.5254714 | S68: 836.1428929 | T68: 57.13063534 | U68: 5.082148592 | V68: 0.0683264019
M69: 56 | N69: 93.0969 | O69: 71.42857143 | R69: 164.5254714 | S69: 861.2271797 | T69: 56.04243277 | U69: 5.234613049 | V69: 0.06507276371
M70: 57 | N70: 93.0969 | O70: 71.42857143 | R70: 164.5254714 | S70: 887.0639951 | T70: 54.97495786 | U70: 5.391651441 | V70: 0.06197406068
M71: 58 | N71: 93.0969 | O71: 71.42857143 | R71: 164.5254714 | S71: 913.6759149 | T71: 53.9278158 | U71: 5.553400984 | V71: 0.05902291493
M72: 59 | N72: 93.0969 | O72: 71.42857143 | R72: 164.5254714 | S72: 941.0861924 | T72: 52.90061931 | U72: 5.720003014 | V72: 0.05621229993
M73: 60 | N73: 93.0969 | O73: 71.42857143 | R73: 164.5254714 | S73: 969.3187782 | T73: 51.89298847 | U73: 5.891603104 | V73: 0.05353552375

Sheet Suspended Growth Builder
A1: Suspended Growth Costing Information | F1: Technology: Suspended Growth Aerobic Treatment
F2: Assumptions: | Q2: System Life (years) | R2: =G52 -> 60
A3: Item | C3: Default Unit Cost | D3: Location Factor Unit Cost | E3: User Provided Unit Cost | Q3: Construction and Installation Costs | R3: =L36 ->  | Z3: volume | AA3: influent | AB3: effluent | AC3: removed
F4: Daily Wastewater Volume | G4: ='Wastewater Volume Calculator'!J96 -> 0 | H4: gpd | I4: Assumed Cost per Gallon | K4: =IF(E8="",D8,E8) ->  | Q4: Annual Energy Costs | R4: =G43 -> 1.1388 | Z4: (gpd) | AA4: (mg/L) | AB4: (mg/L) | AC4: (lb/d)
A5: Actual Cost (per Gallon per Day) for Suspended Growth Aerobic Treatment Unit - including delivery | Q5: Annual Maintenance Cost | R5: =G49 ->  | Y5: BOD | Z5: =G4 -> 0 | AA5: 150 | AB5: 0 | AC5: =Z5*(AA5-AB5)*0.00000834 -> 0
F6: Cost of Suspended Growth Device: | G6: =G4*K4 ->  | Q6: Discount Factor (as percent) | R6: =J40 -> 0.05 | Y6: TKN | Z6: =Z5 -> 0 | AA6: 30 | AB6: 0 | AC6: =Z6*(AA6-AB6)*0.00000834 -> 0
Q7: Inflation Rate (as percent) | R7: =J39 -> 0.03
C8: =IF($G$4<2000,15, IF($G$4>=2000,(($G$4^-0.541)*1732))) -> 15 | D8: =(VLOOKUP(TRUNC('User & Location Information'!$E$12/100,0),LocationFactors!$B$4:$G$911,4,FALSE))/100*C8 ->  | F8: Installation Cost of Suspended Growth Device: | G8: =G4*IF(E12="",D12,E12) -> 
A9: Actual Cost to Install Treatment Device (per gpd of capacity) | Q9: Present Value of System Life Cycle Cost | R9: =SUM(T13:T73) ->  | Y9: pound of O2 required per pound of BOD | AC9: 1.5 | AE9: pounds of O2 per day for BOD | AI9: =AC5*AC9 -> 0 | AJ9: (lb/d)
F10: Lbs of BOD5 & TKN Removed per day | G10: =AC5+AC6 -> 0 | Y10: pound of O2 required per pound of TKN | AC10: 4.6 | AE10: pounds of O2 per day for TKN | AI10: =AC6*AC10 -> 0 | AJ10: (lb/d)
H11: lb/d | M11: Year | N11: Annualized Costs | P11: Periodic Costs | Q11: Total Cost in Year Zero | R11: Sum Cost of Year | S11: Sum Cost of Year Adjusted for Inflation | T11: Present Value of Cost of Year | U11: Inflation Factor | V11: Discount Factor | AE11: OTR (required oxygen transfer rate) | AI11: =AI9+AI10 -> 0 | AJ11: (lb/d) | AK11: =AI11/24 -> 0 | AL11: (lb/hr)
C12: 3.58 | D12: =(VLOOKUP(TRUNC('User & Location Information'!$E$12/100,0),LocationFactors!$B$4:$G$911,5,FALSE))/100*C12 ->  | N12: Energy | O12: Maintenance
A13: Actual Cost of one Blower | F13: Required Oxygen Transfer Rate: | G13: =AI11 -> 0 | H13: lb/d | M13: 0 | Q13: =R3 ->  | R13: =IF($R$2>=$M$13,(SUM(N13:P13)+Q13),"") ->  | S13: =R13*U13 ->  | T13: =S13*V13 ->  | U13: =IF(R$2>=M13,((1+R$7)^M13),"") -> 1 | V13: =IF(R$2>=M13,((1/(1+R$6)^M13)),"") -> 1
F14: Standard cfm of Air Flow: | G14: =AA32 -> 0 | H14: scfm | M14: =IF(ISERROR(IF($R$2>=M13+1,M13+1,"")),"",IF($R$2>=M13+1,M13+1,"")) -> 1 | N14: =IF(M14<=$R$2, $R$4, "") -> 1.1388 | O14: =IF(M14<=$R$2,$R$5,"") ->  | R14: =IF(M14<=$R$2,SUM(N14:P14),"") ->  | S14: =IF(M14<=$R$2,R14*U14,"") ->  | T14: =IF(M14<=$R$2,S14*V14,"") ->  | U14: 1.03 | V14: 0.9523809524 | Y14: Diffuse Aeration Systems | AI14: Calculate Power Required for Air Flow
F15: Power Requirement of Device: | G15: =AK27/0.6 -> 0 | H15: hp | M15: =IF(ISERROR(IF($R$2>=M14+1,M14+1,"")),"",IF($R$2>=M14+1,M14+1,"")) -> 2 | N15: =IF(M15<=$R$2, $R$4, "") -> 1.1388 | O15: =IF(M15<=$R$2,$R$5,"") ->  | R15: =IF(M15<=$R$2,SUM(N15:P15),"") ->  | S15: =IF(M15<=$R$2,R15*U15,"") ->  | T15: =IF(M15<=$R$2,S15*V15,"") ->  | U15: 1.0609 | V15: 0.9070294785
C16: 653 | D16: =(VLOOKUP(TRUNC('User & Location Information'!$E$12/100,0),LocationFactors!$B$4:$G$911,4,FALSE))/100*C16 ->  | F16: Hours of Operation per Day: | G16: 24 | H16: hr | M16: 3 | N16: 1.1388 | U16: 1.092727 | V16: 0.8638375985 | AI16: water depth | AK16: 8 | AL16: (ft)
M17: 4 | N17: 1.1388 | U17: 1.12550881 | V17: 0.8227024748 | Z17: Calculate Standard Flow Required | AI17: pressure at depth | AK17: =AK16/2.31 -> 3.463203463 | AL17: (psi)
M18: 5 | N18: 1.1388 | U18: 1.159274074 | V18: 0.7835261665 | AI18: head loss | AK18: 2 | AL18: (psi)
M19: 6 | N19: 1.1388 | U19: 1.194052297 | V19: 0.7462153966 | Z19: Cst | AA19: 8.19 | AC19: O2 saturation correct for temp & pressure | AI19: mass air flow | AK19: =(AA32*AA30/60) -> 0 | AL19: (lb/sec)
M20: 7 | N20: 1.1388 | U20: 1.229873865 | V20: 0.7106813301 | Z20: Cw | AA20: 2 | AB20: (mg/L) | AC20: DO in basin | AI20: R | AK20: 53.3
M21: 8 | N21: 1.1388 | U21: 1.266770081 | V21: 0.676839362 | Z21: Cs20 | AA21: 9.02 | AB21: (mg/L) | AC21: DO saturation standard | AI21: T | AK21: =AA26+460 -> 485 | AL21: (degree R)
M22: 9 | N22: 1.1388 | U22: 1.304773184 | V22: 0.6446089162 | Z22: Alpha | AA22: 0.45 | AB22: relative transfer of O2 in dirty water compared to clean water | AI22: n | AK22: 0.283 | AL22: for air
F23: Materials: | M23: 10 | N23: 1.1388 | U23: 1.343916379 | V23: 0.6139132535 | Z23: Foul | AA23: 0.95 | AI23: atm pressure | AK23: 14.7 | AL23: (psi)
F24: Cost of Materials: | L24: =G6 ->  | M24: 11 | N24: 1.1388 | U24: 1.384233871 | V24: 0.5846792891 | Z24: Beta | AA24: 0.95 | AB24: relative O2 saturation in dirty water compared to clean water | AI24: blower efficiency | AK24: 0.6
F25: P&O for Materials: | G25: =IF('User & Location Information'!F25="",'User & Location Information'!E25/100,'User & Location Information'!F25/100) -> 0.2 | L25: =L24*G25 ->  | M25: 12 | N25: 1.1388 | U25: 1.425760887 | V25: 0.5568374182 | Z25: Theda | AA25: 1.024
F26: Sales Tax on Materials: | G26: ='User & Location Information'!E14/100 -> 0 | L26: =L24*G26 ->  | M26: 13 | N26: 1.1388 | U26: 1.468533713 | V26: 0.5303213506 | Z26: Temp | AA26: 25
F27: Total Materials: | L27: =SUM(L24:L26) ->  | M27: 14 | N27: 1.1388 | U27: 1.512589725 | V27: 0.505067953 | Z27: SOTR | AA27: =(AK11)/(((AA24*(AA19-AA20))/AA21)*(AA22*AA23)*(AA25^(AA26-20))) -> 0 | AB27: pounds O2 per hour | AI27: Power (hp) | AK27: =((AK19*AK20*AK21)/(550*AK22*AK24))*((((AK23+AK18+AK17)/AK23)^0.283)-1) -> 0
M28: 15 | N28: 1.1388 | U28: 1.557967417 | V28: 0.4810170981
F29: Labor & Equipment: | M29: 16 | N29: 1.1388 | U29: 1.604706439 | V29: 0.458111522 | Z29: SOTE | AA29: 0.1 | AB29: (10% transfer efficiency) | AI29: kW-hr/d | AK29: =AK27*0.746*24 -> 0
F30: Cost of Labor & Equipment: | L30: =G8 ->  | M30: 17 | N30: 1.1388 | U30: 1.652847632 | V30: 0.4362966876 | Z30: air density | AA30: 0.0769 | AB30: (lb/ft3) | AI30: kW-hr/month | AK30: =AK29*30 -> 0
F31: P&O Labor & Equipment: | G31: =IF('User & Location Information'!F26="",'User & Location Information'!E26/100,'User & Location Information'!F26/100) -> 0.2 | L31: =L30*G31 ->  | M31: 18 | N31: 1.1388 | U31: 1.702433061 | V31: 0.4155206549 | Z31: lb O2/lb air | AA31: 0.21 | AI31: electric cost | AK31: ='User & Location Information'!E16 -> 0.13 | AL31: ($/kW-hr)
F32: Total Labor & Equipment: | L32: =SUM(L30:L31) ->  | M32: 19 | N32: 1.1388 | U32: 1.753506053 | V32: 0.395733957 | Z32: SCFM | AA32: =(AA27)/(60*AA30*AA29*AA31) -> 0 | AB32: (scfm)
M33: 20 | N33: 1.1388 | U33: 1.806111235 | V33: 0.3768894829 | AI33: Daily Blower Cost | AK33: =AK29*AK31 -> 0 | AL33: ($/d)
F34: Professional Services Fees: | M34: 21 | N34: 1.1388 | U34: 1.860294572 | V34: 0.3589423646
M35: 22 | N35: 1.1388 | U35: 1.916103409 | V35: 0.3418498711
F36: Capital Costs: | L36: =SUM(L27,L32,L34) ->  | M36: 23 | N36: 1.1388 | U36: 1.973586511 | V36: 0.3255713058
M37: 24 | N37: 1.1388 | U37: 2.032794106 | V37: 0.3100679103
F38: Energy Costs: | M38: 25 | N38: 1.1388 | U38: 2.09377793 | V38: 0.2953027717
F39: Electrical Cost | G39: ='User & Location Information'!E16 -> 0.13 | H39: $/kW∙h | I39: Inflation Rate (%): | J39: 0.03 | M39: 26 | N39: 1.1388 | U39: 2.156591268 | V39: 0.281240735
F40: Aeration Power | G40: =G15*0.746 -> 0 | H40: kW | I40: Discount Rate (%): | J40: 0.05 | M40: 27 | N40: 1.1388 | U40: 2.221289006 | V40: 0.267848319
F41: Aeration Run Time | G41: =G16 -> 24 | H41: hr/d | I41: Salvage Value: | J41: None | M41: 28 | N41: 1.1388 | U41: 2.287927676 | V41: 0.2550936371
F42: Panel Power: | G42: 0.001 | H42: kW | I42: Depreciation: | J42: None | M42: 29 | N42: 1.1388 | U42: 2.356565506 | V42: 0.2429463211
F43: Annual Electric Cost: | G43: =(G40*G41*G39*365)+(G42*8760*G39) -> 1.1388 | M43: 30 | N43: 1.1388 | U43: 2.427262471 | V43: 0.2313774487
M44: 31 | N44: 1.1388 | U44: 2.500080345 | V44: 0.2203594749
M45: 32 | N45: 1.1388 | U45: 2.575082756 | V45: 0.2098661666
F46: Life Cycle Costs: | M46: 33 | N46: 1.1388 | U46: 2.652335238 | V46: 0.1998725396
F47: Annual Maintenance Contract: | G47: =0.5*G4 -> 0 | H47: $0.50/gpd | M47: 34 | N47: 1.1388 | U47: 2.731905296 | V47: 0.1903547996
F48: Anualized cost to rebuild system in 30 yrs | G48: =L36/30 ->  | H48: 5-yr replacement on blowers - Blower Cost: | L48: =IF(E16="",D16,E16) ->  | M48: 35 | N48: 1.1388 | U48: 2.813862454 | V48: 0.1812902854
F49: Sum Annualized Cost: | G49: =SUM(G47:G48) ->  | M49: 36 | N49: 1.1388 | U49: 2.898278328 | V49: 0.1726574146
M50: 37 | N50: 1.1388 | U50: 2.985226678 | V50: 0.164435633
M51: 38 | N51: 1.1388 | U51: 3.074783478 | V51: 0.1566053647
F52: System Life (years) | G52: 60 | H52: yrs | M52: 39 | N52: 1.1388 | U52: 3.167026983 | V52: 0.1491479664
M53: 40 | N53: 1.1388 | U53: 3.262037792 | V53: 0.1420456823
F54: Life Cycle Present Value: | G54: =R9 ->  | M54: 41 | N54: 1.1388 | U54: 3.359898926 | V54: 0.1352816022
M55: 42 | N55: 1.1388 | U55: 3.460695894 | V55: 0.1288396211
M56: 43 | N56: 1.1388 | U56: 3.56451677 | V56: 0.1227044011
M57: 44 | N57: 1.1388 | U57: 3.671452273 | V57: 0.1168613344
M58: 45 | N58: 1.1388 | U58: 3.781595842 | V58: 0.1112965089
M59: 46 | N59: 1.1388 | U59: 3.895043717 | V59: 0.1059966752
M60: 47 | N60: 1.1388 | U60: 4.011895028 | V60: 0.1009492144
M61: 48 | N61: 1.1388 | U61: 4.132251879 | V61: 0.09614210899
M62: 49 | N62: 1.1388 | U62: 4.256219436 | V62: 0.09156391332
M63: 50 | N63: 1.1388 | U63: 4.383906019 | V63: 0.08720372697
M64: 51 | N64: 1.1388 | U64: 4.515423199 | V64: 0.08305116855
M65: 52 | N65: 1.1388 | U65: 4.650885895 | V65: 0.079096351
M66: 53 | N66: 1.1388 | U66: 4.790412472 | V66: 0.07532985809
M67: 54 | N67: 1.1388 | U67: 4.934124846 | V67: 0.07174272199
M68: 55 | N68: 1.1388 | U68: 5.082148592 | V68: 0.0683264019
M69: 56 | N69: 1.1388 | U69: 5.234613049 | V69: 0.06507276371
M70: 57 | N70: 1.1388 | U70: 5.391651441 | V70: 0.06197406068
M71: 58 | N71: 1.1388 | U71: 5.553400984 | V71: 0.05902291493
M72: 59 | N72: 1.1388 | U72: 5.720003014 | V72: 0.05621229993
M73: 60 | N73: 1.1388 | U73: 5.891603104 | V73: 0.05353552375

Sheet Lagoon Builder
A1: Lagoon Costing Information | F1: Technology: Lagoons
F2: Assumptions: | Q2: System Life (years) | R2: =G52 -> 60
A3: Item | C3: Default Unit Cost | D3: Location Factor Unit Cost | E3: User Provided Unit Cost | F3: Assumes 75 days of detention and 5 feet deep | I3: Clay liner is assumed to be 12" thick before compaction OR a sheet of plastic liner is used | Q3: Construction and Installation Costs | R3: =L36 -> 
Q4: Annual Energy Costs | R4: =G43 -> 0
A5: Excavation Cost per Cubic Foot | F5: Daily Wastewater Volume: | G5: ='Wastewater Volume Calculator'!J96 -> 0 | H5: gpd | Q5: Annual Maintenance Cost | R5: =G49 -> 
Q6: Discount Factor (as percent) | R6: =J40 -> 0.05
C7: 8.96 | D7: =(VLOOKUP(TRUNC('User & Location Information'!$E$12/100,0),LocationFactors!$B$4:$G$911,5,FALSE))/100*C7 ->  | F7: Lagoon Volume: | G7: =G5*IF(E35="",75,E35)/7.48 -> 0 | H7: cubic feet | I7: Excavation Required: | J7: =G7/2 -> 0 | K7: cubic feet | Q7: Inflation Rate (as percent) | R7: =J39 -> 0.03
A8: Materials and Delivery Cost for Liner Material on a per Cubic Foot Basis OR if plastic liner is used - then per Square Foot of plastic liner
F9: Excavation Unit Cost: | G9: =IF(E7="",D7,E7) ->  | H9: per cubic ft | I9: Excavation Total: | J9: =G9*J7 ->  | Q9: Present Value of System Life Cycle Cost | R9: =SUM(T13:T73) -> 
F11: Liner Unit Costs: | G11: =IF(E14="",D14,E14) ->  | H11: per ft3 liner | I11: Liner Cost: | J11: =G11*(G7/5) ->  | M11: Year | N11: Annualized Costs | P11: Periodic Costs | Q11: Total Cost in Year Zero | R11: Sum Cost of Year | S11: Sum Cost of Year Adjusted for Inflation | T11: Present Value of Cost of Year | U11: Inflation Factor | V11: Discount Factor
N12: Energy | O12: Maintenance
F13: Liner Unit Installation: | G13: =IF(E17="",D17,E17) ->  | H13: per ft3 liner | I13: Liner Installation: | J13: =(G7/5)*0.5*G13 ->  | M13: 0 | Q13: =R3 ->  | R13: =IF($R$2>=$M$13,(SUM(N13:P13)+Q13),"") ->  | S13: =R13*U13 ->  | T13: =S13*V13 ->  | U13: =IF(R$2>=M13,((1+R$7)^M13),"") -> 1 | V13: =IF(R$2>=M13,((1/(1+R$6)^M13)),"") -> 1
C14: 0.89 | D14: =(VLOOKUP(TRUNC('User & Location Information'!$E$12/100,0),LocationFactors!$B$4:$G$911,4,FALSE))/100*C14 ->  | M14: =IF(ISERROR(IF($R$2>=M13+1,M13+1,"")),"",IF($R$2>=M13+1,M13+1,"")) -> 1 | N14: =IF(M14<=$R$2, $R$4, "") -> 0 | O14: =IF(M14<=$R$2,$R$5,"") ->  | R14: =IF(M14<=$R$2,SUM(N14:P14),"") ->  | S14: =IF(M14<=$R$2,R14*U14,"") ->  | T14: =IF(M14<=$R$2,S14*V14,"") ->  | U14: 1.03 | V14: 0.9523809524
A15: Liner Installation on a per ft3 or ft2 basis | F15: Head Works Unit Install: | G15: =IF(E24="",D24,E24) ->  | H15: per gpd | I15: Head Works Installation: | J15: =G15*G5 ->  | M15: =IF(ISERROR(IF($R$2>=M14+1,M14+1,"")),"",IF($R$2>=M14+1,M14+1,"")) -> 2 | N15: =IF(M15<=$R$2, $R$4, "") -> 0 | O15: =IF(M15<=$R$2,$R$5,"") ->  | R15: =IF(M15<=$R$2,SUM(N15:P15),"") ->  | S15: =IF(M15<=$R$2,R15*U15,"") ->  | T15: =IF(M15<=$R$2,S15*V15,"") ->  | U15: 1.0609 | V15: 0.9070294785
M16: 3 | N16: 0 | U16: 1.092727 | V16: 0.8638375985
C17: 1.5 | D17: =(VLOOKUP(TRUNC('User & Location Information'!$E$12/100,0),LocationFactors!$B$4:$G$911,5,FALSE))/100*C17 ->  | F17: Head Works Unit Costs: | G17: =IF(E21="",D21,E21) ->  | H17: per gpd | I17: Head Works Costs: | J17: =G5*G17 ->  | M17: 4 | N17: 0 | U17: 1.12550881 | V17: 0.8227024748
A18: Headworks Materials and Delivery on a per Gallon per Day Basis | M18: 5 | N18: 0 | U18: 1.159274074 | V18: 0.7835261665
F19: Unit Site Work: | G19: =IF(E29="",D29,E29) ->  | H19: per ft2 of disturbance | M19: 6 | N19: 0 | U19: 1.194052297 | V19: 0.7462153966
M20: 7 | N20: 0 | U20: 1.229873865 | V20: 0.7106813301
C21: 5 | D21: =(VLOOKUP(TRUNC('User & Location Information'!$E$12/100,0),LocationFactors!$B$4:$G$911,4,FALSE))/100*C21 ->  | F21: Total Disturbed Area: | G21: =G7/5*IF(E40="",2,E40) -> 0 | H21: ft2 | I21: Total Site Work: | J21: =G21*IF(E29="",D29,E29) ->  | M21: 8 | N21: 0 | U21: 1.266770081 | V21: 0.676839362
A22: Headworks Installation on a per Gallon per Day Basis | M22: 9 | N22: 0 | U22: 1.304773184 | V22: 0.6446089162
F23: Materials: | M23: 10 | N23: 0 | U23: 1.343916379 | V23: 0.6139132535
C24: 5 | D24: =(VLOOKUP(TRUNC('User & Location Information'!$E$12/100,0),LocationFactors!$B$4:$G$911,5,FALSE))/100*C24 ->  | F24: Cost of Materials: | L24: =SUM(J11,J17) ->  | M24: 11 | N24: 0 | U24: 1.384233871 | V24: 0.5846792891
A25: Unit Site Work: Cost of labor and Equipment to prepare site for Excavation (per Square Foot of disturbance). | F25: P&O for Materials: | G25: =IF('User & Location Information'!$F$25="",'User & Location Information'!$E$25/100,'User & Location Information'!$F$25/100) -> 0.2 | L25: =L24*G25 ->  | M25: 12 | N25: 0 | U25: 1.425760887 | V25: 0.5568374182
F26: Sales Tax on Materials: | G26: ='User & Location Information'!$E$14/100 -> 0 | L26: =L24*G26 ->  | M26: 13 | N26: 0 | U26: 1.468533713 | V26: 0.5303213506
F27: Total Materials: | L27: =SUM(L24:L26) ->  | M27: 14 | N27: 0 | U27: 1.512589725 | V27: 0.505067953 | Y27: 450 | Z27: 1000
M28: 15 | N28: 0 | U28: 1.557967417 | V28: 0.4810170981 | Y28: 5000 | Z28: 10000
C29: 1.8 | D29: =(VLOOKUP(TRUNC('User & Location Information'!$E$12/100,0),LocationFactors!$B$4:$G$911,5,FALSE))/100*C29 ->  | F29: Labor & Equipment: | M29: 16 | N29: 0 | U29: 1.604706439 | V29: 0.458111522 | Y29: 10000 | Z29: 20000
A30: Cost to Pump 1000 gal Septage: | C30: 355 | D30: =(VLOOKUP(TRUNC('User & Location Information'!$E$12/100,0),LocationFactors!$B$4:$G$911,6,FALSE))/100*C30 ->  | F30: Cost of Labor & Equipment: | L30: =SUM(J9,J13,J21,J15) ->  | M30: 17 | N30: 0 | U30: 1.652847632 | V30: 0.4362966876 | Y30: 50000 | Z30: 100000
F31: 20% P&O Labor & Equipment: | G31: =IF('User & Location Information'!$F$26="",'User & Location Information'!$E$26/100,'User & Location Information'!$F$26/100) -> 0.2 | L31: =L30*G31 ->  | M31: 18 | N31: 0 | U31: 1.702433061 | V31: 0.4155206549
A32: Lagoon Volume Information (Detention Days) | F32: Total Labor & Equipment: | L32: =SUM(L30:L31) ->  | M32: 19 | N32: 0 | U32: 1.753506053 | V32: 0.395733957
A33: Assumption: volume is 75 (default value) times the daily flow (in gallons) then converted to cubic feet | M33: 20 | N33: 0 | U33: 1.806111235 | V33: 0.3768894829
F34: Professional Services Fees: | M34: 21 | N34: 0 | U34: 1.860294572 | V34: 0.3589423646
A35: To change the default value (75), enter a new multiplier: | M35: 22 | N35: 0 | U35: 1.916103409 | V35: 0.3418498711
F36: Capital Costs: | L36: =SUM(L27,L32,L34) ->  | M36: 23 | N36: 0 | U36: 1.973586511 | V36: 0.3255713058
A37: Area of Disturbance Calculation | M37: 24 | N37: 0 | U37: 2.032794106 | V37: 0.3100679103
A38: Area of disturbance: Estimated by dividing lagoon volume divided by 5 (assumed depth), then this area is multiplied by a default value of 2. | F38: Energy Costs: | M38: 25 | N38: 0 | U38: 2.09377793 | V38: 0.2953027717
F39: Electrical Cost | G39: ='User & Location Information'!E16 -> 0.13 | H39: $/kW∙h | I39: Inflation Rate (%): | J39: 0.03 | M39: 26 | N39: 0 | U39: 2.156591268 | V39: 0.281240735
A40: To change the default value (2), enter a new multiplier: | F40: Aeration Power | H40: kW | I40: Discount Rate (%): | J40: 0.05 | M40: 27 | N40: 0 | U40: 2.221289006 | V40: 0.267848319
F41: Aeration Run Time | H41: hr/d | I41: Salvage Value: | J41: None | M41: 28 | N41: 0 | U41: 2.287927676 | V41: 0.2550936371
F42: Panel Power: | G42: 0 | H42: kW | I42: Depreciation: | J42: None | M42: 29 | N42: 0 | U42: 2.356565506 | V42: 0.2429463211
F43: Annual Electric Cost: | G43: =(G40*G41*G39*365)+(G42*8760*G39) -> 0 | M43: 30 | N43: 0 | U43: 2.427262471 | V43: 0.2313774487
M44: 31 | N44: 0 | U44: 2.500080345 | V44: 0.2203594749
M45: 32 | N45: 0 | U45: 2.575082756 | V45: 0.2098661666
F46: Life Cycle Costs: | M46: 33 | N46: 0 | U46: 2.652335238 | V46: 0.1998725396
F47: Annual Maintenance Contract: | G47: =0.5*G5 -> 0 | H47: (50% of daily volume) | M47: 34 | N47: 0 | U47: 2.731905296 | V47: 0.1903547996
F48: Annual Sludge removal : | G48: =(IF(E30="",D30,E30))*G5*365/1000*0.0006 ->  | H48: 0.0006 gallon of sludge per gallon of treated water | M48: 35 | N48: 0 | U48: 2.813862454 | V48: 0.1812902854
F49: Sum of Maintenance: | G49: =SUM(G47:G48) ->  | M49: 36 | N49: 0 | U49: 2.898278328 | V49: 0.1726574146
M50: 37 | N50: 0 | U50: 2.985226678 | V50: 0.164435633
M51: 38 | N51: 0 | U51: 3.074783478 | V51: 0.1566053647
F52: System Life (years) | G52: 60 | H52: yrs | M52: 39 | N52: 0 | U52: 3.167026983 | V52: 0.1491479664
M53: 40 | N53: 0 | U53: 3.262037792 | V53: 0.1420456823
F54: Life Cycle Present Value: | G54: =R9 ->  | M54: 41 | N54: 0 | U54: 3.359898926 | V54: 0.1352816022
M55: 42 | N55: 0 | U55: 3.460695894 | V55: 0.1288396211
M56: 43 | N56: 0 | U56: 3.56451677 | V56: 0.1227044011
M57: 44 | N57: 0 | U57: 3.671452273 | V57: 0.1168613344
M58: 45 | N58: 0 | U58: 3.781595842 | V58: 0.1112965089
M59: 46 | N59: 0 | U59: 3.895043717 | V59: 0.1059966752
M60: 47 | N60: 0 | U60: 4.011895028 | V60: 0.1009492144
M61: 48 | N61: 0 | U61: 4.132251879 | V61: 0.09614210899
M62: 49 | N62: 0 | U62: 4.256219436 | V62: 0.09156391332
M63: 50 | N63: 0 | U63: 4.383906019 | V63: 0.08720372697
M64: 51 | N64: 0 | U64: 4.515423199 | V64: 0.08305116855
M65: 52 | N65: 0 | U65: 4.650885895 | V65: 0.079096351
M66: 53 | N66: 0 | U66: 4.790412472 | V66: 0.07532985809
M67: 54 | N67: 0 | U67: 4.934124846 | V67: 0.07174272199
M68: 55 | N68: 0 | U68: 5.082148592 | V68: 0.0683264019
M69: 56 | N69: 0 | U69: 5.234613049 | V69: 0.06507276371
M70: 57 | N70: 0 | U70: 5.391651441 | V70: 0.06197406068
M71: 58 | N71: 0 | U71: 5.553400984 | V71: 0.05902291493
M72: 59 | N72: 0 | U72: 5.720003014 | V72: 0.05621229993
M73: 60 | N73: 0 | U73: 5.891603104 | V73: 0.05353552375

Sheet Settling Pond Builder
A1: Pond Costing Information | F1: Technology: settling pond
F2: Assumptions: | Q2: System Life (years) | R2: =G55 -> 60
A3: Item | C3: Default Unit Cost | D3: Location Factor Unit Cost | E3: User Provided Unit Cost | F3: Assumes: 10 days of detention and 10 feet deep | I3: Clay liner is assumed to be 12" thick before compaction OR a sheet of plastic liner is used | Q3: Construction and Installation Costs | R3: =L39 -> 
Q4: Annual Energy Costs | R4: =G46 -> 0
A5: Excavation Cost per Cubic Foot | F5: Daily Wastewater Volume: | G5: ='Wastewater Volume Calculator'!J96 -> 0 | H5: gpd | Q5: Annual Maintenance Cost | R5: =G52 -> 
Q6: Discount Factor (as percent) | R6: =J43 -> 0.05
C7: 8.96 | D7: =(VLOOKUP(TRUNC('User & Location Information'!$E$12/100,0),LocationFactors!$B$4:$G$911,5,FALSE))/100*C7 ->  | F7: Pond Volume: | G7: =G5/7.48*IF(E39="",10,E39) -> 0 | H7: cubic feet | I7: Min.Excavation Required: | J7: =G7/2 -> 0 | K7: cubic feet | Q7: Inflation Rate (as percent) | R7: =J42 -> 0.03
A8: Materials and Delivery Cost for Liner Material on a per Cubic Foot Basis OR if plastic liner is used - then per Square Foot of plastic liner | Q8: Present Value of System Life Cycle Cost | R8: =SUM(T16:T76) -> 
F10: Excavation Unit Cost: | G10: =IF(E7="",D7,E7) ->  | H10: per cubic ft | I10: Excavation Total: | J10: =G10*J7 -> 
F12: Liner Unit Costs: | G12: =IF(E14="",D14,E14) ->  | H12: per ft3 or ft2 liner | I12: Liner Cost: | J12: =G12*G7/10 -> 
C14: 0.89 | D14: =(VLOOKUP(TRUNC('User & Location Information'!$E$12/100,0),LocationFactors!$B$4:$G$911,4,FALSE))/100*C14 ->  | F14: Liner Unit Installation: | G14: =IF(E17="",D17,E17) ->  | H14: per ft3 or ft2 liner | I14: Liner Installation: | J14: =(G7/10)*0.5*G14 ->  | M14: Year | N14: Annualized Costs | P14: Periodic Costs | Q14: Total Cost in Year Zero | R14: Sum Cost of Year | S14: Sum Cost of Year Adjusted for Inflation | T14: Present Value of Cost of Year | U14: Inflation Factor | V14: Discount Factor
A15: Liner Installation on a per ft3 or ft2 basis | N15: Energy | O15: Maintenance
F16: Head Works Unit Install: | G16: =IF(E24="",D24,E24) ->  | H16: per gpd | I16: Head Works Installation: | J16: =G16*G5 ->  | M16: 0 | Q16: =R3 ->  | R16: =IF($R$2>=$M$16,(SUM(N16:P16)+Q16),"") ->  | S16: =R16*U16 ->  | T16: =S16*V16 ->  | U16: =IF(R$2>=M16,((1+R$7)^M16),"") -> 1 | V16: =IF(R$2>=M16,((1/(1+R$6)^M16)),"") -> 1
C17: 1.5 | D17: =(VLOOKUP(TRUNC('User & Location Information'!$E$12/100,0),LocationFactors!$B$4:$G$911,5,FALSE))/100*C17 ->  | M17: =IF(ISERROR(IF($R$2>=M16+1,M16+1,"")),"",IF($R$2>=M16+1,M16+1,"")) -> 1 | N17: =IF(M17<=$R$2, $R$4, "") -> 0 | O17: =IF(M17<=$R$2,$R$5,"") ->  | R17: =IF(M17<=$R$2,SUM(N17:P17),"") ->  | S17: =IF(M17<=$R$2,R17*U17,"") ->  | T17: =IF(M17<=$R$2,S17*V17,"") ->  | U17: 1.03 | V17: 0.9523809524
A18: Headworks Materials and Delivery on a per Gallon per Day Basis | F18: Head Works Unit Costs: | G18: =IF(E21="",D21,E21) ->  | H18: per gpd | I18: Head Works Costs: | J18: =G5*G18 ->  | M18: =IF(ISERROR(IF($R$2>=M17+1,M17+1,"")),"",IF($R$2>=M17+1,M17+1,"")) -> 2 | N18: =IF(M18<=$R$2, $R$4, "") -> 0 | O18: =IF(M18<=$R$2,$R$5,"") ->  | R18: =IF(M18<=$R$2,SUM(N18:P18),"") ->  | S18: =IF(M18<=$R$2,R18*U18,"") ->  | T18: =IF(M18<=$R$2,S18*V18,"") ->  | U18: 1.0609 | V18: 0.9070294785
M19: 3 | N19: 0 | U19: 1.092727 | V19: 0.8638375985
F20: Size of Area Disturbed: | G20: =G7/10*IF(E44="",2,E44) -> 0 | H20: ft2 | M20: 4 | N20: 0 | U20: 1.12550881 | V20: 0.8227024748
C21: 5 | D21: =(VLOOKUP(TRUNC('User & Location Information'!$E$12/100,0),LocationFactors!$B$4:$G$911,4,FALSE))/100*C21 ->  | M21: 5 | N21: 0 | U21: 1.159274074 | V21: 0.7835261665
A22: Headworks Installation on a per Gallon per Day Basis | F22: Unit Site Work: | G22: =IF(E29="",D29,E29) ->  | H22: per ft2 | I22: Total Site Work: | J22: =G5*G22 ->  | M22: 6 | N22: 0 | U22: 1.194052297 | V22: 0.7462153966
M23: 7 | N23: 0 | U23: 1.229873865 | V23: 0.7106813301
C24: 5 | D24: =(VLOOKUP(TRUNC('User & Location Information'!$E$12/100,0),LocationFactors!$B$4:$G$911,5,FALSE))/100*C24 ->  | M24: 8 | N24: 0 | U24: 1.266770081 | V24: 0.676839362
A25: Unit Site Work: Cost of labor and Equipment to prepare site for Excavation (per Square Foot of disturbance). | M25: 9 | N25: 0 | U25: 1.304773184 | V25: 0.6446089162
F26: Materials: | M26: 10 | N26: 0 | U26: 1.343916379 | V26: 0.6139132535
F27: Cost of Materials: | L27: =SUM(J12,J18) ->  | M27: 11 | N27: 0 | U27: 1.384233871 | V27: 0.5846792891
F28: P&O for Materials: | G28: =IF('User & Location Information'!$F$25="",'User & Location Information'!$E$25/100,'User & Location Information'!$F$25/100) -> 0.2 | L28: =L27*G28 ->  | M28: 12 | N28: 0 | U28: 1.425760887 | V28: 0.5568374182
C29: 1.8 | D29: =(VLOOKUP(TRUNC('User & Location Information'!$E$12/100,0),LocationFactors!$B$4:$G$911,5,FALSE))/100*C29 ->  | F29: Sales Tax on Materials: | G29: ='User & Location Information'!E14/100 -> 0 | L29: =L27*G29 ->  | M29: 13 | N29: 0 | U29: 1.468533713 | V29: 0.5303213506
A30: Septage Pumping Cost Information | F30: Total Materials: | L30: =SUM(L27:L29) ->  | M30: 14 | N30: 0 | U30: 1.512589725 | V30: 0.505067953
M31: 15 | N31: 0 | U31: 1.557967417 | V31: 0.4810170981
A32: Cost for pump 1,000 gallons of septage/biosolids from tankage | F32: Labor & Equipment: | M32: 16 | N32: 0 | U32: 1.604706439 | V32: 0.458111522
F33: Cost of Labor & Equipment: | L33: =SUM(J10,J14,J22,J16) ->  | M33: 17 | N33: 0 | U33: 1.652847632 | V33: 0.4362966876
C34: 355 | D34: =(VLOOKUP(TRUNC('User & Location Information'!$E$12/100,0),LocationFactors!$B$4:$G$911,6,FALSE))/100*C34 ->  | F34: P&O Labor & Equipment: | G34: =IF('User & Location Information'!$F$26="",'User & Location Information'!$E$26/100,'User & Location Information'!$F$26/100) -> 0.2 | L34: =L33*G34 ->  | M34: 18 | N34: 0 | U34: 1.702433061 | V34: 0.4155206549
F35: Total Labor & Equipment: | L35: =SUM(L33:L34) ->  | M35: 19 | N35: 0 | U35: 1.753506053 | V35: 0.395733957
A36: Settling Pond Volume Information (Detention Days) | M36: 20 | N36: 0 | U36: 1.806111235 | V36: 0.3768894829
A37: Assumption: Tank volume is 10 (default value) times the daily flow (in gallons) then converted to cubic feet | F37: Professional Services Fees: | M37: 21 | N37: 0 | U37: 1.860294572 | V37: 0.3589423646
M38: 22 | N38: 0 | U38: 1.916103409 | V38: 0.3418498711
A39: To change the default value (10), enter a new multiplier: | F39: Capital Costs: | L39: =SUM(L30,L35,L37) ->  | M39: 23 | N39: 0 | U39: 1.973586511 | V39: 0.3255713058
M40: 24 | N40: 0 | U40: 2.032794106 | V40: 0.3100679103
A41: Area of Disturbance Calculation | F41: Energy Costs: | M41: 25 | N41: 0 | U41: 2.09377793 | V41: 0.2953027717
A42: Area of disturbance: Estimated by dividing pond volume divided by 10 (assumed depth), then this area is multiplied by a default value of 2. | F42: Electrical Cost | G42: ='User & Location Information'!E16 -> 0.13 | H42: $/kW∙h | I42: Inflation Rate (%): | J42: 0.03 | M42: 26 | N42: 0 | U42: 2.156591268 | V42: 0.281240735
F43: Aeration Power | H43: kW | I43: Discount Rate (%): | J43: 0.05 | M43: 27 | N43: 0 | U43: 2.221289006 | V43: 0.267848319
A44: To change the default value (2), enter a new multiplier: | F44: Aeration Run Time | H44: hr/d | I44: Salvage Value: | J44: None | M44: 28 | N44: 0 | U44: 2.287927676 | V44: 0.2550936371
F45: Panel Power: | G45: 0 | H45: kW | I45: Depreciation: | J45: None | M45: 29 | N45: 0 | U45: 2.356565506 | V45: 0.2429463211
F46: Annual Electric Cost: | G46: =(G43*G44*G42*365)+(G45*8760*G42) -> 0 | M46: 30 | N46: 0 | U46: 2.427262471 | V46: 0.2313774487
M47: 31 | N47: 0 | U47: 2.500080345 | V47: 0.2203594749
M48: 32 | N48: 0 | U48: 2.575082756 | V48: 0.2098661666
F49: Life Cycle Costs: | M49: 33 | N49: 0 | U49: 2.652335238 | V49: 0.1998725396
F50: Annual Maintenance Contract: | G50: =0.1*G5 -> 0 | M50: 34 | N50: 0 | U50: 2.731905296 | V50: 0.1903547996
F51: Annualized Solids Removal: | G51: =0.1*G7*7.48/1000*IF(E34="",D34,E34)/7 ->  | M51: 35 | N51: 0 | U51: 2.813862454 | V51: 0.1812902854
F52: Sum Annualized Maintenance: | G52: =SUM(G50:G51) ->  | M52: 36 | N52: 0 | U52: 2.898278328 | V52: 0.1726574146
M53: 37 | N53: 0 | U53: 2.985226678 | V53: 0.164435633
M54: 38 | N54: 0 | U54: 3.074783478 | V54: 0.1566053647
F55: System Life (years) | G55: 60 | H55: yrs | M55: 39 | N55: 0 | U55: 3.167026983 | V55: 0.1491479664
M56: 40 | N56: 0 | U56: 3.262037792 | V56: 0.1420456823
F57: Life Cycle Present Value: | G57: =R8 ->  | M57: 41 | N57: 0 | U57: 3.359898926 | V57: 0.1352816022
M58: 42 | N58: 0 | U58: 3.460695894 | V58: 0.1288396211
M59: 43 | N59: 0 | U59: 3.56451677 | V59: 0.1227044011
M60: 44 | N60: 0 | U60: 3.671452273 | V60: 0.1168613344
M61: 45 | N61: 0 | U61: 3.781595842 | V61: 0.1112965089
M62: 46 | N62: 0 | U62: 3.895043717 | V62: 0.1059966752
M63: 47 | N63: 0 | U63: 4.011895028 | V63: 0.1009492144
M64: 48 | N64: 0 | U64: 4.132251879 | V64: 0.09614210899
M65: 49 | N65: 0 | U65: 4.256219436 | V65: 0.09156391332
M66: 50 | N66: 0 | U66: 4.383906019 | V66: 0.08720372697
M67: 51 | N67: 0 | U67: 4.515423199 | V67: 0.08305116855
M68: 52 | N68: 0 | U68: 4.650885895 | V68: 0.079096351
M69: 53 | N69: 0 | U69: 4.790412472 | V69: 0.07532985809
M70: 54 | N70: 0 | U70: 4.934124846 | V70: 0.07174272199
M71: 55 | N71: 0 | U71: 5.082148592 | V71: 0.0683264019
M72: 56 | N72: 0 | U72: 5.234613049 | V72: 0.06507276371
M73: 57 | N73: 0 | U73: 5.391651441 | V73: 0.06197406068
M74: 58 | N74: 0 | U74: 5.553400984 | V74: 0.05902291493
M75: 59 | N75: 0 | U75: 5.720003014 | V75: 0.05621229993
M76: 60 | N76: 0 | U76: 5.891603104 | V76: 0.05353552375

Sheet Chlorine Disinfection Builder
A1: Chlorine Costing Information (Assuming Sodium Hypochlorite) | F1: Technology:
F2: Sodium Hypochlorite Disinfection | Q2: System Life (years) | R2: =G69 -> 60
A3: Item | C3: Default Unit Cost | D3: Location Factor Unit Cost | E3: User Provided Information | Q3: Construction and Installation Costs | R3: =L53 -> 
Q4: Annual Energy Costs | R4: =G60 -> 
A5: Actual Cost of Chlorine Injection System | F5: Daily Wastewater Volume | G5: ='Wastewater Volume Calculator'!J96 -> 0 | H5: gpd | Q5: Annual Maintenance Cost | R5: =G67 -> 
F6: Chlorine Dosage | G6: =IF(E9="",C9,E9) -> 20 | H6: mg/L | I6: Notes: | Q6: Discount Factor (as percent) | R6: =J65 -> 0.05
C7: 522 | D7: =(VLOOKUP(TRUNC('User & Location Information'!$E$12/100,0),LocationFactors!$B$4:$G$911,4,FALSE))/100*C7 ->  | F7: Pounds of Chorine/day | G7: =G5*0.00000834*G6 -> 0 | H7: lbs | I7: For the mass of chlorine per gallon of solution, a S.G of 1.1 was assumed | Q7: Inflation Rate (as percent) | R7: =J64 -> 0.03
A8: Actual Dosage of Chlorine mg/L | F8: % Sodium Hypochlorite | G8: 0.125
C9: 20 | D9: (mg/L) | F9: Cost per Gallon | G9: =IF(E11="",D11,E11) ->  | Q9: Present Value of System Life Cycle Cost | R9: =SUM(T13:T73) -> 
A10: Cost per gallon of Chlorine Solution | F10: lb of OCL per gallon solution | G10: =1.1*8.34*G8 -> 1.14675
C11: 1.46 | D11: =(VLOOKUP(TRUNC('User & Location Information'!$E$12/100,0),LocationFactors!$B$4:$G$911,4,FALSE))/100*C11 ->  | F11: gallon of solution per day | G11: =G7/G10 -> 0 | H11: gal | M11: Year | N11: Annualized Costs | P11: Periodic Costs | Q11: Total Cost in Year Zero | R11: Sum Cost of Year | S11: Sum Cost of Year Adjusted for Inflation | T11: Present Value of Cost of Year | U11: Inflation Factor | V11: Discount Factor
A12: Concentration of Chlorine per gallon | F12: Cost per Day to Chlorinate | G12: =(G7/G10)*G9 ->  | N12: Energy | O12: Maintenance
C13: 12.5 | D13: (enter as percent) | M13: 0 | Q13: =R3 ->  | R13: =IF($R$2>=$M$13,(SUM(N13:P13)+Q13),"") ->  | S13: =R13*U13 ->  | T13: =S13*V13 ->  | U13: =IF(R$2>=M13,((1+R$7)^M13),"") -> 1 | V13: =IF(R$2>=M13,((1/(1+R$6)^M13)),"") -> 1
A14: Dechlorination Costing Factors (Assuming Calcium Thiosulfate) | F14: Flow Rate to Dispersal | G14: =0.1442*(G5^0.5919) -> 0 | H14: gpm | M14: =IF(ISERROR(IF($R$2>=M13+1,M13+1,"")),"",IF($R$2>=M13+1,M13+1,"")) -> 1 | N14: =IF(M14<=$R$2, $R$4, "") ->  | O14: =IF(M14<=$R$2,$R$5,"") ->  | R14: =IF(M14<=$R$2,SUM(N14:P14),"") ->  | S14: =IF(M14<=$R$2,R14*U14,"") ->  | T14: =IF(M14<=$R$2,S14*V14,"") ->  | U14: 1.03 | V14: 0.9523809524
F15: Contact time in Minutes | G15: 20 | H15: minutes | M15: =IF(ISERROR(IF($R$2>=M14+1,M14+1,"")),"",IF($R$2>=M14+1,M14+1,"")) -> 2 | N15: =IF(M15<=$R$2, $R$4, "") ->  | O15: =IF(M15<=$R$2,$R$5,"") ->  | R15: =IF(M15<=$R$2,SUM(N15:P15),"") ->  | S15: =IF(M15<=$R$2,R15*U15,"") ->  | T15: =IF(M15<=$R$2,S15*V15,"") ->  | U15: 1.0609 | V15: 0.9070294785
A16: Actual Cost of Dechlorination Injection System | F16: Volume of Contact Tank | G16: =G14*G15 -> 0 | H16: gallons | M16: 3 | U16: 1.092727 | V16: 0.8638375985
M17: 4 | U17: 1.12550881 | V17: 0.8227024748
C18: =IF(G5<=500,200,2000) -> 200 | D18: =(VLOOKUP(TRUNC('User & Location Information'!$E$12/100,0),LocationFactors!$B$4:$G$911,4,FALSE))/100*C18 ->  | F18: Cost of Injector | G18: =IF(E7="",D7,E7) ->  | M18: 5 | U18: 1.159274074 | V18: 0.7835261665
A19: Chlorine Residual to be Removed (mg/L) | F19: Cost of Contact Tank | H19: No Cost if Dose Tank can be used for Contact Tank | M19: 6 | U19: 1.194052297 | V19: 0.7462153966
C20: 2 | D20: (mg/L) | M20: 7 | U20: 1.229873865 | V20: 0.7106813301
A21: Cost per gallon of Dechlor Solution | M21: 8 | U21: 1.266770081 | V21: 0.676839362
C22: 7.2 | D22: =(VLOOKUP(TRUNC('User & Location Information'!$E$12/100,0),LocationFactors!$B$4:$G$911,4,FALSE))/100*C22 ->  | M22: 9 | U22: 1.304773184 | V22: 0.6446089162
A23: Concentration of Dechlor Solution (lbs per gallon) | F23: Dechlorination | G23: Calcium Thiosulfate 30% Solution | M23: 10 | U23: 1.343916379 | V23: 0.6139132535
C24: 3.11 | D24: (lb/gallon) | F24: Chlorine to be Removed | G24: =IF(E20="",C20,E20) -> 2 | H24: mg/L | I24: Notes: | M24: 11 | U24: 1.384233871 | V24: 0.5846792891
A25: System Installation Costing Factors | F25: Lb per day Calcium Thiosulfate | G25: =1.19*G24*G5*0.00000834 -> 0 | I25: Assume 1.19 part CaS2O3 per part Cl2 | M25: 12 | U25: 1.425760887 | V25: 0.5568374182
F26: gallon of solution per day | G26: =G25/3.11 -> 0 | I26: Assume 3.11 lbs per gallon of CaS2O3 | M26: 13 | U26: 1.468533713 | V26: 0.5303213506
A27: Chlorine System Installation | F27: Cost per Gallon | G27: =IF(E22="",D22,E22) ->  | M27: 14 | U27: 1.512589725 | V27: 0.505067953
C28: 360 | D28: =(VLOOKUP(TRUNC('User & Location Information'!$E$12/100,0),LocationFactors!$B$4:$G$911,5,FALSE))/100*C28 ->  | F28: Cost per Day to Dechlorinate | G28: =G26*G27 ->  | M28: 15 | U28: 1.557967417 | V28: 0.4810170981
A29: Dechlorination System Installation | M29: 16 | U29: 1.604706439 | V29: 0.458111522
C30: 360 | D30: =(VLOOKUP(TRUNC('User & Location Information'!$E$12/100,0),LocationFactors!$B$4:$G$911,5,FALSE))/100*C30 ->  | F30: Cost of injector | G30: =IF(E18="",D18,E18) ->  | H30: assume skid mounded two injection pumps for community scale, | M30: 17 | U30: 1.652847632 | V30: 0.4362966876
M31: 18 | U31: 1.702433061 | V31: 0.4155206549
M32: 19 | U32: 1.753506053 | V32: 0.395733957
F33: Annual Cost of Chlorine | G33: =G12*365 ->  | M33: 20 | U33: 1.806111235 | V33: 0.3768894829
F34: Annual Cost of Dechlorination | G34: =G28*365 ->  | M34: 21 | U34: 1.860294572 | V34: 0.3589423646
M35: 22 | U35: 1.916103409 | V35: 0.3418498711
M36: 23 | U36: 1.973586511 | V36: 0.3255713058
F37: Installation Chlorine System | G37: =IF(E28="",D28,E28) ->  | M37: 24 | U37: 2.032794106 | V37: 0.3100679103
F38: Installation Dechlorination System | G38: =IF(E30="",D30,E30) ->  | M38: 25 | U38: 2.09377793 | V38: 0.2953027717
M39: 26 | U39: 2.156591268 | V39: 0.281240735
F40: Materials: | M40: 27 | U40: 2.221289006 | V40: 0.267848319
F41: Cost of Materials: | L41: =SUM(G18,G19,G30) ->  | M41: 28 | U41: 2.287927676 | V41: 0.2550936371
F42: P&O for Materials: | G42: =IF('User & Location Information'!F25="",'User & Location Information'!E25/100,'User & Location Information'!F25/100) -> 0.2 | L42: =G42*L41 ->  | M42: 29 | U42: 2.356565506 | V42: 0.2429463211
F43: Sales Tax on Materials: | G43: ='User & Location Information'!E14/100 -> 0 | L43: =G43*L41 ->  | M43: 30 | U43: 2.427262471 | V43: 0.2313774487
F44: Total Materials: | L44: =SUM(L41:L43) ->  | M44: 31 | U44: 2.500080345 | V44: 0.2203594749
M45: 32 | U45: 2.575082756 | V45: 0.2098661666
F46: Labor & Equipment: | M46: 33 | U46: 2.652335238 | V46: 0.1998725396
F47: Cost of Labor & Equipment: | L47: =SUM(G37,G38) ->  | M47: 34 | U47: 2.731905296 | V47: 0.1903547996
F48: P&O Labor & Equipment: | G48: =IF('User & Location Information'!F26="",'User & Location Information'!E26,'User & Location Information'!F26) -> 20 | H48: % | L48: =G48/100*L47 ->  | M48: 35 | U48: 2.813862454 | V48: 0.1812902854
F49: Total Labor & Equipment: | L49: =SUM(L47:L48) ->  | M49: 36 | U49: 2.898278328 | V49: 0.1726574146
M50: 37 | U50: 2.985226678 | V50: 0.164435633
F51: Professional Services Fees: | L51: 0 | M51: 38 | U51: 3.074783478 | V51: 0.1566053647
M52: 39 | U52: 3.167026983 | V52: 0.1491479664
F53: Capital Costs: | L53: =SUM(L44,L49,L51) ->  | M53: 40 | U53: 3.262037792 | V53: 0.1420456823
M54: 41 | U54: 3.359898926 | V54: 0.1352816022
F55: Energy Costs: | M55: 42 | U55: 3.460695894 | V55: 0.1288396211
F56: Electrical Cost | G56: ='User & Location Information'!E16 -> 0.13 | H56: $/kW∙h | M56: 43 | U56: 3.56451677 | V56: 0.1227044011
F57: Pump Power: | G57: 0.24 | H57: kW | I57: two injector pumps | M57: 44 | U57: 3.671452273 | V57: 0.1168613344
F58: Pump Run Time: | G58: =G5/G14/60 ->  | H58: hr/d | M58: 45 | U58: 3.781595842 | V58: 0.1112965089
F59: Panel Power: | G59: 0.001 | H59: kW | I59: (assumes continuous power draw) | M59: 46 | U59: 3.895043717 | V59: 0.1059966752
F60: Annual Electric Cost: | G60: =(G57*G58*G56*365)+(G59*8760*G56) ->  | M60: 47 | U60: 4.011895028 | V60: 0.1009492144
M61: 48 | U61: 4.132251879 | V61: 0.09614210899
G62: 828 | H62: Cost of replacement injector pump | M62: 49 | U62: 4.256219436 | V62: 0.09156391332
F63: Life Cycle Costs: | M63: 50 | U63: 4.383906019 | V63: 0.08720372697
F64: Annual Chemical Costs | G64: =SUM(G33:G34) ->  | I64: Inflation Rate (%): | J64: 0.03 | M64: 51 | U64: 4.515423199 | V64: 0.08305116855
F65: Annual Maintenance Salary: | G65: =0.1*G5 -> 0 | H65: yr | I65: Discount Rate (%): | J65: 0.05 | M65: 52 | U65: 4.650885895 | V65: 0.079096351
F66: Replace pump head every 5 years: | G66: =G62/5 -> 165.6 | H66: (annualized) | I66: Salvage Value: | J66: None | M66: 53 | U66: 4.790412472 | V66: 0.07532985809
F67: Total Annualized Maintenance: | G67: =SUM(G64:G66) ->  | I67: Depreciation: | J67: None | M67: 54 | U67: 4.934124846 | V67: 0.07174272199
M68: =IF(ISERROR(IF($R$2>=M67+1,M67+1,"")),"",IF($R$2>=M67+1,M67+1,"")) -> 55 | U68: 5.082148592 | V68: 0.0683264019
F69: System Life (years) | G69: 60 | H69: yrs | M69: 56 | U69: 5.234613049 | V69: 0.06507276371
M70: 57 | U70: 5.391651441 | V70: 0.06197406068
F71: Life Cycle Present Value: | G71: =R9 ->  | M71: 58 | U71: 5.553400984 | V71: 0.05902291493
M72: 59 | U72: 5.720003014 | V72: 0.05621229993
M73: 60 | U73: 5.891603104 | V73: 0.05353552375

Sheet Primary Tank Builder
A1: Tank Costing Information | F1: Technology: Primary Treatment Tanks
F2: Assumptions: | Q2: System Life (years) | R2: =G52 -> 60
A3: Item | C3: Default Unit Cost | D3: Location Factor Unit Cost | E3: User Provided Unit Cost | Q3: Construction and Installation Costs | R3: =L36 -> 
F4: Daily Wastewater Volume | G4: ='Wastewater Volume Calculator'!J96 -> 0 | H4: gpd | Q4: Annual Energy Costs | R4: =G43 -> 0
A5: Tank Cost per Gallon of usable volume. Should includes materials and delivery. | Q5: Annual Maintenance Cost | R5: =G49 -> 
F6: Tank Volume: | G6: =IF(E29="",2*G4,E29*G4) -> 0 | H6: gallons | Q6: Discount Factor (as percent) | R6: =J40 -> 0.05
Q7: Inflation Rate (as percent) | R7: =J39 -> 0.03
F8: Unit Tank Cost: | G8: =IF(E9= "",D9,E9) ->  | H8: per gal | I8: Tank Cost: | J8: =G8*G6 -> 
C9: 1.46 | D9: =(VLOOKUP(TRUNC('User & Location Information'!$E$12/100,0),LocationFactors!$B$4:$G$911,4,FALSE))/100*C9 ->  | Q9: Present Value of System Life Cycle Cost | R9: =SUM(T13:T73) -> 
A10: Installation Cost per Gallon of usable volume. Should include labor to form & pour concrete and/or place tank. | F10: Unit Tank Installation Cost: | G10: =IF(E15="",D15,E15) ->  | H10: per gal | I10: Installation Cost: | J10: =G6*G10 -> 
M11: Year | N11: Annualized Costs | P11: Periodic Costs | Q11: Total Cost in Year Zero | R11: Sum Cost of Year | S11: Sum Cost of Year Adjusted for Inflation | T11: Present Value of Cost of Year | U11: Inflation Factor | V11: Discount Factor
N12: Energy | O12: Maintenance
M13: 0 | Q13: =R3 ->  | R13: =IF($R$2>=$M$13,(SUM(N13:P13)+Q13),"") ->  | S13: =R13*U13 ->  | T13: =S13*V13 ->  | U13: =IF(R$2>=M13,((1+R$7)^M13),"") -> 1 | V13: =IF(R$2>=M13,((1/(1+R$6)^M13)),"") -> 1
M14: =IF(ISERROR(IF($R$2>=M13+1,M13+1,"")),"",IF($R$2>=M13+1,M13+1,"")) -> 1 | N14: =IF(M14<=$R$2, $R$4, "") -> 0 | O14: =IF(M14<=$R$2,$R$5,"") ->  | R14: =IF(M14<=$R$2,SUM(N14:P14),"") ->  | S14: =IF(M14<=$R$2,R14*U14,"") ->  | T14: =IF(M14<=$R$2,S14*V14,"") ->  | U14: 1.03 | V14: 0.9523809524
C15: 1.79 | D15: =(VLOOKUP(TRUNC('User & Location Information'!$E$12/100,0),LocationFactors!$B$4:$G$911,5,FALSE))/100*C15 ->  | M15: =IF(ISERROR(IF($R$2>=M14+1,M14+1,"")),"",IF($R$2>=M14+1,M14+1,"")) -> 2 | N15: =IF(M15<=$R$2, $R$4, "") -> 0 | O15: =IF(M15<=$R$2,$R$5,"") ->  | R15: =IF(M15<=$R$2,SUM(N15:P15),"") ->  | S15: =IF(M15<=$R$2,R15*U15,"") ->  | T15: =IF(M15<=$R$2,S15*V15,"") ->  | U15: 1.0609 | V15: 0.9070294785
A16: Septage Pumping Cost Information | M16: 3 | N16: 0 | U16: 1.092727 | V16: 0.8638375985
M17: 4 | N17: 0 | U17: 1.12550881 | V17: 0.8227024748
A18: Cost for pump 1,000 gallons of septage/biosolids from tankage | M18: 5 | N18: 0 | U18: 1.159274074 | V18: 0.7835261665
M19: 6 | N19: 0 | U19: 1.194052297 | V19: 0.7462153966
C20: 360 | D20: =(VLOOKUP(TRUNC('User & Location Information'!$E$12/100,0),LocationFactors!$B$4:$G$911,6,FALSE))/100*C20 ->  | M20: 7 | N20: 0 | U20: 1.229873865 | V20: 0.7106813301
A21: Septage Removal Frequency | M21: 8 | N21: 0 | U21: 1.266770081 | V21: 0.676839362
M22: 9 | N22: 0 | U22: 1.304773184 | V22: 0.6446089162
A23: The default value is every 7 years, to change this value, enter a new frequency in Cell E24. | F23: Materials: | M23: 10 | N23: 0 | U23: 1.343916379 | V23: 0.6139132535
F24: Cost of Materials: | L24: =J8 ->  | M24: 11 | N24: 0 | U24: 1.384233871 | V24: 0.5846792891
F25: P&O for Materials: | G25: =IF('User & Location Information'!$F$25="",'User & Location Information'!$E$25/100,'User & Location Information'!$F$25/100) -> 0.2 | L25: =L24*G25 ->  | M25: 12 | N25: 0 | U25: 1.425760887 | V25: 0.5568374182
F26: Sales Tax on Materials: | G26: ='User & Location Information'!E14/100 -> 0 | L26: =L24*G26 ->  | M26: 13 | N26: 0 | U26: 1.468533713 | V26: 0.5303213506
A27: Tank Volume Information | F27: Total Materials: | L27: =SUM(L24:L26) ->  | M27: 14 | N27: 0 | U27: 1.512589725 | V27: 0.505067953
A28: Assumption: Tank volume is two times the daily flow (gallons) | M28: 15 | N28: 0 | U28: 1.557967417 | V28: 0.4810170981
A29: To change the default value (2), enter a new multiplier: | F29: Labor & Equipment: | M29: 16 | N29: 0 | U29: 1.604706439 | V29: 0.458111522
F30: Cost of Labor & Equipment: | L30: =J10 ->  | M30: 17 | N30: 0 | U30: 1.652847632 | V30: 0.4362966876
F31: P&O Labor & Equipment: | G31: =IF('User & Location Information'!F26="",'User & Location Information'!E26/100,'User & Location Information'!F26/100) -> 0.2 | L31: =L30*G31 ->  | M31: 18 | N31: 0 | U31: 1.702433061 | V31: 0.4155206549
F32: Total Labor & Equipment: | L32: =SUM(L30:L31) ->  | M32: 19 | N32: 0 | U32: 1.753506053 | V32: 0.395733957
M33: 20 | N33: 0 | U33: 1.806111235 | V33: 0.3768894829
F34: Professional Services Fees: | M34: 21 | N34: 0 | U34: 1.860294572 | V34: 0.3589423646
M35: 22 | N35: 0 | U35: 1.916103409 | V35: 0.3418498711
F36: Capital Costs: | L36: =SUM(L27,L32,L34) ->  | M36: 23 | N36: 0 | U36: 1.973586511 | V36: 0.3255713058
M37: 24 | N37: 0 | U37: 2.032794106 | V37: 0.3100679103
F38: Energy Costs: | M38: 25 | N38: 0 | U38: 2.09377793 | V38: 0.2953027717
F39: Electrical Cost | G39: ='User & Location Information'!E16 -> 0.13 | H39: $/kW∙h | I39: Inflation Rate (%): | J39: 0.03 | M39: 26 | N39: 0 | U39: 2.156591268 | V39: 0.281240735
F40: Aeration Power | H40: kW | I40: Discount Rate (%): | J40: 0.05 | M40: 27 | N40: 0 | U40: 2.221289006 | V40: 0.267848319
F41: Aeration Run Time | H41: hr/d | I41: Salvage Value: | J41: None | M41: 28 | N41: 0 | U41: 2.287927676 | V41: 0.2550936371
F42: Panel Power: | G42: 0 | H42: kW | I42: Depreciation: | J42: None | M42: 29 | N42: 0 | U42: 2.356565506 | V42: 0.2429463211
F43: Annual Electric Cost: | G43: =(G40*G41*G39*365)+(G42*8760*G39) -> 0 | M43: 30 | N43: 0 | U43: 2.427262471 | V43: 0.2313774487
M44: 31 | N44: 0 | U44: 2.500080345 | V44: 0.2203594749
M45: 32 | N45: 0 | U45: 2.575082756 | V45: 0.2098661666
F46: Life Cycle Costs: | M46: 33 | N46: 0 | U46: 2.652335238 | V46: 0.1998725396
F47: Annual Maintenance Contract: | G47: =0.1*G4 -> 0 | M47: 34 | N47: 0 | U47: 2.731905296 | V47: 0.1903547996
F48: Pump Solids | G48: =((G6/1000)*L48)/(IF(E24="", 7, E24)) ->  | I48: Cost per 1000 gallons to pump tank: | L48: =IF(E20="",D20,E20) ->  | M48: 35 | N48: 0 | U48: 2.813862454 | V48: 0.1812902854
F49: Annualized Maintenance: | G49: =SUM(G47:G48) ->  | M49: 36 | N49: 0 | U49: 2.898278328 | V49: 0.1726574146
M50: 37 | N50: 0 | U50: 2.985226678 | V50: 0.164435633
M51: 38 | N51: 0 | U51: 3.074783478 | V51: 0.1566053647
F52: System Life (years) | G52: 60 | H52: yrs | M52: 39 | N52: 0 | U52: 3.167026983 | V52: 0.1491479664
M53: 40 | N53: 0 | U53: 3.262037792 | V53: 0.1420456823
F54: Life Cycle Present Value: | G54: =R9 ->  | M54: 41 | N54: 0 | U54: 3.359898926 | V54: 0.1352816022
M55: 42 | N55: 0 | U55: 3.460695894 | V55: 0.1288396211
M56: 43 | N56: 0 | U56: 3.56451677 | V56: 0.1227044011
M57: 44 | N57: 0 | U57: 3.671452273 | V57: 0.1168613344
M58: 45 | N58: 0 | U58: 3.781595842 | V58: 0.1112965089
M59: 46 | N59: 0 | U59: 3.895043717 | V59: 0.1059966752
M60: 47 | N60: 0 | U60: 4.011895028 | V60: 0.1009492144
M61: 48 | N61: 0 | U61: 4.132251879 | V61: 0.09614210899
M62: 49 | N62: 0 | U62: 4.256219436 | V62: 0.09156391332
M63: 50 | N63: 0 | U63: 4.383906019 | V63: 0.08720372697
M64: 51 | N64: 0 | U64: 4.515423199 | V64: 0.08305116855
M65: 52 | N65: 0 | U65: 4.650885895 | V65: 0.079096351
M66: 53 | N66: 0 | U66: 4.790412472 | V66: 0.07532985809
M67: 54 | N67: 0 | U67: 4.934124846 | V67: 0.07174272199
M68: 55 | N68: 0 | U68: 5.082148592 | V68: 0.0683264019
M69: 56 | N69: 0 | U69: 5.234613049 | V69: 0.06507276371
M70: 57 | N70: 0 | U70: 5.391651441 | V70: 0.06197406068
M71: 58 | N71: 0 | U71: 5.553400984 | V71: 0.05902291493
M72: 59 | N72: 0 | U72: 5.720003014 | V72: 0.05621229993
M73: 60 | N73: 0 | U73: 5.891603104 | V73: 0.05353552375

Sheet UV Disinfection Builder
A1: UV Costing Information | F1: Technology: UV Disinfection
F2: Assumptions: | Q2: System Life (years) | R2: =G65 -> 60
A3: Item | C3: Default Unit Cost | D3: Location Factor Unit Cost | E3: User Provided Unit Cost | Q3: Construction and Installation Costs | R3: =L49 -> 
F4: Daily Wastewater Volume | G4: ='Wastewater Volume Calculator'!J96 -> 0 | H4: gpd | Q4: Annual Energy Costs | R4: =G56 -> 
A5: Installation Cost of UV Unit | Q5: Annual Maintenance Cost | R5: =G63 ->  | Y5: flow | Z5: cost | AA5: wattage
F6: Cost of UV Device: | G6: =IF(E10="",D10,E10) -> 773.58 | H6: see equation on right side | Q6: Discount Factor (as percent) | R6: =L61 -> 0.05 | Y6: 2 | Z6: 770 | AA6: 14
C7: 360 | D7: =(VLOOKUP(TRUNC('User & Location Information'!$E$12/100,0),LocationFactors!$B$4:$G$911,5,FALSE))/100*C7 ->  | J7: Dose flowrate Estimator | Q7: Inflation Rate (as percent) | R7: =L60 -> 0.03 | Y7: 2.5 | Z7: 790 | AA7: 16
A8: Actual Cost of UV Unit | F8: Installation Cost of UV Device: | G8: =IF(E7="",D7,E7) ->  | J8: 450 | K8: 5 | Y8: 3 | Z8: 800 | AA8: 18
J9: 1000 | K9: 10 | Q9: Present Value of System Life Cycle Cost | R9: =SUM(T13:T73) ->  | Y9: 3.5 | Z9: 830 | AA9: 21
C10: =(-0.0073*($G$14^3))+(1.1317*($G$14^2))+(5.95*$G$14)+773.58 -> 773.58 | D10: =(-0.0073*($G$14^3))+(1.1317*($G$14^2))+(5.95*$G$14)+773.58 -> 773.58 | F10: Replacement Lamp: | G10: =IF(E13="",D13,E13) -> 100 | J10: 5000 | K10: 22 | Y10: 6 | Z10: 860 | AA10: 24
A11: Actual Cost of Replacement Lamp & Quartz | J11: 10000 | K11: 35 | M11: Year | N11: Annualized Costs | P11: Periodic Costs | Q11: Total Cost in Year Zero | R11: Sum Cost of Year | S11: Sum Cost of Year Adjusted for Inflation | T11: Present Value of Cost of Year | U11: Inflation Factor | V11: Discount Factor | Y11: 8 | Z11: 900 | AA11: 28
F12: Power Requirement of UV Device: | G12: =3.371*G14+3.3966 -> 3.3966 | H12: watts | J12: 50000 | K12: 85 | N12: Energy | O12: Maintenance | Y12: 10 | Z12: 950 | AA12: 34
C13: 100 | D13: 100 | M13: 0 | Q13: =R3 ->  | R13: =IF($R$2>=$M$13,(SUM(N13:P13)+Q13),"") ->  | S13: =R13*U13 ->  | T13: =S13*V13 ->  | U13: =IF(R$2>=M13,((1+R$7)^M13),"") -> 1 | V13: =IF(R$2>=M13,((1/(1+R$6)^M13)),"") -> 1 | Y13: 12 | Z13: 1000 | AA13: 44
F14: Flow Rate to Dispersal: | G14: =0.1442*(G4^0.5919) -> 0 | H14: gpm | J14: q=0.1442*(gpd)^0.5919 | M14: =IF(ISERROR(IF($R$2>=M13+1,M13+1,"")),"",IF($R$2>=M13+1,M13+1,"")) -> 1 | N14: =IF(M14<=$R$2, $R$4, "") ->  | O14: =IF(M14<=$R$2,$R$5,"") ->  | R14: =IF(M14<=$R$2,SUM(N14:P14),"") ->  | S14: =IF(M14<=$R$2,R14*U14,"") ->  | T14: =IF(M14<=$R$2,S14*V14,"") ->  | U14: 1.03 | V14: 0.9523809524 | Y14: 15 | Z14: 1100 | AA14: 49
M15: =IF(ISERROR(IF($R$2>=M14+1,M14+1,"")),"",IF($R$2>=M14+1,M14+1,"")) -> 2 | N15: =IF(M15<=$R$2, $R$4, "") ->  | O15: =IF(M15<=$R$2,$R$5,"") ->  | R15: =IF(M15<=$R$2,SUM(N15:P15),"") ->  | S15: =IF(M15<=$R$2,R15*U15,"") ->  | T15: =IF(M15<=$R$2,S15*V15,"") ->  | U15: 1.0609 | V15: 0.9070294785 | Y15: 20 | Z15: 1200 | AA15: 54
F16: Hours of Operation per Day: | G16: =G4/G14/60 ->  | H16: hr | M16: 3 | U16: 1.092727 | V16: 0.8638375985 | Y16: 30 | Z16: 1800 | AA16: 100
M17: 4 | U17: 1.12550881 | V17: 0.8227024748 | Y17: 40 | Z17: 2400 | AA17: 140
H18: Flow Rate (gpm) | I18: Cost | J18: Wattage | M18: 5 | U18: 1.159274074 | V18: 0.7835261665 | Y18: 60 | Z18: 3600 | AA18: 210
H19: 2 | I19: 770 | J19: 14 | M19: 6 | U19: 1.194052297 | V19: 0.7462153966 | Y19: 83 | Z19: 4900 | AA19: 280
H20: 3 | I20: 800 | J20: 18 | M20: 7 | U20: 1.229873865 | V20: 0.7106813301
H21: 6 | I21: 860 | J21: 24 | M21: 8 | U21: 1.266770081 | V21: 0.676839362
H22: 12 | I22: 1000 | J22: 44 | M22: 9 | U22: 1.304773184 | V22: 0.6446089162
H23: 20 | I23: 1200 | J23: 54 | M23: 10 | U23: 1.343916379 | V23: 0.6139132535
H24: 40 | I24: 2400 | J24: 140 | M24: 11 | U24: 1.384233871 | V24: 0.5846792891
H25: 83 | I25: 4900 | J25: 280 | M25: 12 | U25: 1.425760887 | V25: 0.5568374182
M26: 13 | U26: 1.468533713 | V26: 0.5303213506
M27: 14 | U27: 1.512589725 | V27: 0.505067953
M28: 15 | U28: 1.557967417 | V28: 0.4810170981
M29: 16 | U29: 1.604706439 | V29: 0.458111522
M30: 17 | U30: 1.652847632 | V30: 0.4362966876
M31: 18 | U31: 1.702433061 | V31: 0.4155206549
M32: 19 | U32: 1.753506053 | V32: 0.395733957
M33: 20 | U33: 1.806111235 | V33: 0.3768894829
M34: 21 | U34: 1.860294572 | V34: 0.3589423646
M35: 22 | U35: 1.916103409 | V35: 0.3418498711
F36: Materials: | M36: 23 | U36: 1.973586511 | V36: 0.3255713058
F37: Cost of Materials: | L37: =G6 -> 773.58 | M37: 24 | U37: 2.032794106 | V37: 0.3100679103
F38: 20% P&O for Materials: | G38: =IF('User & Location Information'!F25="",'User & Location Information'!E25/100,'User & Location Information'!F25/100) -> 0.2 | L38: =L37*G38 -> 154.716 | M38: 25 | U38: 2.09377793 | V38: 0.2953027717
F39: Sales Tax on Materials: | G39: ='User & Location Information'!E14/100 -> 0 | L39: =L37*G39 -> 0 | M39: 26 | U39: 2.156591268 | V39: 0.281240735
F40: Total Materials: | L40: =SUM(L37:L39) -> 928.296 | M40: 27 | U40: 2.221289006 | V40: 0.267848319
M41: 28 | U41: 2.287927676 | V41: 0.2550936371
F42: Labor & Equipment: | M42: 29 | U42: 2.356565506 | V42: 0.2429463211
F43: Cost of Labor & Equipment: | L43: =G8 ->  | M43: 30 | U43: 2.427262471 | V43: 0.2313774487
F44: 20% P&O Labor & Equipment: | G44: =IF('User & Location Information'!F26="",'User & Location Information'!E26/100,'User & Location Information'!F26/100) -> 0.2 | L44: =L43*G44 ->  | M44: 31 | U44: 2.500080345 | V44: 0.2203594749
F45: Total Labor & Equipment: | L45: =SUM(L43:L44) ->  | M45: 32 | U45: 2.575082756 | V45: 0.2098661666
M46: 33 | U46: 2.652335238 | V46: 0.1998725396
F47: Professional Services Fees: | L47: 0 | M47: 34 | U47: 2.731905296 | V47: 0.1903547996
M48: 35 | U48: 2.813862454 | V48: 0.1812902854
F49: Capital Costs: | L49: =SUM(L40,L45,L47) ->  | M49: 36 | U49: 2.898278328 | V49: 0.1726574146
M50: 37 | U50: 2.985226678 | V50: 0.164435633
F51: Energy Costs: | M51: 38 | U51: 3.074783478 | V51: 0.1566053647
F52: Electrical Cost | G52: ='User & Location Information'!E16 -> 0.13 | H52: $/kW∙h | M52: 39 | U52: 3.167026983 | V52: 0.1491479664
F53: UV Power | G53: =G12/1000 -> 0.0033966 | H53: kW | M53: 40 | U53: 3.262037792 | V53: 0.1420456823
F54: UV Run Time | G54: =G16 ->  | H54: hr/d | M54: 41 | U54: 3.359898926 | V54: 0.1352816022
F55: Panel Power: | G55: 0.001 | H55: kW | I55: (assumes continuous power draw) | M55: 42 | U55: 3.460695894 | V55: 0.1288396211
F56: Annual Electric Cost: | G56: =(G53*G54*G52*365)+(G55*8760*G52) ->  | M56: 43 | U56: 3.56451677 | V56: 0.1227044011
M57: 44 | U57: 3.671452273 | V57: 0.1168613344
M58: 45 | U58: 3.781595842 | V58: 0.1112965089
F59: Life Cycle Costs: | M59: 46 | U59: 3.895043717 | V59: 0.1059966752
F60: Annual Lamp Replacement: | G60: =G10 -> 100 | K60: Inflation Rate (%): | L60: 0.03 | M60: 47 | U60: 4.011895028 | V60: 0.1009492144
F61: Annual Maintenance Contract: | G61: =G4*0.05 -> 0 | H61: 5% of daily volume | K61: Discount Rate (%): | L61: 0.05 | M61: 48 | U61: 4.132251879 | V61: 0.09614210899
F62: Replace Whole Unit every 10 yrs | G62: =L49/10 ->  | K62: Salvage Value: | L62: None | M62: 49 | U62: 4.256219436 | V62: 0.09156391332
F63: Total Annual Maintenance: | G63: =SUM(G60:G62) ->  | K63: Depreciation: | L63: None | M63: 50 | U63: 4.383906019 | V63: 0.08720372697
M64: 51 | U64: 4.515423199 | V64: 0.08305116855
F65: System Life (years) | G65: 60 | H65: yrs | M65: 52 | U65: 4.650885895 | V65: 0.079096351
M66: 53 | U66: 4.790412472 | V66: 0.07532985809
F67: Life Cycle Present Value: | G67: =R9 ->  | M67: 54 | U67: 4.934124846 | V67: 0.07174272199
M68: 55 | U68: 5.082148592 | V68: 0.0683264019
M69: 56 | U69: 5.234613049 | V69: 0.06507276371
M70: 57 | U70: 5.391651441 | V70: 0.06197406068
M71: 58 | U71: 5.553400984 | V71: 0.05902291493
M72: 59 | U72: 5.720003014 | V72: 0.05621229993
M73: 60 | U73: 5.891603104 | V73: 0.05353552375

Sheet Database
A2: Source | C2: Category | D2: Item | E2: Unit | F2: Default Unit Cost | G2: User Provided Unit Cost | H2: Notes: | N2: 1 | O2: 0.33 | P2: per foot
N3: 1.25 | O3: 0.4 | P3: per foot
A4: RSM | B4: Pipe | C4: Pressure Rated Pipe | D4: 1" dia. Sch. 40 PVC | E4: per foot | F4: 1.96 | H4: delivered to site, no excavation or placement | N4: 1.5 | O4: 0.49 | P4: per foot
A5: RSM | D5: 1-1/4" dia. Sch. 40 PVC | E5: per foot | F5: 2.49 | H5: delivered to site, no excavation or placement | N5: 2 | O5: 0.57 | P5: per foot
A6: RSM | D6: 1-1/2" dia. Sch. 40 PVC | E6: per foot | F6: 2.73 | H6: delivered to site, no excavation or placement | N6: 3 | O6: 1.28 | P6: per foot
A7: RSM | D7: 2" dia. Sch. 40 PVC | E7: per foot | F7: 3.33 | H7: delivered to site, no excavation or placement | N7: 4 | O7: 1.77 | P7: per foot
A8: RSM | D8: 2-1/2" dia. Sch. 40 PVC | E8: per foot | F8: 4.93 | H8: delivered to site, no excavation or placement
A9: RSM | D9: 3" dia. Sch. 40 PVC | E9: per foot | F9: 6.6 | H9: delivered to site, no excavation or placement
A10: RSM | D10: 4" dia. Sch. 40 PVC | E10: per foot | F10: 9.15 | H10: delivered to site, no excavation or placement
A11: RSM | D11: 6" dia. Sch. 40 PVC | E11: per foot | F11: 16.95 | H11: delivered to site, no excavation or placement
N12: leach pipe | O12: 0.44 | P12: per foot
A13: RSM | C13: Gravity Sewer Pipe | D13: 8" SDR 35 PVC Sewer | E13: per foot | F13: 7.05 | H13: delivered to site, no excavation or placement
A14: RSM | D14: 10" SDR 35 PVC Sewer | E14: per foot | F14: 11.15 | H14: delivered to site, no excavation or placement | N14: PVC SDR 35
A15: RSM | D15: 12" SDR 35 PVC Sewer | E15: per foot | F15: 12.7 | H15: delivered to site, no excavation or placement | N15: Sewer
A16: RSM | D16: 15" SDR 35 PVC Sewer | E16: per foot | F16: 13.1 | H16: delivered to site, no excavation or placement | N16: 8 | O16: 3.22 | P16: per foot
C18: Excavation - Pipe Trench | D18: 4" & smaller pipe dia.
D19: 6" to 12" pipe dia.
D20: 15" pipe dia.
C22: Installation - Pipes | D22: 4" & smaller pipe dia.
D23: 6" to 12" pipe dia.
D24: 15" pipe dia.
C26: Horizontal Boring | D26: Horizontal Boring | E26: per foot | F26: 30
A29: RSM | B29: Tanks | C29: Concrete Tanks | D29: Pre-cast | E29: per gallon | F29: 1.4 | H29: Delivered to site & placed in hole or built on site, no excavation cost
C30: Excavation - Tanks | D30: assume 25% over excavation | E30: cubic yard | F30: 60 | H30: Assume backhoe or small trackhoe, excavation, placement of bedding, replacement of fill, and dispose of spoil
C31: Tanks - Installation | D31: connection to system | F31: 1
B34: Site Preparation | C34: Site Work | D34: minor site work | H34: scrape soil surface, minor clearing
D35: major site work | H35: top soil removal before excavation
A37: JRB w/RSM
B39: Pumps | C39: Pumps | D39: Grinder Pump | E39: per pump | F39: 2400
D40: STEP Turbine Pump | E40: per pump | F40: 300
D41: Recirculation Pumps | E41: per pump | F41: 250
D42: Transfer pump | E42: per pump
C44: Pump Controls | D44: control panel & floats | E44: per pump basis | F44: 550
C45: Pump Filter | D45: screened pump vault | E45: per pump basis | F45: 180 | H45: screened pump vault
C46: Pump Installation | D46: STEP Turbine Pump, screened vault & controls | E46: per pump basis | H46: pump placement in tank including pump filter
D47: Grinder pump basin, pump, & controls | E47: per pump basis | F47: 2400 | H47: pump placement into dedicated pump basin - Grinder
A48: JRB | D48: Recirculation Pump, screened vault & controls | E48: per pump basis | F48: 960
D49: Transfer pump, screened vault & controls | E49: per pump basis | F49: 500
B50: Maintenance
C51: Septic Tank Pumping | D51: tank with risers | E51: per 1000 gallons | F51: 200
C52: Pipe Jetting | D52: dollars per foot | F52: 15
B55: Disinfection
C56: UV Light | D56: UV light - plug and play device | E56: per unit | F56: equation | H56: equation based on adjacent table | I56: Flow Rate (gpm) | J56: Cost | K56: Wattage | L56: bulb | M56: quartz
D57: Power requirement for UV | F57: equation | H57: equation based on adjacent table | I57: 2 | J57: 770 | K57: 14 | L57: 70 | M57: 30
D58: Replacement lamp (not including quartz) | E58: per lamp | F58: equation | I58: 3 | J58: 800 | K58: 18 | L58: 65 | M58: 40
I59: 6 | J59: 860 | K59: 24 | L59: 65 | M59: 50
A60: Catalog | C60: Chlorine/Dechlorinate | D60: 12.5% sodium Hypochloride | E60: per gallon | F60: 1.4 | I60: 12 | J60: 1000 | K60: 44 | L60: 50 | M60: 50
A61: Catalog | D61: 30% calcium thiosulfate | E61: per gallon | F61: 6.82 | I61: 20 | J61: 1200 | K61: 54 | L61: 75 | M61: 70
I62: 40 | J62: 2400 | K62: 140 | L62: 200 | M62: 100
I63: 83 | J63: 4900 | K63: 280 | L63: 400 | M63: 200
B65: Wood Products | D65: 4' x 8' x ½" sheets of OSB or particle board | E65: per sheet | F65: 18
D66: treated 4" x 4" | E66: per foot | F66: 2
D67: treated 2" x 4" | E67: per foot | F67: 1
D68: untreated 2" x 4" | E68: per foot | F68: 1
D69: treated 2" x 6" | E69: per foot | F69: 1.5
D70: treated 2" x 12" | E70: per foot | F70: 2.5
B71: Liners | C71: PVC | D71: 30 mil PVC liner | E71: per square foot | F71: 0.5
C72: Earthen
B75: Rock & Sand | D75: coarse rock that supports media | E75: per ton | F75: 30
D76: bedding sand for under liner | E76: per ton | F76: 20
D77: #57 washed rock | E77: per ton | F77: 15
D78: RSF sand (media) | E78: per ton | F78: 40
D80: 30" x 48" riser with lid | E80: each | F80: 300
B84: PVC Fittings | D84: 2" PVC end cap | E84: each | F84: 2
D85: 6" PVC end cap | E85: each | F85: 35
D86: 6" PVC threaded end plug | E86: each | F86: 55
D87: 6" bulkhead connector | E87: each | F87: 550
D88: 4" bulkhead connector | E88: each | F88: 300
D89: 3" bulkhead connector | E89: each | F89: 150
D90: 2" bulkhead connector | E90: each | F90: 90
D91: 6" schedule 40 elbow | E91: each | F91: 72
D92: 4" PVC Sch 40 els | E92: each | F92: 25
D93: 2" Sch 40 PVC els | E93: each | F93: 4
D94: 1 ½" Sch 40 PVC els | E94: each | F94: 3
D95: 1½ x 2" Sch 40 PVC reducer els | E95: each | F95: 9
D96: 2" x 1 ½" Sch 40 PVC Reducer Tees | E96: each | F96: 6
D97: 2" Sch 40 PVC Tee | E97: each | F97: 5
D98: 1 ½" Sch 40 PVC Tees | E98: each | F98: 3
D99: 2" Sch 40 PVC crosses | E99: each | F99: 10
D100: 1 ½" Sch 40 crosses | E100: each | F100: 7
D101: 2" to 1" Sch 40 PVC slip bushings | E101: each | F101: 1
D102: 1 ½" x 1" Sch 40 PVC slip bushings | E102: each | F102: 0.65
D103: 1 ½" Sch 40 PVC threaded male bushings | E103: each | F103: 5
D104: 1 ½" Sch 40 PVC female threaded adapters | E104: each | F104: 5
D105: 2" x 1 ½" Sch 40 PVC Reducer bushing | E105: each | F105: 1
D106: 3" PVC Sch 40 swing check valve | E106: each | F106: 100
D107: 1 ½" long sweep, PVC | E107: each | F107: 25
D108: 1 ½" Sch 40 PVC swing check valves | E108: each | F108: 50
D109: 1" orifice shields | E109: each | F109: 1.5
D110: 2" Sch 40 PVC ball valve | E110: each | F110: 100
D111: V 6606 Hydro Tec | E111: each | F111: 170
D112: 12" meter boxes with lids | E112: each | F112: 35

Sheet LocationFactors
B3: ZIP | C3: STATE | D3: CITY | E3: MAT. | F3: INST. | G3: TOTAL
B4: 350 | C4: Alabama | D4: Birmingham | E4: 100 | F4: 100 | G4: 100 | J4: for sake of generating data, use 35000 as a zip code
B5: 351 | C5: Alabama | D5: Birmingham | E5: 98.3 | F5: 74.9 | G5: 88.5 | J5: Mat | K5: Inst | L5: total | M5: Birmingham, AL
B6: 352 | C6: Alabama | D6: Birmingham | E6: 98.3 | F6: 74.9 | G6: 88.5 | J6: 98.3 | K6: 74.9 | L6: 88.5
B7: 354 | C7: Alabama | D7: Tuscaloosa | E7: 97 | F7: 60.5 | G7: 81.7
B8: 355 | C8: Alabama | D8: Jasper | E8: 97.2 | F8: 54 | G8: 79
B9: 356 | C9: Alabama | D9: Decatur | E9: 97 | F9: 59.9 | G9: 81.4
B10: 357 | C10: Alabama | D10: Huntsville | E10: 97 | F10: 71.1 | G10: 86.1
B11: 358 | C11: Alabama | D11: Huntsville | E11: 97 | F11: 71.1 | G11: 86.1
B12: 359 | C12: Alabama | D12: Gadsden | E12: 96.9 | F12: 59.4 | G12: 81.2
B13: 360 | C13: Alabama | D13: Montgomery | E13: 98 | F13: 59.2 | G13: 81.7
B14: 361 | C14: Alabama | D14: Montgomery | E14: 98 | F14: 59.2 | G14: 81.7
B15: 362 | C15: Alabama | D15: Anniston | E15: 96.3 | F15: 52.9 | G15: 78.1
B16: 363 | C16: Alabama | D16: Dothan | E16: 96.9 | F16: 52.5 | G16: 78.3
B17: 364 | C17: Alabama | D17: Evergreen | E17: 96.4 | F17: 57.3 | G17: 80
B18: 365 | C18: Alabama | D18: Mobile | E18: 97.9 | F18: 65.9 | G18: 84.5
B19: 366 | C19: Alabama | D19: Mobile | E19: 97.9 | F19: 65.9 | G19: 84.5
B20: 367 | C20: Alabama | D20: Selma | E20: 96.6 | F20: 54.4 | G20: 78.9
B21: 368 | C21: Alabama | D21: Phenix City | E21: 97.3 | F21: 59.4 | G21: 81.4
B22: 369 | C22: Alabama | D22: Butler | E22: 96.8 | F22: 55.7 | G22: 79.5
B23: 995 | C23: Alaska | D23: Anchorage | E23: 128.3 | F23: 110.3 | G23: 120.8
B24: 996 | C24: Alaska | D24: Anchorage | E24: 128.3 | F24: 110.3 | G24: 120.8
B25: 997 | C25: Alaska | D25: Fairbanks | E25: 127.6 | F25: 112.6 | G25: 121.3
B26: 998 | C26: Alaska | D26: Juneau | E26: 127 | F26: 108.5 | G26: 119.2
B27: 999 | C27: Alaska | D27: Ketchikan | E27: 139.6 | F27: 108.1 | G27: 126.4
B28: 850 | C28: Arizona | D28: Phoenix | E28: 99.9 | F28: 74 | G28: 89
B29: 852 | C29: Arizona | D29: Mesa/Tempe | E29: 99.2 | F29: 66.7 | G29: 85.6
B30: 853 | C30: Arizona | D30: Phoenix | E30: 99.9 | F30: 74 | G30: 89
B31: 855 | C31: Arizona | D31: Globe | E31: 99.5 | F31: 63.1 | G31: 84.2
B32: 856 | C32: Arizona | D32: Tucson | E32: 98 | F32: 70.6 | G32: 86.5
B33: 857 | C33: Arizona | D33: Tucson | E33: 98 | F33: 70.6 | G33: 86.5
B34: 859 | C34: Arizona | D34: Show Low | E34: 99.5 | F34: 64.2 | G34: 84.7
B35: 860 | C35: Arizona | D35: Flagstaff | E35: 101.4 | F35: 71.6 | G35: 88.9
B36: 863 | C36: Arizona | D36: Prescott | E36: 99.2 | F36: 63.7 | G36: 84.3
B37: 864 | C37: Arizona | D37: Kingman | E37: 97.5 | F37: 69.6 | G37: 85.8
B38: 865 | C38: Arizona | D38: Chambers | E38: 97.5 | F38: 64.4 | G38: 83.6
B39: 716 | C39: Arkansas | D39: Pine Bluff | E39: 96.9 | F39: 66.6 | G39: 84.2
B40: 717 | C40: Arkansas | D40: Camden | E40: 94.6 | F40: 44.6 | G40: 73.6
B41: 718 | C41: Arkansas | D41: Texarkana | E41: 95.9 | F41: 48.8 | G41: 76.1
B42: 719 | C42: Arkansas | D42: Hot Springs | E42: 93.8 | F42: 47.9 | G42: 74.5
B43: 720 | C43: Arkansas | D43: Little Rock | E43: 97.1 | F43: 69.9 | G43: 85.7
B44: 721 | C44: Arkansas | D44: Little Rock | E44: 97.1 | F44: 69.9 | G44: 85.7
B45: 722 | C45: Arkansas | D45: Little Rock | E45: 97.1 | F45: 69.9 | G45: 85.7
B46: 723 | C46: Arkansas | D46: West Memphis | E46: 96 | F46: 59.6 | G46: 80.8
B47: 724 | C47: Arkansas | D47: Jonesboro | E47: 96.9 | F47: 60.2 | G47: 81.5
B48: 725 | C48: Arkansas | D48: Batesville | E48: 94.7 | F48: 54.3 | G48: 77.7
B49: 726 | C49: Arkansas | D49: Harrison | E49: 95.9 | F49: 55 | G49: 78.8
B50: 727 | C50: Arkansas | D50: Fayetteville | E50: 93.4 | F50: 54.7 | G50: 77.1
B51: 728 | C51: Arkansas | D51: Russellville | E51: 94.5 | F51: 56.7 | G51: 78.6
B52: 729 | C52: Arkansas | D52: Fort Smith | E52: 97.4 | F52: 60.1 | G52: 81.8
B53: 900 | C53: California | D53: Los Angeles | E53: 102.2 | F53: 116.7 | G53: 108.3
B54: 901 | C54: California | D54: Los Angeles | E54: 102.2 | F54: 116.7 | G54: 108.3
B55: 902 | C55: California | D55: Los Angeles | E55: 102.2 | F55: 116.7 | G55: 108.3
B56: 903 | C56: California | D56: Inglewood | E56: 97.6 | F56: 107.9 | G56: 101.9
B57: 904 | C57: California | D57: Inglewood | E57: 97.6 | F57: 107.9 | G57: 101.9
B58: 905 | C58: California | D58: Inglewood | E58: 97.6 | F58: 107.9 | G58: 101.9
B59: 906 | C59: California | D59: Long Beach | E59: 99.3 | F59: 108 | G59: 102.9
B60: 907 | C60: California | D60: Long Beach | E60: 99.3 | F60: 108 | G60: 102.9
B61: 908 | C61: California | D61: Long Beach | E61: 99.3 | F61: 108 | G61: 102.9
B62: 910 | C62: California | D62: Pasadena | E62: 98 | F62: 107.9 | G62: 101.9
B63: 911 | C63: California | D63: Pasadena | E63: 98 | F63: 107.9 | G63: 101.9
B64: 912 | C64: California | D64: Pasadena | E64: 98 | F64: 107.9 | G64: 101.9
B65: 913 | C65: California | D65: Van Nuys | E65: 101.2 | F65: 107.9 | G65: 102.2
B66: 914 | C66: California | D66: Van Nuys | E66: 101.2 | F66: 107.9 | G66: 102.2
B67: 915 | C67: California | D67: Van Nuys | E67: 101.2 | F67: 107.9 | G67: 102.2
B68: 916 | C68: California | D68: Van Nuys | E68: 101.2 | F68: 107.9 | G68: 102.2
B69: 917 | C69: California | D69: Alhambra | E69: 100.2 | F69: 107.9 | G69: 103.4
B70: 918 | C70: California | D70: Alhambra | E70: 100.2 | F70: 107.9 | G70: 103.4
B71: 919 | C71: California | D71: San Diego | E71: 102.4 | F71: 108.8 | G71: 105.1
B72: 920 | C72: California | D72: San Diego | E72: 102.4 | F72: 108.8 | G72: 105.1
B73: 921 | C73: California | D73: San Diego | E73: 102.4 | F73: 108.8 | G73: 105.1
B74: 922 | C74: California | D74: Palm Springs | E74: 99.2 | F74: 106.8 | G74: 102.4
B75: 923 | C75: California | D75: San Bernardino | E75: 96.9 | F75: 107.2 | G75: 101.2
B76: 924 | C76: California | D76: San Bernardino | E76: 96.9 | F76: 107.2 | G76: 101.2
B77: 925 | C77: California | D77: Riverside | E77: 101.6 | F77: 112.7 | G77: 106.3
B78: 926 | C78: California | D78: Santa Ana | E78: 98.9 | F78: 107.5 | G78: 102.5
B79: 927 | C79: California | D79: Santa Ana | E79: 98.9 | F79: 107.5 | G79: 102.5
B80: 928 | C80: California | D80: Anaheim | E80: 101.5 | F80: 114.7 | G80: 107
B81: 930 | C81: California | D81: Oxnard | E81: 102.9 | F81: 112.8 | G81: 107
B82: 931 | C82: California | D82: Santa Barbara | E82: 101.9 | F82: 112.9 | G82: 106.5
B83: 932 | C83: California | D83: Bakersfield | E83: 103.3 | F83: 109.4 | G83: 105.8
B84: 933 | C84: California | D84: Bakersfield | E84: 103.3 | F84: 109.4 | G84: 105.8
B85: 934 | C85: California | D85: San Luis Obispo | E85: 102.5 | F85: 105.3 | G85: 103.7
B86: 935 | C86: California | D86: Mojave | E86: 99.6 | F86: 104.3 | G86: 101.6
B87: 936 | C87: California | D87: Fresno | E87: 103.2 | F87: 112.6 | G87: 107.2
B88: 937 | C88: California | D88: Fresno | E88: 103.2 | F88: 112.6 | G88: 107.2
B89: 938 | C89: California | D89: Fresno | E89: 103.2 | F89: 112.6 | G89: 107.2
B90: 939 | C90: California | D90: Salinas | E90: 103.3 | F90: 116.4 | G90: 108.8
B91: 940 | C91: California | D91: San Francisco | E91: 111.2 | F91: 141.3 | G91: 123.8
B92: 941 | C92: California | D92: San Francisco | E92: 111.2 | F92: 141.3 | G92: 123.8
B93: 942 | C93: California | D93: Sacramento | E93: 104.9 | F93: 114.6 | G93: 108.9
B94: 943 | C94: California | D94: Palo Alto | E94: 103.5 | F94: 123.7 | G94: 112
B95: 944 | C95: California | D95: San Mateo | E95: 106.4 | F95: 129.3 | G95: 116
B96: 945 | C96: California | D96: Vallejo | E96: 104.1 | F96: 121.6 | G96: 111.4
B97: 946 | C97: California | D97: Oakland | E97: 108.8 | F97: 129.5 | G97: 117.5
B98: 947 | C98: California | D98: Berkeley | E98: 108.3 | F98: 123.8 | G98: 114.8
B99: 948 | C99: California | D99: Richmond | E99: 107.4 | F99: 123.9 | G99: 114.3
B100: 949 | C100: California | D100: San Rafael | E100: 108.7 | F100: 124.5 | G100: 115.3
B101: 950 | C101: California | D101: Santa Cruz | E101: 108.4 | F101: 116.6 | G101: 111.8
B102: 951 | C102: California | D102: San Jose | E102: 106 | F102: 132.5 | G102: 117.1
B103: 952 | C103: California | D103: Stockton | E103: 103.5 | F103: 112 | G103: 107
B104: 953 | C104: California | D104: Modesto | E104: 103.4 | F104: 111.8 | G104: 106.9
B105: 954 | C105: California | D105: Santa Rosa | E105: 103.3 | F105: 126.1 | G105: 112.9
B106: 955 | C106: California | D106: Eureka | E106: 104.7 | F106: 109.6 | G106: 106.7
B107: 956 | C107: California | D107: Sacramento | E107: 104.9 | F107: 114.6 | G107: 108.9
B108: 957 | C108: California | D108: Sacramento | E108: 104.9 | F108: 114.6 | G108: 108.9
B109: 958 | C109: California | D109: Sacramento | E109: 104.9 | F109: 114.6 | G109: 108.9
B110: 959 | C110: California | D110: Marysville | E110: 104 | F110: 111.2 | G110: 107
B111: 960 | C111: California | D111: Redding | E111: 105.8 | F111: 109.8 | G111: 107.5
B112: 961 | C112: California | D112: Susanville | E112: 104.6 | F112: 110 | G112: 106.8
B113: 800 | C113: Colorado | D113: Denver | E113: 101.8 | F113: 85.5 | G113: 95
B114: 801 | C114: Colorado | D114: Denver | E114: 101.8 | F114: 85.5 | G114: 95
B115: 802 | C115: Colorado | D115: Denver | E115: 101.8 | F115: 85.5 | G115: 95
B116: 803 | C116: Colorado | D116: Boulder | E116: 98.6 | F116: 82 | G116: 91.6
B117: 804 | C117: Colorado | D117: Golden | E117: 100.7 | F117: 80.8 | G117: 92.4
B118: 805 | C118: Colorado | D118: Fort Collins | E118: 102.2 | F118: 77.3 | G118: 91.7
B119: 806 | C119: Colorado | D119: Greeley | E119: 99.7 | F119: 67 | G119: 86
B120: 807 | C120: Colorado | D120: Fort Morgan | E120: 99.2 | F120: 80.6 | G120: 91.4
B121: 808 | C121: Colorado | D121: Colorado Springs | E121: 101.5 | F121: 81 | G121: 92.9
B122: 809 | C122: Colorado | D122: Colorado Springs | E122: 101.5 | F122: 81 | G122: 92.9
B123: 810 | C123: Colorado | D123: Pueblo | E123: 101.3 | F123: 79 | G123: 91.9
B124: 811 | C124: Colorado | D124: Alamosa | E124: 102.4 | F124: 75.3 | G124: 91
B125: 812 | C125: Colorado | D125: Salida | E125: 102.2 | F125: 76.2 | G125: 91.3
B126: 813 | C126: Colorado | D126: Durango | E126: 102.8 | F126: 76 | G126: 91.6
B127: 814 | C127: Colorado | D127: Montrose | E127: 101.4 | F127: 74.4 | G127: 90.1
B128: 815 | C128: Colorado | D128: Grand Junction | E128: 104.9 | F128: 72 | G128: 91.1
B129: 816 | C129: Colorado | D129: Glenwood Springs | E129: 102.4 | F129: 77.7 | G129: 92.1
B130: 60 | C130: Connecticut | D130: New Britain | E130: 99.2 | F130: 118 | G130: 107.1
B131: 61 | C131: Connecticut | D131: Hartford | E131: 100.5 | F131: 118.1 | G131: 107.9
B132: 62 | C132: Connecticut | D132: Willimantic | E132: 99.8 | F132: 117.5 | G132: 107.2
B133: 63 | C133: Connecticut | D133: New London | E133: 95.8 | F133: 117.1 | G133: 104.8
B134: 64 | C134: Connecticut | D134: Meriden | E134: 97.9 | F134: 118.5 | G134: 106.6
B135: 65 | C135: Connecticut | D135: New Haven | E135: 101 | F135: 118 | G135: 108.2
B136: 66 | C136: Connecticut | D136: Bridgeport | E136: 100.3 | F136: 118.6 | G136: 108
B137: 67 | C137: Connecticut | D137: Waterbury | E137: 99.9 | F137: 118.5 | G137: 107.7
B138: 68 | C138: Connecticut | D138: Norwalk | E138: 99.9 | F138: 119 | G138: 107.9
B139: 69 | C139: Connecticut | D139: Stamford | E139: 100 | F139: 125.4 | G139: 110.7
B140: 200 | C140: D.C. | D140: Washington | E140: 104.6 | F140: 92.8 | G140: 99.7
B141: 201 | C141: D.C. | D141: Washington | E141: 104.6 | F141: 92.8 | G141: 99.7
B142: 202 | C142: D.C. | D142: Washington | E142: 104.6 | F142: 92.8 | G142: 99.7
B143: 203 | C143: D.C. | D143: Washington | E143: 104.6 | F143: 92.8 | G143: 99.7
B144: 204 | C144: D.C. | D144: Washington | E144: 104.6 | F144: 92.8 | G144: 99.7
B145: 205 | C145: D.C. | D145: Washington | E145: 104.6 | F145: 92.8 | G145: 99.7
B146: 197 | C146: Delaware | D146: Newark | E146: 100.5 | F146: 105.8 | G146: 102.7
B147: 198 | C147: Delaware | D147: Wilmington | E147: 100.6 | F147: 105.9 | G147: 102.8
B148: 199 | C148: Delaware | D148: Dover | E148: 101.2 | F148: 105.8 | G148: 103.1
B149: 320 | C149: Florida | D149: Jacksonville | E149: 98.8 | F149: 63.1 | G149: 83.8
B150: 321 | C150: Florida | D150: Daytona Beach | E150: 99.1 | F150: 76.5 | G150: 89.6
B151: 322 | C151: Florida | D151: Jacksonville | E151: 98.8 | F151: 63.1 | G151: 83.8
B152: 323 | C152: Florida | D152: Tallahassee | E152: 99.6 | F152: 53 | G152: 80.1
B153: 324 | C153: Florida | D153: Panama City | E153: 100.3 | F153: 48.6 | G153: 78.6
B154: 325 | C154: Florida | D154: Pensacola | E154: 102.9 | F154: 61.3 | G154: 85.4
B155: 326 | C155: Florida | D155: Gainesville | E155: 100.5 | F155: 66 | G155: 86
B156: 327 | C156: Florida | D156: Orlando | E156: 103.1 | F156: 72 | G156: 90
B157: 328 | C157: Florida | D157: Orlando | E157: 103.1 | F157: 72 | G157: 90
B158: 329 | C158: Florida | D158: Melbourne | E158: 102 | F158: 80 | G158: 92.7
B159: 330 | C159: Florida | D159: Miami | E159: 101.2 | F159: 75.4 | G159: 90.3
B160: 331 | C160: Florida | D160: Miami | E160: 101.2 | F160: 75.4 | G160: 90.3
B161: 332 | C161: Florida | D161: Miami | E161: 101.2 | F161: 75.4 | G161: 90.3
B162: 333 | C162: Florida | D162: Fort Lauderdale | E162: 98.5 | F162: 73.6 | G162: 88
B163: 334 | C163: Florida | D163: West Palm Beach | E163: 97.2 | F163: 69.8 | G163: 85.7
B164: 335 | C164: Florida | D164: Tampa | E164: 100.1 | F164: 78.7 | G164: 91.1
B165: 336 | C165: Florida | D165: Tampa | E165: 100.1 | F165: 78.7 | G165: 91.1
B166: 337 | C166: Florida | D166: St. Petersburg | E166: 102.3 | F166: 58.1 | G166: 83.7
B167: 338 | C167: Florida | D167: Lakeland | E167: 99.2 | F167: 77.8 | G167: 90.2
B168: 339 | C168: Florida | D168: Fort Myers | E168: 98.6 | F168: 70.1 | G168: 86.6
B169: 340 | C169: Florida | D169: Miami | E169: 101.2 | F169: 75.4 | G169: 90.3
B170: 341 | C170: Florida | D170: Fort Myers | E170: 98.6 | F170: 70.1 | G170: 86.6
B171: 342 | C171: Florida | D171: Sarasota | E171: 100.4 | F171: 71.1 | G171: 88.1
B172: 344 | C172: Florida | D172: Gainesville | E172: 100.5 | F172: 66 | G172: 86
B173: 346 | C173: Florida | D173: Tampa | E173: 100.1 | F173: 78.7 | G173: 91.1
B174: 347 | C174: Florida | D174: Orlando | E174: 103.1 | F174: 72 | G174: 90
B175: 349 | C175: Florida | D175: West Palm Beach | E175: 97.2 | F175: 69.8 | G175: 85.7
B176: 300 | C176: Georgia | D176: Atlanta | E176: 98.2 | F176: 79.2 | G176: 90.2
B177: 301 | C177: Georgia | D177: Atlanta | E177: 98.2 | F177: 79.2 | G177: 90.2
B178: 302 | C178: Georgia | D178: Atlanta | E178: 98.2 | F178: 79.2 | G178: 90.2
B179: 303 | C179: Georgia | D179: Atlanta | E179: 98.2 | F179: 79.2 | G179: 90.2
B180: 304 | C180: Georgia | D180: Statesboro | E180: 97.9 | F180: 48.1 | G180: 77
B181: 305 | C181: Georgia | D181: Gainesville | E181: 96.5 | F181: 63.2 | G181: 82.5
B182: 306 | C182: Georgia | D182: Athens | E182: 95.9 | F182: 66.9 | G182: 83.7
B183: 307 | C183: Georgia | D183: Dalton | E183: 98 | F183: 52.3 | G183: 78.8
B184: 308 | C184: Georgia | D184: Augusta | E184: 96.9 | F184: 64.3 | G184: 83.2
B185: 309 | C185: Georgia | D185: Augusta | E185: 96.9 | F185: 64.3 | G185: 83.2
B186: 310 | C186: Georgia | D186: Macon | E186: 96.5 | F186: 66.6 | G186: 83.9
B187: 311 | C187: Georgia | D187: Macon | E187: 96.5 | F187: 66.6 | G187: 83.9
B188: 312 | C188: Georgia | D188: Macon | E188: 96.5 | F188: 66.6 | G188: 83.9
B189: 313 | C189: Georgia | D189: Savannah | E189: 98.8 | F189: 62 | G189: 83.3
B190: 314 | C190: Georgia | D190: Savannah | E190: 98.8 | F190: 62 | G190: 83.3
B191: 315 | C191: Georgia | D191: Waycross | E191: 97.7 | F191: 57.2 | G191: 80.7
B192: 316 | C192: Georgia | D192: Valdosta | E192: 97.8 | F192: 51 | G192: 78.2
B193: 317 | C193: Georgia | D193: Albany | E193: 97.9 | F193: 62 | G193: 82.9
B194: 318 | C194: Georgia | D194: Columbus | E194: 97.8 | F194: 66.8 | G194: 84.8
B195: 319 | C195: Georgia | D195: Columbus | E195: 97.8 | F195: 66.8 | G195: 84.8
B196: 398 | C196: Georgia | D196: Albany | E196: 97.9 | F196: 62 | G196: 82.9
B197: 399 | C197: Georgia | D197: Atlanta | E197: 98.2 | F197: 79.2 | G197: 90.2
B198: 967 | C198: Hawaii | D198: Hilo | E198: 114.2 | F198: 118.7 | G198: 116.1
B199: 968 | C199: Hawaii | D199: Honolulu | E199: 118.7 | F199: 118.7 | G199: 118.7
B200: 969 | C200: States & Poss. | D200: Guam | E200: 138.1 | F200: 64.3 | G200: 107.7
B201: 832 | C201: Idaho | D201: Pocatello | E201: 101.6 | F201: 74.5 | G201: 90.2
B202: 833 | C202: Idaho | D202: Twin Falls | E202: 102.5 | F202: 54 | G202: 82.1
... 709 more rows
